{"text_format":"1","workbook":"xlsx","n_sheets":9,"sheets":["0.ΕΙΣΑΓΩΓΗ","1α.ΔΕΛΤΙΟ ΔΕΔΟΜΕΝΩΝ","1β.ΜΞΔΠ","2.ΒΑΣΙΚΕΣ ΤΙΜΕΣ","3α.ΑΠΟΤΕΛΕΣΜΑΤΑ","3β.ΤΕΚΜΗΡΙΩΣΗ","PS DATA","CS DATA","5.ΥΠΟΛΟΓΙΣΜΟΙ"],"not_rendered":{"charts":0,"images":3,"macros":1,"external_links":0,"defined_names":4,"comments":0,"pivot_tables":0},"unopened":[],"bounds":{"document_bytes":16777216,"sheet_cells":100000,"rows_first":2000,"rows_last":500,"rows_between":2000,"halvings":0,"cell_chars":16384,"cell_head_chars":4096},"cells_cut":0,"cells_raw":0,"read":"whole","date_system":"1900"}

{"sheet":"0.ΕΙΣΑΓΩΓΗ","index":0,"n_rows":0,"n_cols":0,"rows_kept":0,"cut":false,"hidden":false,"merged":[]}

{"sheet":"1α.ΔΕΛΤΙΟ ΔΕΔΟΜΕΝΩΝ","index":1,"n_rows":43,"n_cols":46,"rows_kept":43,"cut":false,"hidden":false,"merged":[[0,18,0,19],[0,5,0,8],[0,9,0,10],[0,2,1,2],[0,1,1,1],[0,0,1,0],[0,14,0,15],[0,11,0,13],[0,16,0,17],[0,4,1,4],[0,3,1,3]]}
["Α/Α","Δασικό είδος","Συνολική έκταση (ha)","ΒΕ","Βαθμός εδαφο-κάλυψης (%)","ΜΗ ΞΥΛΩΔΗ ΔΑΣΙΚΑ ΠΡΟΪΟΝΤΑ",null,null,null,"ΕΚΤΑΣΗ ΠΟΥ ΔΕΝ ΕΠΙΤΡΕΠΕΤΑΙ ΜΟΝΙΜΑ",null,"Μέση κλίση (%)",null,null,"Υψόμετρο",null,"ΔΙΑΒΡΩΣΗ ΕΔΑΦΟΥΣ: Κατηγορίες",null,"ΔΕΣΜΕΥΣΗ ΑΝΘΡΑΚΑ ΚΑΙ ΒΙΟΠΟΙΚΙΛΟΤΗΤΑΣ: Κατηγορίες"]
[null,null,null,null,null,"Ρη-τίνη","Μανι-τάρια","Μέλι","Λοι-πά","Βόσκηση (ha)","Κυνήγι (ha)","από GIS","επιλογή","από τύπο","max","min","Πετρώματος","Βλάστησης","Για συν/τή BEF","Για συν/τη φυσικότητας",null,null,"Μέλι","Δασικά είδη",null,"Γεωλογικοί σχηματισμοί",null,"Κατηγορίες συντ/τη BEF",null,"Κατηγορίες συντ/τη φυσικότητας Ν",null,null,{"$f":"IF(OR(B3=\"Ελάτη\",B3=\"Ερυθρελάτη\",B3=\"Πεύκη Χαλέπιος ή Τραχεία\",B3=\"Πεύκη Λοιπά\",B3=\"Αείφυλλα πλατύφυλλα\"),$AI$4:$AK$4,IF(OR(B3=\"Οξυά\",B3=\"Δρυς\",B3=\"Λοιπά πλατύφυλλα\"),$AI$8:$AJ$8,$AI$15:$AK$15))","v":{"$error":"#VALUE!"}}]
[1,null,null,{"$f":"IF(E3=\"\",1,VLOOKUP(E3,AB$15:AC$23,2,FALSE))","v":1},{"$f":"IF(C3>0,\"90-100%\",\"\")","v":""},{"$f":"IF(B3=\"\",0,IF(B3=\"Πεύκη χαλέπιος ή τραχεία\",TRUE,FALSE))","v":0},{"$f":"IF(B3=\"\",0,NOT(OR(B3=\"Φρύγανα\",B3=\"Χορτολίβαδα>800 m\",B3=\"Χορτολίβαδα<800 m\",B3=\"Άγονη / βραχώδης έκταση\",F3=TRUE)))","v":0},{"$f":"IF(B3=\"\",0,NOT(OR(C3=\"Άγονη / βραχώδης έκταση\")))","v":0},"ΝΑΙ",null,null,null,{"$f":"IF(L3=\"\",IF(N3=0,0,IF(N3>90,\">90%\",IF(N3>60,\"60-90%\",IF(N3>40,\"40-60%\",IF(N3>25,\"25-40%\",\"0-25%\"))))),L3)","v":0},{"$f":"IF(C3>0,IF(L3=\"\",(O3-P3)/C3^0.5,\"Δ/Α\"),0)","v":0},null,null,{"$f":"IF(B3=\"Άγονη / βραχώδης έκταση\",\"Δεν απαιτείται\",\"\")","v":""},{"$f":"IF(B3=\"Άγονη / βραχώδης έκταση\",\"Επιφάνεια χωρίς φυτοκάλυψη\",\"\")","v":""},{"$f":"IF(OR(B3=\"Φρύγανα\",B3=\"Χορτολίβαδα>800 m\",B3=\"Χορτολίβαδα<800 m\",B3=\"Άγονη / βραχώδης έκταση\"),\"ΔΕΝ ΑΠΑΙΤΕΙΤΑΙ\",\"\")","v":""},{"$f":"IF(OR(B3=\"Φρύγανα\",B3=\"Χορτολίβαδα>800 m\",B3=\"Χορτολίβαδα<800 m\",B3=\"Άγονη / βραχώδης έκταση\"),\"Θάμνοι και Μεσογειακά maquis\",\"\")","v":""},null,null,{"$f":"IF(B3=\"Άγονη / βραχώδης έκταση\",0.3,1)","v":1},{"$f":"'2.ΒΑΣΙΚΕΣ ΤΙΜΕΣ'!A6","v":"Ελάτη"},null,"Σκληρά πετρώματα, ανθεκτικά στη διάβρωση",null,"A (Δάση σφενδάμου\nΥγρόφιλα παρόχθια δάση\nΥψηλά δάση δρυός σε χαμηλά υψόμετρα\nΥψηλά δάση οξυάς ή σημύδας)",null,"Φυτείες ξενικών ειδών",null,null,null,"ΕΙΔΟΣ ΚΑΙ ΔΙΑΒΡΩΣΗ","Μικτές δασοσυστάδες και πυκνοί θαμνώνες ή δασοσυστάδες αραιές με υπόροφο ","Δασοσυστάδες κωνοφόρων με υπόροφο ασθενή ή θαμνώνες όχι σύμπυκνοι ","Δασοσυστάδες και θαμνώνες υποβαθμισμένοι, λιβάδια ","Λιβάδια και εδάφη καλλιεργούμενα, υποβαθμισμένα ","Επιφάνεια χωρίς φυτοκάλυψη "]
[2,null,null,{"$f":"IF(E4=\"\",1,VLOOKUP(E4,AB$15:AC$23,2,FALSE))","v":1},"",{"$f":"IF(B4=\"\",0,IF(B4=\"Πεύκη χαλέπιος ή τραχεία\",TRUE,FALSE))","v":0},{"$f":"IF(B4=\"\",0,NOT(OR(B4=\"Φρύγανα\",B4=\"Χορτολίβαδα>800 m\",B4=\"Χορτολίβαδα<800 m\",B4=\"Άγονη / βραχώδης έκταση\",F4=TRUE)))","v":0},{"$f":"IF(B4=\"\",0,NOT(OR(C4=\"Άγονη / βραχώδης έκταση\")))","v":0},null,null,null,null,{"$f":"IF(L4=\"\",IF(N4=0,0,IF(N4>90,\">90%\",IF(N4>60,\"60-90%\",IF(N4>40,\"40-60%\",IF(N4>25,\"25-40%\",\"0-25%\"))))),L4)","v":0},0,null,null,{"$f":"IF(B4=\"Άγονη / βραχώδης έκταση\",\"Δεν απαιτείται\",\"\")","v":""},{"$f":"IF(B4=\"Άγονη / βραχώδης έκταση\",\"Επιφάνεια χωρίς φυτοκάλυψη\",\"\")","v":""},{"$f":"IF(OR(B4=\"Φρύγανα\",B4=\"Χορτολίβαδα>800 m\",B4=\"Χορτολίβαδα<800 m\",B4=\"Άγονη / βραχώδης έκταση\"),\"ΔΕΝ ΑΠΑΙΤΕΙΤΑΙ\",\"\")","v":""},{"$f":"IF(OR(B4=\"Φρύγανα\",B4=\"Χορτολίβαδα>800 m\",B4=\"Χορτολίβαδα<800 m\",B4=\"Άγονη / βραχώδης έκταση\"),\"Θάμνοι και Μεσογειακά maquis\",\"\")","v":""},null,null,{"$f":"IF(B4=\"Άγονη / βραχώδης έκταση\",0.3,1)","v":1},{"$f":"'2.ΒΑΣΙΚΕΣ ΤΙΜΕΣ'!A7","v":"Ερυθρελάτη"},null,"Πετρώματα μετρίως ανθεκτικά στη διάβρωση ",null,"B (Υψηλά δάση δρυός (Q. petreae, Q.pubescens, Q.cerris)\nΑειθαλή υψηλά δάση δρυός)",null,"Μονοκαλλιέργεια πρεμνοφυών δασών που διαχειρίζονται τακτικά  (ηλικία μικρότερη 1.5t*)",null,null,null,"Ελάτη","Μικτές δασοσυστάδες και πυκνοί θαμνώνες ή δασοσυστάδες αραιές με υπόροφο ","Δασοσυστάδες κωνοφόρων με υπόροφο ασθενή ή θαμνώνες όχι σύμπυκνοι ","Δασοσυστάδες και θαμνώνες υποβαθμισμένοι, λιβάδια "]
[3,null,null,1,"",0,0,0,null,null,null,null,0,0,null,null,"",{"$f":"IF(B5=\"Άγονη / βραχώδης έκταση\",\"Δεν απαιτείται\",\"\")","v":""},"","",null,null,1,"Πεύκη Χαλέπιος ή Τραχεία",null,"Εύθρυπτα πετρώματα ",null,"C (Δάση ερυθρελάτης ή ελάτης\nΜεικτά δάση ελάτης και ερυθρελάτης\nΔάση δασικής ή μαύρης πεύκης)",null,"Μικτά πρεμνοφυή δάση που διαχειρίζονται τακτικά (ηλικία μικρότερη  1.5t*)",null,null,null,"Ερυθρελάτη","Μικτές δασοσυστάδες και πυκνοί θαμνώνες ή δασοσυστάδες αραιές με υπόροφο ","Δασοσυστάδες κωνοφόρων με υπόροφο ασθενή ή θαμνώνες όχι σύμπυκνοι ","Δασοσυστάδες και θαμνώνες υποβαθμισμένοι, λιβάδια "]
[4,null,null,1,"",0,0,0,null,null,null,null,0,0,null,null,"","","","",null,null,1,"Πεύκη λοιπά",null,"Αποθέσεις, μορένες, άργιλοι, ψαμμόλιθοι και άλλα ανθεκτικά πετρώματα",null,"D (Λοφώδη και επίπεδα δάση δασικής πεύκης\nΔάση τραχείας και λευκόδερμου πεύκης \nΛοφώδη δάση μαύρης πεύκης\nΜεσογειακά δάση πεύκης\nΆλλα δάση κωνοφόρων)",null,"Θάμνοι και Μεσογειακά maquis",null,null,null,"Πεύκη Χαλέπιος ή Τραχεία","Μικτές δασοσυστάδες και πυκνοί θαμνώνες ή δασοσυστάδες αραιές με υπόροφο ","Δασοσυστάδες κωνοφόρων με υπόροφο ασθενή ή θαμνώνες όχι σύμπυκνοι ","Δασοσυστάδες και θαμνώνες υποβαθμισμένοι, λιβάδια "]
[5,null,null,1,"",0,0,0,null,null,null,null,0,0,null,null,"","","","",null,null,1,"Οξυά",null,"Πολύ ευαίσθητα στη διάβρωση πετρώματα και εδάφη ",null,"E (Πρεμνοφυή δάση οξυάς ή καστανιάς ή γαύρου)",null,"Σύνθετα πρεμνοφυή δάση",null,null,null,"Πεύκη λοιπά","Μικτές δασοσυστάδες και πυκνοί θαμνώνες ή δασοσυστάδες αραιές με υπόροφο ","Δασοσυστάδες κωνοφόρων με υπόροφο ασθενή ή θαμνώνες όχι σύμπυκνοι ","Δασοσυστάδες και θαμνώνες υποβαθμισμένοι, λιβάδια "]
[6,null,null,1,"",0,0,0,null,null,null,null,0,0,null,null,"","","","",null,null,1,"Δρυς",null,null,null,"F (Πρεμνοφυή δάση δρυός (Q.petreae, Q. pubescens, Q. aegilops, Q. frainetto, Q. trojana)\nΠρεμνοφυή δάση οστριάς\nΠρεμνοφυή αειθαλή δάση δρυός)",null,"Πρεμνοφυή δάση υπό αναγωγή σε υψηλά δάση",null,null,null,"Οξυά","Μικτές δασοσυστάδες και πυκνοί θαμνώνες ή δασοσυστάδες αραιές με υπόροφο ","Δασοσυστάδες και θαμνώνες υποβαθμισμένοι, λιβάδια "]
[7,null,null,1,"",0,0,0,null,null,null,null,0,0,null,null,"","","","",null,null,1,"Λοιπά πλατύφυλλα",null,"Κατηγορίες βλάστησης",null,"G (Μεσογειακά δάση αειφύλλων πλατυφύλλων)",null,"Μονοκαλλιέργεια υψηλών δασών",null,null,null,"Δρυς","Μικτές δασοσυστάδες και πυκνοί θαμνώνες ή δασοσυστάδες αραιές με υπόροφο ","Δασοσυστάδες και θαμνώνες υποβαθμισμένοι, λιβάδια "]
[8,null,null,1,"",0,0,0,null,null,null,null,0,0,null,null,"","","","",null,null,1,"Αείφυλλα πλατύφυλλα",null,"Μικτές δασοσυστάδες και πυκνοί θαμνώνες ή δασοσυστάδες αραιές με υπόροφο ",null,"H (Δάση πλατύφυλλων με μέσο ύψος <3,5 m)",null,"Μεικτά υψηλά δάση",null,null,null,"Λοιπά πλατύφυλλα","Μικτές δασοσυστάδες και πυκνοί θαμνώνες ή δασοσυστάδες αραιές με υπόροφο ","Δασοσυστάδες και θαμνώνες υποβαθμισμένοι, λιβάδια "]
[9,null,null,1,"",0,0,0,null,null,null,null,0,0,null,null,"","","","",null,null,1,"Φρύγανα",null,"Δασοσυστάδες κωνοφόρων με υπόροφο ασθενή ή θαμνώνες όχι σύμπυκνοι ",null,"I (Δάση κωνοφόρων  με μέσο ύψος <3,5 m)",null,"Αναδασώσεις στη φάση μετατροπής σε φυσικό δάσος",null,null,null,"Αείφυλλα πλατύφυλλα","Μικτές δασοσυστάδες και πυκνοί θαμνώνες ή δασοσυστάδες αραιές με υπόροφο ","Δασοσυστάδες κωνοφόρων με υπόροφο ασθενή ή θαμνώνες όχι σύμπυκνοι ","Δασοσυστάδες και θαμνώνες υποβαθμισμένοι, λιβάδια "]
[10,null,null,1,"",0,0,0,null,null,null,null,0,0,null,null,"","","","",null,null,1,"Χορτολίβαδα>800 m",null,"Δασοσυστάδες και θαμνώνες υποβαθμισμένοι, λιβάδια ",null,"Άλλο",null,"Πολυώροφα μεικτά υψηλά δάση και παρόχθια δάση",null,null,null,"Φρύγανα","Δασοσυστάδες και θαμνώνες υποβαθμισμένοι, λιβάδια ","Λιβάδια και εδάφη καλλιεργούμενα, υποβαθμισμένα "]
[11,null,null,1,"",0,0,0,null,null,null,null,0,0,null,null,"","","","",null,null,1,"Χορτολίβαδα<800 m",null,"Λιβάδια και εδάφη καλλιεργούμενα, υποβαθμισμένα ",null,null,null,"Παρθένα ή αρχέγονα δάση",null,null,null,"Χορτολίβαδα>800 m","Δασοσυστάδες και θαμνώνες υποβαθμισμένοι, λιβάδια ","Λιβάδια και εδάφη καλλιεργούμενα, υποβαθμισμένα "]
[12,null,null,1,"",0,0,0,null,null,null,null,0,0,null,null,"","","","",null,null,1,"Άγονη / βραχώδης έκταση",null,"Επιφάνεια χωρίς φυτοκάλυψη ",null,"Β.Ε",null,"Άλλο",null,null,null,"Χορτολίβαδα<800 m","Δασοσυστάδες και θαμνώνες υποβαθμισμένοι, λιβάδια ","Λιβάδια και εδάφη καλλιεργούμενα, υποβαθμισμένα "]
[13,null,null,1,"",0,0,0,null,null,null,null,0,0,null,null,"","","","",null,null,1,null,null,null,null,"90-100%",1,null,null,null,null,"Άγονη / βραχώδης έκταση","Δασοσυστάδες και θαμνώνες υποβαθμισμένοι, λιβάδια ","Λιβάδια και εδάφη καλλιεργούμενα, υποβαθμισμένα ","Επιφάνεια χωρίς φυτοκάλυψη "]
[14,null,null,1,"",0,0,0,null,null,null,null,0,0,null,null,"","","","",null,null,1,"Κατηγορίες κλίσεων",null,"ΝΑΙ",null,"80-90%",0.9,null,null,null,{"$f":"IF(OR(B3=\"Ελάτη\",B3=\"Ερυθρελάτη\"),$AI$18:$AJ$18,IF(B3=\"Πεύκη Χαλέπιος ή Τραχεία\",$AI$20:$AJ$20,IF(B3=\"Πεύκη Λοιπά\",$AI$21:$AK$21,IF(B3=\"Οξυά\",$AI$22:$AK$22,IF(B3=\"Δρυς\",$AI$23:$AL$23,IF(B3=\"Λοιπά πλατύφυλλα\",$AI$24:$AL$24,IF(B3=\"Αείφυλλα πλατύφυλλα\",$AI$25,$AI$17:$AR$17)))))))","v":{"$error":"#VALUE!"}},{"$f":"IF(OR(B3=\"Ελάτη\",B3=\"Ερυθρελάτη\"),$AI$18:$AJ$18,IF(B3=\"Πεύκη Χαλέπιος ή Τραχεία\",$AI$20:$AJ$20,IF(B3=\"Πεύκη Λοιπά\",$AI$21:$AK$21,IF(B3=\"Οξυά\",$AI$22:$AK$22,IF(B3=\"Δρυς\",$AI$23:$AL$23,IF(B3=\"Αείφυλλα πλατύφυλλα\",$AI$25,$AI$17:$AR$17))))))","v":{"$error":"#VALUE!"}}]
[15,null,null,1,"",0,0,0,null,null,null,null,0,0,null,null,"","","","",null,null,1,"0-25%",null,"ΌΧΙ",null,"70-80%",0.8,null,null,null,null,"ΕΙΔΟΣ ΚΑΙ BEF","A (Δάση σφενδάμου\nΥγρόφιλα παρόχθια δάση\nΥψηλά δάση δρυός σε χαμηλά υψόμετρα\nΥψηλά δάση οξυάς ή σημύδας)","B (Υψηλά δάση δρυός (Q. petreae, Q.pubescens, Q.cerris)\nΑειθαλή υψηλά δάση δρυός)","C (Δάση ερυθρελάτης ή ελάτης\nΜεικτά δάση ελάτης και ερυθρελάτης\nΔάση δασικής ή μαύρης πεύκης)","D (Λοφώδη και επίπεδα δάση δασικής πεύκης\nΔάση τραχείας και λευκόδερμου πεύκης \nΛοφώδη δάση μαύρης πεύκης\nΜεσογειακά δάση πεύκης\nΆλλα δάση κωνοφόρων)","E (Πρεμνοφυή δάση οξυάς ή καστανιάς ή γαύρου)","F (Πρεμνοφυή δάση δρυός (Q.petreae, Q. pubescens, Q. aegilops, Q. frainetto, Q. trojana)\nΠρεμνοφυή δάση οστριάς\nΠρεμνοφυή αειθαλή δάση δρυός)","G (Μεσογειακά δάση αειφύλλων πλατυφύλλων)","H (Δάση πλατύφυλλων με μέσο ύψος <3,5 m)","I (Δάση κωνοφόρων  με μέσο ύψος <3,5 m)","Άλλο"]
[16,null,null,1,"",0,0,0,null,null,null,null,0,0,null,null,"","","","",null,null,1,"25-40%",null,null,null,"60-70%",0.7,null,null,null,null,"Ελάτη","C (Δάση ερυθρελάτης ή ελάτης\nΜεικτά δάση ελάτης και ερυθρελάτης\nΔάση δασικής ή μαύρης πεύκης)","I (Δάση κωνοφόρων  με μέσο ύψος <3,5 m)"]
[17,null,null,1,"",0,0,0,null,null,null,null,0,0,null,null,"","","","",null,null,1,"40-60%",null,null,null,"50-60%",0.6,null,null,null,null,"Ερυθρελάτη","C (Δάση ερυθρελάτης ή ελάτης\nΜεικτά δάση ελάτης και ερυθρελάτης\nΔάση δασικής ή μαύρης πεύκης)","I (Δάση κωνοφόρων  με μέσο ύψος <3,5 m)"]
[18,null,null,1,"",0,0,0,null,null,null,null,0,0,null,null,"","","","",null,null,1,"60-90%",null,null,null,"40-50%",0.5,null,null,null,null,"Πεύκη Χαλέπιος ή Τραχεία","D (Λοφώδη και επίπεδα δάση δασικής πεύκης\nΔάση τραχείας και λευκόδερμου πεύκης \nΛοφώδη δάση μαύρης πεύκης\nΜεσογειακά δάση πεύκης\nΆλλα δάση κωνοφόρων)","I (Δάση κωνοφόρων  με μέσο ύψος <3,5 m)"]
[19,null,null,1,"",0,0,0,null,null,null,null,0,0,null,null,"","","","",null,null,1,">90%",null,null,null,"30-40%",0.4,null,null,null,null,"Πεύκη λοιπά","C (Δάση ερυθρελάτης ή ελάτης\nΜεικτά δάση ελάτης και ερυθρελάτης\nΔάση δασικής ή μαύρης πεύκης)","D (Λοφώδη και επίπεδα δάση δασικής πεύκης\nΔάση τραχείας και λευκόδερμου πεύκης \nΛοφώδη δάση μαύρης πεύκης\nΜεσογειακά δάση πεύκης\nΆλλα δάση κωνοφόρων)","I (Δάση κωνοφόρων  με μέσο ύψος <3,5 m)"]
[20,null,null,1,"",0,0,0,null,null,null,null,0,0,null,null,"","","","",null,null,1,null,null,null,null,"20-30%",0.3,null,null,null,null,"Οξυά","A (Δάση σφενδάμου\nΥγρόφιλα παρόχθια δάση\nΥψηλά δάση δρυός σε χαμηλά υψόμετρα\nΥψηλά δάση οξυάς ή σημύδας)","E (Πρεμνοφυή δάση οξυάς ή καστανιάς ή γαύρου)","H (Δάση πλατύφυλλων με μέσο ύψος <3,5 m)"]
[null,null,{"$f":"SUM(C3:C22)","v":0},null,null,null,null,null,null,null,null,null,null,null,null,null,null,null,"ΑΠΟΤΕΛΕΣΜΑΤΑ",null,null,null,null,null,null,null,null,"10-20%",0.2,null,null,null,null,"Δρυς","A (Δάση σφενδάμου\nΥγρόφιλα παρόχθια δάση\nΥψηλά δάση δρυός σε χαμηλά υψόμετρα\nΥψηλά δάση οξυάς ή σημύδας)","B (Υψηλά δάση δρυός (Q. petreae, Q.pubescens, Q.cerris)\nΑειθαλή υψηλά δάση δρυός)","F (Πρεμνοφυή δάση δρυός (Q.petreae, Q. pubescens, Q. aegilops, Q. frainetto, Q. trojana)\nΠρεμνοφυή δάση οστριάς\nΠρεμνοφυή αειθαλή δάση δρυός)","H (Δάση πλατύφυλλων με μέσο ύψος <3,5 m)"]
[null,null,null,null,null,null,null,null,null,null,null,null,null,null,null,null,null,null,null,null,null,null,null,null,null,null,null,null,null,null,null,null,null,"Λοιπά πλατύφυλλα","A (Δάση σφενδάμου\nΥγρόφιλα παρόχθια δάση\nΥψηλά δάση δρυός σε χαμηλά υψόμετρα\nΥψηλά δάση οξυάς ή σημύδας)","E (Πρεμνοφυή δάση οξυάς ή καστανιάς ή γαύρου)","F (Πρεμνοφυή δάση δρυός (Q.petreae, Q. pubescens, Q. aegilops, Q. frainetto, Q. trojana)\nΠρεμνοφυή δάση οστριάς\nΠρεμνοφυή αειθαλή δάση δρυός)","H (Δάση πλατύφυλλων με μέσο ύψος <3,5 m)"]
[null,null,null,null,null,null,null,null,null,null,null,null,null,null,null,null,null,null,null,null,null,null,null,null,null,null,null,null,null,null,null,null,null,"Αείφυλλα πλατύφυλλα","G (Μεσογειακά δάση αειφύλλων πλατυφύλλων)"]
[null,null,null,null,null,null,null,null,null,null,null,null,null,null,null,null,null,null,null,null,null,null,null,null,null,null,null,null,null,null,null,null,null,"Φρύγανα"]
[null,null,null,null,null,null,null,null,null,null,null,null,null,null,null,null,null,null,null,null,null,null,null,null,null,null,null,null,null,null,null,null,null,"Χορτολίβαδα>800 m"]
[null,null,null,null,null,null,null,null,null,null,null,null,null,null,null,null,null,null,null,null,null,null,null,null,null,null,null,null,null,null,null,null,null,"Χορτολίβαδα<800 m"]
[null,null,null,null,null,null,null,null,null,null,null,null,null,null,null,null,null,null,null,null,null,null,null,null,null,null,null,null,null,null,null,null,null,"Άγονη / βραχώδης έκταση"]
[null,null,null,null,null,null,null,null,null,null,null,null,null,null,null,null,null,null,null,null,null,null,null,null,null,null,null,null,null,null,null,null,{"$f":"IF(OR(B3=\"Ελάτη\",B3=\"Ερυθρελάτη\",B3=\"Πεύκη Χαλέπιος ή Τραχεία\",B3=\"Πεύκη Λοιπά\"),$AI$32:$AM$32,IF(OR(B3=\"Οξυά\",B3=\"Δρυς\",B3=\"Λοιπά πλατύφυλλα\"),$AI$36:$AO$36,IF(B3=\"Αείφυλλα πλατύφυλλα\",$AI$39:$AJ$39,$AI$31:$AS$31)))","v":{"$error":"#VALUE!"}}]
[null,null,null,null,null,null,null,null,null,null,null,null,null,null,null,null,null,null,null,null,null,null,null,null,null,null,null,null,null,null,null,null,null,"ΕΙΔΟΣ ΚΑΙ Ν","Φυτείες ξενικών ειδών","Μονοκαλλιέργεια πρεμνοφυών δασών που διαχειρίζονται τακτικά  (ηλικία μικρότερη 1.5t*)","Μικτά πρεμνοφυή δάση που διαχειρίζονται τακτικά (ηλικία μικρότερη  1.5t*)","Θάμνοι και Μεσογειακά maquis","Σύνθετα πρεμνοφυή δάση","Πρεμνοφυή δάση υπό αναγωγή σε υψηλά δάση","Μονοκαλλιέργεια υψηλών δασών","Μεικτά υψηλά δάση","Αναδασώσεις στη φάση μετατροπής σε φυσικό δάσος","Πολυώροφα μεικτά υψηλά δάση και παρόχθια δάση","Παρθένα ή αρχέγονα δάση","Άλλο"]
[null,null,null,null,null,null,null,null,null,null,null,null,null,null,null,null,null,null,null,null,null,null,null,null,null,null,null,null,null,null,null,null,null,"Ελάτη","Μονοκαλλιέργεια υψηλών δασών","Μεικτά υψηλά δάση","Αναδασώσεις στη φάση μετατροπής σε φυσικό δάσος","Πολυώροφα μεικτά υψηλά δάση και παρόχθια δάση","Παρθένα ή αρχέγονα δάση"]
[null,null,null,null,null,null,null,null,null,null,null,null,null,null,null,null,null,null,null,null,null,null,null,null,null,null,null,null,null,null,null,null,null,"Ερυθρελάτη","Μονοκαλλιέργεια υψηλών δασών","Μεικτά υψηλά δάση","Αναδασώσεις στη φάση μετατροπής σε φυσικό δάσος","Πολυώροφα μεικτά υψηλά δάση και παρόχθια δάση","Παρθένα ή αρχέγονα δάση"]
[null,null,null,null,null,null,null,null,null,null,null,null,null,null,null,null,null,null,null,null,null,null,null,null,null,null,null,null,null,null,null,null,null,"Πεύκη Χαλέπιος ή Τραχεία","Μονοκαλλιέργεια υψηλών δασών","Μεικτά υψηλά δάση","Αναδασώσεις στη φάση μετατροπής σε φυσικό δάσος","Πολυώροφα μεικτά υψηλά δάση και παρόχθια δάση","Παρθένα ή αρχέγονα δάση"]
[null,null,null,null,null,null,null,null,null,null,null,null,null,null,null,null,null,null,null,null,null,null,null,null,null,null,null,null,null,null,null,null,null,"Πεύκη λοιπά","Μονοκαλλιέργεια υψηλών δασών","Μεικτά υψηλά δάση","Αναδασώσεις στη φάση μετατροπής σε φυσικό δάσος","Πολυώροφα μεικτά υψηλά δάση και παρόχθια δάση","Παρθένα ή αρχέγονα δάση"]
[null,null,null,null,null,null,null,null,null,null,null,null,null,null,null,null,null,null,null,null,null,null,null,null,null,null,null,null,null,null,null,null,null,"Οξυά","Μονοκαλλιέργεια πρεμνοφυών δασών που διαχειρίζονται τακτικά  (ηλικία μικρότερη 1.5t*)","Μικτά πρεμνοφυή δάση που διαχειρίζονται τακτικά (ηλικία μικρότερη  1.5t*)","Σύνθετα πρεμνοφυή δάση","Πρεμνοφυή δάση υπό αναγωγή σε υψηλά δάση","Μεικτά υψηλά δάση","Πολυώροφα μεικτά υψηλά δάση και παρόχθια δάση","Παρθένα ή αρχέγονα δάση"]
[null,null,null,null,null,null,null,null,null,null,null,null,null,null,null,null,null,null,null,null,null,null,null,null,null,null,null,null,null,null,null,null,null,"Δρυς","Μονοκαλλιέργεια πρεμνοφυών δασών που διαχειρίζονται τακτικά  (ηλικία μικρότερη 1.5t*)","Μικτά πρεμνοφυή δάση που διαχειρίζονται τακτικά (ηλικία μικρότερη  1.5t*)","Σύνθετα πρεμνοφυή δάση","Πρεμνοφυή δάση υπό αναγωγή σε υψηλά δάση","Μεικτά υψηλά δάση","Πολυώροφα μεικτά υψηλά δάση και παρόχθια δάση","Παρθένα ή αρχέγονα δάση"]
[null,null,null,null,null,null,null,null,null,null,null,null,null,null,null,null,null,null,null,null,null,null,null,null,null,null,null,null,null,null,null,null,null,"Λοιπά πλατύφυλλα","Μονοκαλλιέργεια πρεμνοφυών δασών που διαχειρίζονται τακτικά  (ηλικία μικρότερη 1.5t*)","Μικτά πρεμνοφυή δάση που διαχειρίζονται τακτικά (ηλικία μικρότερη  1.5t*)","Σύνθετα πρεμνοφυή δάση","Μεικτά υψηλά δάση","Πολυώροφα μεικτά υψηλά δάση και παρόχθια δάση","Παρθένα ή αρχέγονα δάση"]
[null,null,null,null,null,null,null,null,null,null,null,null,null,null,null,null,null,null,null,null,null,null,null,null,null,null,null,null,null,null,null,null,null,"Αείφυλλα πλατύφυλλα","Θάμνοι και Μεσογειακά maquis","Παρθένα ή αρχέγονα δάση"]
[null,null,null,null,null,null,null,null,null,null,null,null,null,null,null,null,null,null,null,null,null,null,null,null,null,null,null,null,null,null,null,null,null,"Φρύγανα","Άλλο"]
[null,null,null,null,null,null,null,null,null,null,null,null,null,null,null,null,null,null,null,null,null,null,null,null,null,null,null,null,null,null,null,null,null,"Χορτολίβαδα>800 m","Άλλο"]
[null,null,null,null,null,null,null,null,null,null,null,null,null,null,null,null,null,null,null,null,null,null,null,null,null,null,null,null,null,null,null,null,null,"Χορτολίβαδα<800 m","Άλλο"]
[null,null,null,null,null,null,null,null,null,null,null,null,null,null,null,null,null,null,null,null,null,null,null,null,null,null,null,null,null,null,null,null,null,"Άγονη / βραχώδης έκταση","Άλλο"]

{"sheet":"1β.ΜΞΔΠ","index":2,"n_rows":38,"n_cols":16,"rows_kept":38,"cut":false,"hidden":false,"merged":[[26,0,26,3],[0,13,1,13],[1,1,2,1],[1,0,2,0],[0,0,0,6],[0,11,1,11],[0,12,1,12],[1,6,2,6]]}
["ΔΕΛΤΙΟ ΚΑΤΑΓΡΑΦΗΣ ΛΟΙΠΩΝ ΜΗ ΞΥΛΩΔΩΝ ΔΑΣΙΚΩΝ ΠΡΟΪΟΝΤΩΝ",null,null,null,null,null,null,null,null,null,null,"ΕΙΔΟΣ","ΜΟΝΑΔΑ","ΠΟΣΟΤΗΤΑ (ΜΕΣΟΣ ΕΤΗΣΙΟΣ)","ΤΙΜΗ","ΑΞΙΑ"]
["Προϊόν","μ/μ","Ποσότητα","Τιμή","Έκταση","Αξία","Παρατηρήσεις",null,null,null,null,null,null,null,"€/μονάδα","€"]
[null,null,"ανά ha","€ ανά μ/μ","ha","€",null,null,null,null,{"$f":"'1α.ΔΕΛΤΙΟ ΔΕΔΟΜΕΝΩΝ'!C23","v":0},"αγριοτριανταφυλλιάς καρποί","kgr.",41.67,0.64,26.57]
[null,{"$f":"IF(A4=\"\",\"\",VLOOKUP(A4,L:M,2,FALSE))","v":""},null,{"$f":"IF(A4=\"\",0,VLOOKUP(A4,L:O,4,FALSE))","v":0},null,{"$f":"C4*D4*E4","v":0},{"$f":"IF(F4=0,\"\",IF(F4/E4>500,\"ΠΡΟΣΟΧΗ! Υπερβολικά υψηλή τιμή\",\"\"))","v":""},null,null,null,null,"άνθη φιλύρας","kgr.",1.75,4.2,7.35]
[null,{"$f":"IF(A5=\"\",\"\",VLOOKUP(A5,L:M,2,FALSE))","v":""},null,{"$f":"IF(A5=\"\",0,VLOOKUP(A5,L:O,4,FALSE))","v":0},null,{"$f":"C5*D5*E5","v":0},{"$f":"IF(F5=0,\"\",IF(F5/E5>500,\"ΠΡΟΣΟΧΗ! Υπερβολικά υψηλή τιμή\",\"\"))","v":""},null,null,null,null,"βελανίδια","kgr."]
[null,"",null,0,null,0,{"$f":"IF(F6=0,\"\",IF(F6/E6>500,\"ΠΡΟΣΟΧΗ! Υπερβολικά υψηλή τιμή\",\"\"))","v":""},null,null,null,null,"δαδί","kgr.",11622.67,0.16,1859.5]
[null,"",null,0,null,0,"",null,null,null,null,"δαφνόφυλλα","kgr.",150,0.18,27]
[null,"",null,0,null,0,"",null,null,null,null,"Ιξός","kgr.",241.83,0.11,26.56]
[null,"",null,0,null,0,"",null,null,null,null,"καλδοι μυρτιάς- κουμαριάς","kgr.",4650,0.1,465]
[null,"",null,0,null,0,"",null,null,null,null,"Καλλωπιστικοί κλώνοι ελάτης","kgr.",300,0.04,12]
[null,"",null,0,null,0,"",null,null,null,null,"καπνόβεργες καστανιάς","kgr.",350,0.23,80.5]
[null,"",null,0,null,0,"",null,null,null,null,"καρποί βατομουριάς","kgr.",10,0.64,6.4]
[null,"",null,0,null,0,"",null,null,null,null,"καρποί κορομηλιάς","kgr.",1.67,0.64,1.76]
[null,"",null,0,null,0,"",null,null,null,null,"καρποί μυρτιάς","kgr.",33.33,0.64,21.33]
[null,"",null,0,null,0,"",null,null,null,null,"καρπούς κρανιάς","kgr.",185,0.64,118.4]
[null,"",null,0,null,0,"",null,null,null,null,"καστανόχωμα","kgr.",200,0.28999999999999998,58]
[null,"",null,0,null,0,"",null,null,null,null,"κλάδοι αρκουδοπούρναρου","kgr.",3743.67,0.21,786.17]
[null,"",null,0,null,0,"",null,null,null,null,"κλάδοι πυξού","kgr.",800,0.1,80]
[null,"",null,0,null,0,"",null,null,null,null,"κλαδοι σχινου","kgr.",83.33,0.1,9.34]
[null,"",null,0,null,0,"",null,null,null,null,"κλώνοι ελάτης","kgr.",4825.17,0.16,772.32]
["ΛΟΙΠΑ (Περιγράψτε)",null,null,null,null,0,null,null,null,null,null,"λαδανιά (cistus incanus)","kgr.",2666.67,"0.44",1173.33]
[null,"",null,null,null,0,{"$f":"IF(F22=0,\"\",IF(F22/E22>500,\"ΠΡΟΣΟΧΗ! Υπερβολικά υψηλή τιμή\",\"\"))","v":""},null,null,null,null,"μέντα","kgr.",52.75,0.44,33.21]
[null,"",null,null,null,0,{"$f":"IF(F23=0,\"\",IF(F23/E23>500,\"ΠΡΟΣΟΧΗ! Υπερβολικά υψηλή τιμή\",\"\"))","v":""},null,null,null,null,"μύκητες","kgr.",100,0.78,78]
[null,"",null,null,null,0,"",null,null,null,null,"ξυλάνθρακες","kgr.",239685.33,0.39,93477]
["ΣΥΝΟΛΟ",null,null,null,null,{"$f":"SUM(F4:F24)","v":0},null,null,null,null,null,"ριγανη","kgr.",201.67,0.44,88.73]
[null,null,null,null,null,null,null,null,null,null,null,"ρίζες ερείκης","kgr.",17833.330000000002,"0.27","4814.99"]
["ΜΕΤΑΦΟΡΑ ΑΠΌ ΔΕΛΤΙΟ ΔΕΔΟΜΕΝΩΝ",null,null,null,null,null,null,null,null,null,null,"σπαθόχορτο","kgr.",41.17,0.44,18.11]
[{"$f":"'1α.ΔΕΛΤΙΟ ΔΕΔΟΜΕΝΩΝ'!F2","v":"Ρη-τίνη"},{"$f":"'2.ΒΑΣΙΚΕΣ ΤΙΜΕΣ'!B22","v":"Kg"},{"$f":"'2.ΒΑΣΙΚΕΣ ΤΙΜΕΣ'!C22","v":161},{"$f":"'2.ΒΑΣΙΚΕΣ ΤΙΜΕΣ'!D22","v":0.16},null,null,"ΕΠΙΣΤΡΟΦΗ ΣΤΟ ΔΕΛΤΙΟ ΔΕΔΟΜΕΝΩΝ",null,null,null,null,"σπόροι κουκουναριάς","kgr.",null,15]
["Μανιτάρια",{"$f":"'2.ΒΑΣΙΚΕΣ ΤΙΜΕΣ'!B25","v":"Kg"},{"$f":"'2.ΒΑΣΙΚΕΣ ΤΙΜΕΣ'!C25","v":1},{"$f":"'2.ΒΑΣΙΚΕΣ ΤΙΜΕΣ'!D25","v":1.5},null,null,"ΜΕΤΑΒΑΣΗ ΣΤΟ ΦΥΛΛΟ ΑΠΟΤΕΛΕΣΜΑΤΩΝ",null,null,null,null,"τσάι βουνού","kgr.",305,0.44,134.19999999999999]
["Μέλι",{"$f":"'2.ΒΑΣΙΚΕΣ ΤΙΜΕΣ'!B27","v":"Kg"},{"$f":"'2.ΒΑΣΙΚΕΣ ΤΙΜΕΣ'!C27","v":1.59},{"$f":"'2.ΒΑΣΙΚΕΣ ΤΙΜΕΣ'!D27","v":6.44},null,null,null,null,null,null,null,"φασκόμηλο","kgr.",1.67,0.44,0.73]
[null,null,null,null,null,null,null,null,null,null,null,"φλαμούρι","kgr.",1.67,0.44,0.73]
[null,null,null,null,null,null,null,null,null,null,null,"φλοιός μαύρης πεύκης","kgr.",1620,0.18,391.6]
[null,null,null,null,null,null,null,null,null,null,null,"φτέρη","kgr.",16.670000000000002,0.12,2.7]
[null,null,null,null,null,null,null,null,null,null,null,"φυλλόχωμα","kgr.",1000,0.28999999999999998,290]
[null,null,null,null,null,null,null,null,null,null,null,"Χριστ. δέντρα  ψευδοτσούγκας","τεμ.",109,12.24,1334.2]
[null,null,null,null,null,null,null,null,null,null,null,"Χριστ. δέντρα κυπαρίσσου","τεμ.",1246,4.2,5333.2]
[null,null,null,null,null,null,null,null,null,null,null,"Χριστ. δέντρα μαύρη πεύκης","τεμ.",127,4.2,533.4]
[null,null,null,null,null,null,null,null,null,null,null,"Χριστ. δέντρα  ελάτης","τεμ.",50613,12.24,619503]

{"sheet":"2.ΒΑΣΙΚΕΣ ΤΙΜΕΣ","index":3,"n_rows":89,"n_cols":13,"rows_kept":89,"cut":false,"hidden":false,"merged":[[2,0,2,9],[52,0,52,5],[0,0,0,7],[68,2,68,3],[73,0,73,1],[61,0,61,10],[3,10,4,10],[20,4,20,8],[19,0,19,8],[35,3,38,3],[34,4,34,8],[33,0,33,8],[3,1,3,3],[3,0,4,0],[3,4,3,9],[35,4,35,8]]}
["2. ΒΑΣΙΚΕΣ ΤΙΜΕΣ"]
[]
["2.1 ΠΑΡΑΓΩΓΗ ΞΥΛΕΙΑΣ"]
["Δασοπονικό είδος","MAI (m3/ha/yr)",null,null,"Μέση περίτροπη προσαύξηση (Πίνακες Παραγωγής) (p=0,7)",null,null,null,null,null,"Τιμή πρέμνου (€/m3)"]
[null,"Απογρ. Δασών (1992)","Επεξεργ. Στοιχείων Δασ.Υπηρ.","Τιμές χρήστη","ΠΤ Ι","ΠΤ ΙΙ","ΠΤ ΙΙΙ","ΠΤ ΙV","ΠΤ V","Παρατηρήσεις"]
["Ελάτη",1.74,5.2,{"$f":"C6","v":5.2},null,null,null,null,null,"Διαχ/κή μελέτη ΠΔ Περτουλίου 4,48 m3/ha",20.39]
["Ερυθρελάτη",17.54,8.5,8.5,16.64,{"$f":"(E7+G7)/2","v":13.705},10.77,{"$f":"(G7+I7)/2","v":7.8249999999999993},4.88,"Γκατζογιάννης, 1999 (u=80)",30.96]
["Πεύκη",1.33,5.87,{"$f":"C8","v":5.87},15.3,11.9,8.9,6.3,3.9,"Μ.Πεύκη Γράμμου, u=80",10.97]
["Οξυά",2.8,6.3,6.3,8.3000000000000007,6.3,4.5,2.8,1.2,"Οξυά Αρναίας υπό αναγωγή, u=80",14.13]
["Δρυς",0.48,2.62,2.62,3.86,3.21,2.5299999999999998,1.83,1.23,"Πίν.Παραγ. Κοσσενάκη (για πρεμνοφυή) (u=20)",13.24]
["Λοιπά πλατύφυλλα",2.27,2.06,2.06,null,null,null,null,null,null,12.81]
["Αείφυλλα πλατύφυλλα",null,0.3,0.3,null,null,null,null,null,null,2.35]
["Πεύκη Χαλέπιος ή Τραχεία",null,null,{"$f":"D8","v":5.87},null,null,null,null,null,null,{"$f":"K8","v":10.97}]
["Πεύκη λοιπά",null,null,{"$f":"D8","v":5.87},null,null,null,null,null,null,{"$f":"K13","v":10.97}]
["Φρύγανα",null,null,0,null,null,null,null,null,null,0]
["Χορτολίβαδα>800 m",null,null,0,null,null,null,null,null,null,0]
["Χορτολίβαδα<800 m",null,null,0,null,null,null,null,null,null,0]
["Άγονη / βραχώδης έκταση",null,null,0,null,null,null,null,null,null,0]
[" "]
["2.2 ΜΗ ΞΥΛΩΔΗ ΔΑΣΙΚΑ ΠΡΟΪΟΝΤΑ"]
["Περιγραφή","Μ/Μ","μονάδ. / ha","€ / μονάδ.","Παρατηρήσεις",null,null,null,null,"ΤΙΜΕΣ ΜΕ ΔΥΝΑΤΟΤΗΤΑ ΕΠΙΛΟΓΗΣ ΑΠΌ ΧΡΗΣΤΗ"]
["Ρητίνη","Kg",161,0.16]
["Χριστουγεννιάτικα δένδρα","τεμάχιο",10,12.24,null,null,null,null,null,"ΤΙΜΕΣ ΑΝΑΘΕΩΡΟΥΜΕΝΕΣ ΠΕΡΙΟΔΙΚΑ","ΑΠΑΙΤΕΙΤΑΙ Η ΧΡΗΣΗ ΚΩΔΙΚΟΥ ΠΡΟΣΒΑΣΗΣ"]
["Κώνοι κουκουναριάς","Kg",337.5,15]
["Μανιτάρια κοινά","Kg",1,1.5]
["Μανιτάρια (τρούφα)","Kg",1,35]
["Μέλι","Kg",1.59,6.44]
["Βελανίδια"]
["Ρίζες ερείκης","Kg",null,0.27]
["Άλλα ΜΞΔΠ"]
[]
[]
[]
["2.3-2.4-2.5 ΒΟΣΚΗΣΗ - ΚΥΝΗΓΙ - ΑΝΑΨΥΧΗ (ετήσιες πρόσοδοι σε ευρώ/ha)"]
["Κατηγορία βλάστησης","Βόσκηση","Αναψυχή","Κυνήγι","Παρατηρήσεις"]
["Υψηλά δάση",45,94.3,1.57,"0,68 συντ/της για υψηλά δάση"]
["Αείφυλλα πλατύφυλλα",82.5,75.400000000000006]
["Φρυγανικά οικοσυστήματα",80,66]
["Χορτολιβαδικές εκτάσεις",125,47.2]
["Ελάτη",{"$f":"B36*0.68","v":30.6},{"$f":"C36","v":94.3}]
["Ερυθρελάτη",{"$f":"B40","v":30.6},{"$f":"C40","v":94.3}]
["Πεύκη",{"$f":"B41","v":30.6},{"$f":"C41","v":94.3}]
["Οξυά",30.6,94.3]
["Δρυς",30.6,94.3]
["Λοιπά πλατύφυλλα",30.6,94.3]
["Πεύκη Χαλέπιος ή Τραχεία",30.6,94.3]
["Πεύκη λοιπά",30.6,94.3]
["Φρύγανα",{"$f":"B38","v":80},{"$f":"C38","v":66}]
["Χορτολίβαδα>800 m",{"$f":"B39","v":125},{"$f":"C39","v":47.2}]
["Χορτολίβαδα<800 m",{"$f":"B49","v":125},{"$f":"C49","v":47.2}]
["Άγονη / βραχώδης έκταση",{"$f":"0.3*B38","v":24},{"$f":"C38","v":66}]
[]
["2.6 ΠΡΟΣΤΑΣΙΑ ΤΟΥ ΕΔΑΦΟΥΣ"]
["Τιμή εδάφους (€/m3)",6,"ΑΤΑΕ  2012Γ"]
["Τιμές S: Πετρώματα / κατηγορίες βλάστησης","Α","Β","Γ","Δ","Ε"]
["Σκληρά πετρώματα, ανθεκτικά στη διάβρωση",{"$f":"IF($F$54<25,'5.ΥΠΟΛΟΓΙΣΜΟΙ'!B6,IF($F$54<40,'5.ΥΠΟΛΟΓΙΣΜΟΙ'!B7,IF($F$54<60,'5.ΥΠΟΛΟΓΙΣΜΟΙ'!B8,IF($F$54<90,'5.ΥΠΟΛΟΓΙΣΜΟΙ'!B9,'5.ΥΠΟΛΟΓΙΣΜΟΙ'!B10))))","v":3.16},{"$f":"IF($F$54<25,'5.ΥΠΟΛΟΓΙΣΜΟΙ'!C6,IF($F$54<40,'5.ΥΠΟΛΟΓΙΣΜΟΙ'!C7,IF($F$54<60,'5.ΥΠΟΛΟΓΙΣΜΟΙ'!C8,IF($F$54<90,'5.ΥΠΟΛΟΓΙΣΜΟΙ'!C9,'5.ΥΠΟΛΟΓΙΣΜΟΙ'!C10))))","v":2.93},{"$f":"IF($F$54<25,'5.ΥΠΟΛΟΓΙΣΜΟΙ'!D6,IF($F$54<40,'5.ΥΠΟΛΟΓΙΣΜΟΙ'!D7,IF($F$54<60,'5.ΥΠΟΛΟΓΙΣΜΟΙ'!D8,IF($F$54<90,'5.ΥΠΟΛΟΓΙΣΜΟΙ'!D9,'5.ΥΠΟΛΟΓΙΣΜΟΙ'!D10))))","v":2.44},{"$f":"IF($F$54<25,'5.ΥΠΟΛΟΓΙΣΜΟΙ'!E6,IF($F$54<40,'5.ΥΠΟΛΟΓΙΣΜΟΙ'!E7,IF($F$54<60,'5.ΥΠΟΛΟΓΙΣΜΟΙ'!E8,IF($F$54<90,'5.ΥΠΟΛΟΓΙΣΜΟΙ'!E9,'5.ΥΠΟΛΟΓΙΣΜΟΙ'!E10))))","v":1.31},{"$f":"IF($F$54<25,'5.ΥΠΟΛΟΓΙΣΜΟΙ'!F6,IF($F$54<40,'5.ΥΠΟΛΟΓΙΣΜΟΙ'!F7,IF($F$54<60,'5.ΥΠΟΛΟΓΙΣΜΟΙ'!F8,IF($F$54<90,'5.ΥΠΟΛΟΓΙΣΜΟΙ'!F9,'5.ΥΠΟΛΟΓΙΣΜΟΙ'!F10))))","v":0}]
["Πετρώματα μετρίως ανθεκτικά στη διάβρωση ",{"$f":"IF($F$54<25,'5.ΥΠΟΛΟΓΙΣΜΟΙ'!B13,IF($F$54<40,'5.ΥΠΟΛΟΓΙΣΜΟΙ'!B14,IF($F$54<60,'5.ΥΠΟΛΟΓΙΣΜΟΙ'!B15,IF($F$54<90,'5.ΥΠΟΛΟΓΙΣΜΟΙ'!B16,'5.ΥΠΟΛΟΓΙΣΜΟΙ'!B11))))","v":8.93},{"$f":"IF($F$54<25,'5.ΥΠΟΛΟΓΙΣΜΟΙ'!C13,IF($F$54<40,'5.ΥΠΟΛΟΓΙΣΜΟΙ'!C14,IF($F$54<60,'5.ΥΠΟΛΟΓΙΣΜΟΙ'!C15,IF($F$54<90,'5.ΥΠΟΛΟΓΙΣΜΟΙ'!C16,'5.ΥΠΟΛΟΓΙΣΜΟΙ'!C11))))","v":8.2899999999999991},{"$f":"IF($F$54<25,'5.ΥΠΟΛΟΓΙΣΜΟΙ'!D13,IF($F$54<40,'5.ΥΠΟΛΟΓΙΣΜΟΙ'!D14,IF($F$54<60,'5.ΥΠΟΛΟΓΙΣΜΟΙ'!D15,IF($F$54<90,'5.ΥΠΟΛΟΓΙΣΜΟΙ'!D16,'5.ΥΠΟΛΟΓΙΣΜΟΙ'!D11))))","v":6.91},{"$f":"IF($F$54<25,'5.ΥΠΟΛΟΓΙΣΜΟΙ'!E13,IF($F$54<40,'5.ΥΠΟΛΟΓΙΣΜΟΙ'!E14,IF($F$54<60,'5.ΥΠΟΛΟΓΙΣΜΟΙ'!E15,IF($F$54<90,'5.ΥΠΟΛΟΓΙΣΜΟΙ'!E16,'5.ΥΠΟΛΟΓΙΣΜΟΙ'!E11))))","v":3.7},{"$f":"IF($F$54<25,'5.ΥΠΟΛΟΓΙΣΜΟΙ'!F13,IF($F$54<40,'5.ΥΠΟΛΟΓΙΣΜΟΙ'!F14,IF($F$54<60,'5.ΥΠΟΛΟΓΙΣΜΟΙ'!F15,IF($F$54<90,'5.ΥΠΟΛΟΓΙΣΜΟΙ'!F16,'5.ΥΠΟΛΟΓΙΣΜΟΙ'!F11))))","v":0}]
["Εύθρυπτα πετρώματα ",{"$f":"IF($F$54<25,'5.ΥΠΟΛΟΓΙΣΜΟΙ'!B20,IF($F$54<40,'5.ΥΠΟΛΟΓΙΣΜΟΙ'!B21,IF($F$54<60,'5.ΥΠΟΛΟΓΙΣΜΟΙ'!B22,IF($F$54<90,'5.ΥΠΟΛΟΓΙΣΜΟΙ'!B23,'5.ΥΠΟΛΟΓΙΣΜΟΙ'!B12))))","v":15.39},{"$f":"IF($F$54<25,'5.ΥΠΟΛΟΓΙΣΜΟΙ'!C20,IF($F$54<40,'5.ΥΠΟΛΟΓΙΣΜΟΙ'!C21,IF($F$54<60,'5.ΥΠΟΛΟΓΙΣΜΟΙ'!C22,IF($F$54<90,'5.ΥΠΟΛΟΓΙΣΜΟΙ'!C23,'5.ΥΠΟΛΟΓΙΣΜΟΙ'!C12))))","v":14.29},{"$f":"IF($F$54<25,'5.ΥΠΟΛΟΓΙΣΜΟΙ'!D20,IF($F$54<40,'5.ΥΠΟΛΟΓΙΣΜΟΙ'!D21,IF($F$54<60,'5.ΥΠΟΛΟΓΙΣΜΟΙ'!D22,IF($F$54<90,'5.ΥΠΟΛΟΓΙΣΜΟΙ'!D23,'5.ΥΠΟΛΟΓΙΣΜΟΙ'!D12))))","v":11.9},{"$f":"IF($F$54<25,'5.ΥΠΟΛΟΓΙΣΜΟΙ'!E20,IF($F$54<40,'5.ΥΠΟΛΟΓΙΣΜΟΙ'!E21,IF($F$54<60,'5.ΥΠΟΛΟΓΙΣΜΟΙ'!E22,IF($F$54<90,'5.ΥΠΟΛΟΓΙΣΜΟΙ'!E23,'5.ΥΠΟΛΟΓΙΣΜΟΙ'!E12))))","v":6.38},{"$f":"IF($F$54<25,'5.ΥΠΟΛΟΓΙΣΜΟΙ'!F20,IF($F$54<40,'5.ΥΠΟΛΟΓΙΣΜΟΙ'!F21,IF($F$54<60,'5.ΥΠΟΛΟΓΙΣΜΟΙ'!F22,IF($F$54<90,'5.ΥΠΟΛΟΓΙΣΜΟΙ'!F23,'5.ΥΠΟΛΟΓΙΣΜΟΙ'!F12))))","v":0}]
["Αποθέσεις, μορένες, άργιλοι, ψαμμόλιθοι και άλλα ανθεκτικά πετρώματα",{"$f":"IF($F$54<25,'5.ΥΠΟΛΟΓΙΣΜΟΙ'!B27,IF($F$54<40,'5.ΥΠΟΛΟΓΙΣΜΟΙ'!B28,IF($F$54<60,'5.ΥΠΟΛΟΓΙΣΜΟΙ'!B29,IF($F$54<90,'5.ΥΠΟΛΟΓΙΣΜΟΙ'!B30,'5.ΥΠΟΛΟΓΙΣΜΟΙ'!B13))))","v":24.08},{"$f":"IF($F$54<25,'5.ΥΠΟΛΟΓΙΣΜΟΙ'!C27,IF($F$54<40,'5.ΥΠΟΛΟΓΙΣΜΟΙ'!C28,IF($F$54<60,'5.ΥΠΟΛΟΓΙΣΜΟΙ'!C29,IF($F$54<90,'5.ΥΠΟΛΟΓΙΣΜΟΙ'!C30,'5.ΥΠΟΛΟΓΙΣΜΟΙ'!C13))))","v":22.37},{"$f":"IF($F$54<25,'5.ΥΠΟΛΟΓΙΣΜΟΙ'!D27,IF($F$54<40,'5.ΥΠΟΛΟΓΙΣΜΟΙ'!D28,IF($F$54<60,'5.ΥΠΟΛΟΓΙΣΜΟΙ'!D29,IF($F$54<90,'5.ΥΠΟΛΟΓΙΣΜΟΙ'!D30,'5.ΥΠΟΛΟΓΙΣΜΟΙ'!D13))))","v":18.62},{"$f":"IF($F$54<25,'5.ΥΠΟΛΟΓΙΣΜΟΙ'!E27,IF($F$54<40,'5.ΥΠΟΛΟΓΙΣΜΟΙ'!E28,IF($F$54<60,'5.ΥΠΟΛΟΓΙΣΜΟΙ'!E29,IF($F$54<90,'5.ΥΠΟΛΟΓΙΣΜΟΙ'!E30,'5.ΥΠΟΛΟΓΙΣΜΟΙ'!E13))))","v":9.98},{"$f":"IF($F$54<25,'5.ΥΠΟΛΟΓΙΣΜΟΙ'!F27,IF($F$54<40,'5.ΥΠΟΛΟΓΙΣΜΟΙ'!F28,IF($F$54<60,'5.ΥΠΟΛΟΓΙΣΜΟΙ'!F29,IF($F$54<90,'5.ΥΠΟΛΟΓΙΣΜΟΙ'!F30,'5.ΥΠΟΛΟΓΙΣΜΟΙ'!F13))))","v":0}]
["Πολύ ευαίσθητα στη διάβρωση πετρώματα και εδάφη ",{"$f":"IF($F$54<25,'5.ΥΠΟΛΟΓΙΣΜΟΙ'!B34,IF($F$54<40,'5.ΥΠΟΛΟΓΙΣΜΟΙ'!B35,IF($F$54<60,'5.ΥΠΟΛΟΓΙΣΜΟΙ'!B36,IF($F$54<90,'5.ΥΠΟΛΟΓΙΣΜΟΙ'!B37,'5.ΥΠΟΛΟΓΙΣΜΟΙ'!B14))))","v":32.67},{"$f":"IF($F$54<25,'5.ΥΠΟΛΟΓΙΣΜΟΙ'!C34,IF($F$54<40,'5.ΥΠΟΛΟΓΙΣΜΟΙ'!C35,IF($F$54<60,'5.ΥΠΟΛΟΓΙΣΜΟΙ'!C36,IF($F$54<90,'5.ΥΠΟΛΟΓΙΣΜΟΙ'!C37,'5.ΥΠΟΛΟΓΙΣΜΟΙ'!C14))))","v":30.35},{"$f":"IF($F$54<25,'5.ΥΠΟΛΟΓΙΣΜΟΙ'!D34,IF($F$54<40,'5.ΥΠΟΛΟΓΙΣΜΟΙ'!D35,IF($F$54<60,'5.ΥΠΟΛΟΓΙΣΜΟΙ'!D36,IF($F$54<90,'5.ΥΠΟΛΟΓΙΣΜΟΙ'!D37,'5.ΥΠΟΛΟΓΙΣΜΟΙ'!D14))))","v":25.27},{"$f":"IF($F$54<25,'5.ΥΠΟΛΟΓΙΣΜΟΙ'!E34,IF($F$54<40,'5.ΥΠΟΛΟΓΙΣΜΟΙ'!E35,IF($F$54<60,'5.ΥΠΟΛΟΓΙΣΜΟΙ'!E36,IF($F$54<90,'5.ΥΠΟΛΟΓΙΣΜΟΙ'!E37,'5.ΥΠΟΛΟΓΙΣΜΟΙ'!E14))))","v":13.55},{"$f":"IF($F$54<25,'5.ΥΠΟΛΟΓΙΣΜΟΙ'!F34,IF($F$54<40,'5.ΥΠΟΛΟΓΙΣΜΟΙ'!F35,IF($F$54<60,'5.ΥΠΟΛΟΓΙΣΜΟΙ'!F36,IF($F$54<90,'5.ΥΠΟΛΟΓΙΣΜΟΙ'!F37,'5.ΥΠΟΛΟΓΙΣΜΟΙ'!F14))))","v":0}]
[]
["2.7 - 2.8 ΔΕΣΜΕΥΣΗ ΑΝΘΡΑΚΑ & ΠΡΟΣΤΑΣΙΑ ΒΙΟΠΟΙΚΙΛΟΤΗΤΑΣ"]
["Συντελεστές BEF","t/m3","Συντελεστής R",null,"Συντελεστές φυσικότητας",null,null,null,null,"Μέση παραγωγή δασικών προϊόντων","m3/ha","R","MAI-V"]
["A",0.8,"Δάσος Κωνοφόρων",0.46,"Φυτείες ξενικών ειδών",0.1,null,null,null,"Ελάτη",0.15,{"$f":"D64","v":0.46},{"$f":"D6-K64","v":5.05}]
["B",0.95,"Δάσος Πλατυφύλλων",0.43,"Μονοκαλλιέργεια πρεμνοφυών δασών που διαχειρίζονται τακτικά  (ηλικία μικρότερη 1.5t*)",0.2,null,null,null,"Ερυθρελάτη",5.65,{"$f":"D64","v":0.46},{"$f":"D7-K65","v":2.8499999999999996}]
["C",0.6,"Αείφυλλα πλατύφυλλα",2.83,"Μικτά πρεμνοφυή δάση που διαχειρίζονται τακτικά (ηλικία μικρότερη  1.5t*)",0.3,null,null,null,"Πεύκη",0.3,{"$f":"D64","v":0.46},5.57]
["D",0.7,"Φρυγανικά οικοσυστήματα",1.48,"Θάμνοι και Μεσογειακά maquis",0.4,null,null,null,"Οξυά",0.86,{"$f":"D65","v":0.43},5.4399999999999995]
["E",0.8,null,null,"Σύνθετα πρεμνοφυή δάση",0.5,null,null,null,"Δρυς",0.2,{"$f":"D65","v":0.43},2.42]
["F",0.9,"ΑΝΑΘΕΩΡΟΥΜΕΝΕΣ ΤΙΜΕΣ",null,"Πρεμνοφυή δάση υπό αναγωγή σε υψηλά δάση",0.6,null,null,null,"Λοιπά πλατύφυλλα",0.43,{"$f":"D65","v":0.43},1.6300000000000001]
["G",1,"Τιμή άνθρακα (€/tn)",4.87,"Μονοκαλλιέργεια υψηλών δασών",0.7,null,null,null,"Αείφυλλα πλατύφυλλα",0.2,{"$f":"D66","v":2.83},9.9999999999999978E-2]
["H",0.9,"Ετήσια αξία βιοποικιλότητας (€/ha)",120,"Μεικτά υψηλά δάση",0.8,null,null,null,"Φρύγανα",0,{"$f":"D67","v":1.48},{"$f":"D15","v":0}]
["I",0.6,null,null,"Αναδασώσεις στη φάση μετατροπής σε φυσικό δάσος",0.8,null,null,null,"Χορτολίβαδα",0,0]
[null,null,null,null,"Πολυώροφα μεικτά υψηλά δάση και παρόχθια δάση",0.9,null,null,null,"Πεύκη Χαλέπιος ή Τραχεία",{"$f":"K66","v":0.3},{"$f":"L66","v":0.46},{"$f":"M66","v":5.57}]
["2.9 ΕΤΗΣΙΑ ΖΗΜΙΑ ΛΟΓΩ ΠΥΡΚΑΓΙΩΝ",null,null,null,"Παρθένα ή αρχέγονα δάση",1,null,null,null,"Πεύκη λοιπά",{"$f":"K66","v":0.3},{"$f":"L66","v":0.46},{"$f":"M73","v":5.57}]
["Δασικό είδος / οικοσύστημα","€/ha",null,null,null,null,null,null,null,"Χορτολίβαδα>800 m",0,0]
["Ελάτη",38.630000000000003,null,null,null,null,null,null,null,"Χορτολίβαδα<800 m",0,0]
["Ερυθρελάτη",44.46,null,null,null,null,null,null,null,"Άγονη / βραχώδης έκταση",0,0]
["Πεύκη",55.13]
["Οξυά",36.93]
["Δρυς",46.88]
["Λοιπά πλατύφυλλα",85.8]
["Αείφυλλα πλατύφυλλα",39.54]
["Φρύγανα",41.1]
["Χορτολίβαδα",37.67]
["Πεύκη Χαλέπιος ή Τραχεία",{"$f":"B78","v":55.13}]
["Πεύκη λοιπά",{"$f":"B78","v":55.13}]
["Χορτολίβαδα>800 m",{"$f":"B84","v":37.67}]
["Χορτολίβαδα<800 m",{"$f":"B84","v":37.67}]
["Άγονη / βραχώδης έκταση",0]

{"sheet":"3α.ΑΠΟΤΕΛΕΣΜΑΤΑ","index":4,"n_rows":29,"n_cols":14,"rows_kept":29,"cut":false,"hidden":false,"merged":[[0,10,1,10],[0,0,1,0],[27,7,27,8]]}
["Α/Α","Παραγωγή ξύλου","Μη ξυλώδη δασικά προϊόντα","Βόσκηση","Κυνήγι","Αναψυχή","Προστασία εδάφους","Αποθήκευση άνθρακα","Βιοποικιλότητα","Ζημίες από πυρκαγιές","Σύνολο",null,null,"επιμερισμός"]
[null,"Vw","Vnfwp","Vg","Vh","Vr","Vps","Vcs","Vb","Df",null,null,null,"λοιπ.ΜΞΔΠ"]
[1,{"$f":"IF('1α.ΔΕΛΤΙΟ ΔΕΔΟΜΕΝΩΝ'!B3=\"\",0,IF('1α.ΔΕΛΤΙΟ ΔΕΔΟΜΕΝΩΝ'!C3>0,VLOOKUP('1α.ΔΕΛΤΙΟ ΔΕΔΟΜΕΝΩΝ'!B3,'2.ΒΑΣΙΚΕΣ ΤΙΜΕΣ'!A$6:D$18,4,FALSE)*VLOOKUP('1α.ΔΕΛΤΙΟ ΔΕΔΟΜΕΝΩΝ'!B3,'2.ΒΑΣΙΚΕΣ ΤΙΜΕΣ'!A$6:K$18,11,FALSE),0)*'1α.ΔΕΛΤΙΟ ΔΕΔΟΜΕΝΩΝ'!C3*'1α.ΔΕΛΤΙΟ ΔΕΔΟΜΕΝΩΝ'!D3)","v":0},{"$f":"'1α.ΔΕΛΤΙΟ ΔΕΔΟΜΕΝΩΝ'!F3*'2.ΒΑΣΙΚΕΣ ΤΙΜΕΣ'!C$22*'2.ΒΑΣΙΚΕΣ ΤΙΜΕΣ'!D$22*'1α.ΔΕΛΤΙΟ ΔΕΔΟΜΕΝΩΝ'!C3+'1α.ΔΕΛΤΙΟ ΔΕΔΟΜΕΝΩΝ'!C3*'1α.ΔΕΛΤΙΟ ΔΕΔΟΜΕΝΩΝ'!G3*'2.ΒΑΣΙΚΕΣ ΤΙΜΕΣ'!C$25*'2.ΒΑΣΙΚΕΣ ΤΙΜΕΣ'!D$25+'1α.ΔΕΛΤΙΟ ΔΕΔΟΜΕΝΩΝ'!H3*'1α.ΔΕΛΤΙΟ ΔΕΔΟΜΕΝΩΝ'!C3*'2.ΒΑΣΙΚΕΣ ΤΙΜΕΣ'!C$27*'2.ΒΑΣΙΚΕΣ ΤΙΜΕΣ'!D$27*'1α.ΔΕΛΤΙΟ ΔΕΔΟΜΕΝΩΝ'!W3+N3","v":0},{"$f":"IF('1α.ΔΕΛΤΙΟ ΔΕΔΟΜΕΝΩΝ'!B3=\"\",0,VLOOKUP('1α.ΔΕΛΤΙΟ ΔΕΔΟΜΕΝΩΝ'!B3,'2.ΒΑΣΙΚΕΣ ΤΙΜΕΣ'!A$36:B$51,2,FALSE)*('1α.ΔΕΛΤΙΟ ΔΕΔΟΜΕΝΩΝ'!C3-'1α.ΔΕΛΤΙΟ ΔΕΔΟΜΕΝΩΝ'!J3))","v":0},{"$f":"'2.ΒΑΣΙΚΕΣ ΤΙΜΕΣ'!D$36*0.7*('1α.ΔΕΛΤΙΟ ΔΕΔΟΜΕΝΩΝ'!C3-'1α.ΔΕΛΤΙΟ ΔΕΔΟΜΕΝΩΝ'!K3)","v":0},{"$f":"IF('1α.ΔΕΛΤΙΟ ΔΕΔΟΜΕΝΩΝ'!B3=\"\",0,VLOOKUP('1α.ΔΕΛΤΙΟ ΔΕΔΟΜΕΝΩΝ'!B3,'2.ΒΑΣΙΚΕΣ ΤΙΜΕΣ'!A$36:C$51,3,FALSE)*'1α.ΔΕΛΤΙΟ ΔΕΔΟΜΕΝΩΝ'!C3)","v":0},{"$f":"(IF(OR('1α.ΔΕΛΤΙΟ ΔΕΔΟΜΕΝΩΝ'!M3=\"\",'1α.ΔΕΛΤΙΟ ΔΕΔΟΜΕΝΩΝ'!Q3=\"\",'1α.ΔΕΛΤΙΟ ΔΕΔΟΜΕΝΩΝ'!R3=\"\",'1α.ΔΕΛΤΙΟ ΔΕΔΟΜΕΝΩΝ'!R3=\"Επιφάνεια χωρίς φυτοκάλυψη \"),0,IF('1α.ΔΕΛΤΙΟ ΔΕΔΟΜΕΝΩΝ'!M3=0,0,VLOOKUP('1α.ΔΕΛΤΙΟ ΔΕΔΟΜΕΝΩΝ'!M3&'1α.ΔΕΛΤΙΟ ΔΕΔΟΜΕΝΩΝ'!Q3&'1α.ΔΕΛΤΙΟ ΔΕΔΟΜΕΝΩΝ'!R3,'PS DATA'!D:E,2,FALSE)*'1α.ΔΕΛΤΙΟ ΔΕΔΟΜΕΝΩΝ'!C3*'2.ΒΑΣΙΚΕΣ ΤΙΜΕΣ'!B$54)))","v":0},{"$f":"IF('1α.ΔΕΛΤΙΟ ΔΕΔΟΜΕΝΩΝ'!B3=\"\",0,VLOOKUP('1α.ΔΕΛΤΙΟ ΔΕΔΟΜΕΝΩΝ'!B3,'CS DATA'!D$2:H$13,5,FALSE)*'1α.ΔΕΛΤΙΟ ΔΕΔΟΜΕΝΩΝ'!D3*'1α.ΔΕΛΤΙΟ ΔΕΔΟΜΕΝΩΝ'!C3*'2.ΒΑΣΙΚΕΣ ΤΙΜΕΣ'!D$70)*IF('1α.ΔΕΛΤΙΟ ΔΕΔΟΜΕΝΩΝ'!S3=\"\",0,VLOOKUP('1α.ΔΕΛΤΙΟ ΔΕΔΟΜΕΝΩΝ'!S3,'CS DATA'!A$1:B$13,2,FALSE))","v":0},{"$f":"IF('1α.ΔΕΛΤΙΟ ΔΕΔΟΜΕΝΩΝ'!T3=\"\",0,VLOOKUP('1α.ΔΕΛΤΙΟ ΔΕΔΟΜΕΝΩΝ'!T3,'2.ΒΑΣΙΚΕΣ ΤΙΜΕΣ'!E$64:F$74,2,FALSE)*'1α.ΔΕΛΤΙΟ ΔΕΔΟΜΕΝΩΝ'!C3)*'2.ΒΑΣΙΚΕΣ ΤΙΜΕΣ'!D$71","v":0},{"$f":"IF('1α.ΔΕΛΤΙΟ ΔΕΔΟΜΕΝΩΝ'!B3=\"\",0,VLOOKUP('1α.ΔΕΛΤΙΟ ΔΕΔΟΜΕΝΩΝ'!B3,'2.ΒΑΣΙΚΕΣ ΤΙΜΕΣ'!A$76:B$89,2,FALSE)*'1α.ΔΕΛΤΙΟ ΔΕΔΟΜΕΝΩΝ'!C3)","v":0},{"$f":"SUM(B3:I3)-J3","v":0},null,null,{"$f":"IF('1α.ΔΕΛΤΙΟ ΔΕΔΟΜΕΝΩΝ'!C$23=0,0,'1β.ΜΞΔΠ'!F25*'1α.ΔΕΛΤΙΟ ΔΕΔΟΜΕΝΩΝ'!C3/'1α.ΔΕΛΤΙΟ ΔΕΔΟΜΕΝΩΝ'!C$23)","v":0}]
[2,{"$f":"IF('1α.ΔΕΛΤΙΟ ΔΕΔΟΜΕΝΩΝ'!B4=\"\",0,IF('1α.ΔΕΛΤΙΟ ΔΕΔΟΜΕΝΩΝ'!C4>0,VLOOKUP('1α.ΔΕΛΤΙΟ ΔΕΔΟΜΕΝΩΝ'!B4,'2.ΒΑΣΙΚΕΣ ΤΙΜΕΣ'!A$6:D$18,4,FALSE)*VLOOKUP('1α.ΔΕΛΤΙΟ ΔΕΔΟΜΕΝΩΝ'!B4,'2.ΒΑΣΙΚΕΣ ΤΙΜΕΣ'!A$6:K$18,11,FALSE),0)*'1α.ΔΕΛΤΙΟ ΔΕΔΟΜΕΝΩΝ'!C4*'1α.ΔΕΛΤΙΟ ΔΕΔΟΜΕΝΩΝ'!D4)","v":0},{"$f":"'1α.ΔΕΛΤΙΟ ΔΕΔΟΜΕΝΩΝ'!F4*'2.ΒΑΣΙΚΕΣ ΤΙΜΕΣ'!C$22*'2.ΒΑΣΙΚΕΣ ΤΙΜΕΣ'!D$22*'1α.ΔΕΛΤΙΟ ΔΕΔΟΜΕΝΩΝ'!C4+'1α.ΔΕΛΤΙΟ ΔΕΔΟΜΕΝΩΝ'!C4*'1α.ΔΕΛΤΙΟ ΔΕΔΟΜΕΝΩΝ'!G4*'2.ΒΑΣΙΚΕΣ ΤΙΜΕΣ'!C$25*'2.ΒΑΣΙΚΕΣ ΤΙΜΕΣ'!D$25+'1α.ΔΕΛΤΙΟ ΔΕΔΟΜΕΝΩΝ'!H4*'1α.ΔΕΛΤΙΟ ΔΕΔΟΜΕΝΩΝ'!C4*'2.ΒΑΣΙΚΕΣ ΤΙΜΕΣ'!C$27*'2.ΒΑΣΙΚΕΣ ΤΙΜΕΣ'!D$27*'1α.ΔΕΛΤΙΟ ΔΕΔΟΜΕΝΩΝ'!W4+N4","v":0},{"$f":"IF('1α.ΔΕΛΤΙΟ ΔΕΔΟΜΕΝΩΝ'!B4=\"\",0,VLOOKUP('1α.ΔΕΛΤΙΟ ΔΕΔΟΜΕΝΩΝ'!B4,'2.ΒΑΣΙΚΕΣ ΤΙΜΕΣ'!A$36:B$51,2,FALSE)*('1α.ΔΕΛΤΙΟ ΔΕΔΟΜΕΝΩΝ'!C4-'1α.ΔΕΛΤΙΟ ΔΕΔΟΜΕΝΩΝ'!J4))","v":0},{"$f":"'2.ΒΑΣΙΚΕΣ ΤΙΜΕΣ'!D$36*0.7*('1α.ΔΕΛΤΙΟ ΔΕΔΟΜΕΝΩΝ'!C4-'1α.ΔΕΛΤΙΟ ΔΕΔΟΜΕΝΩΝ'!K4)","v":0},{"$f":"IF('1α.ΔΕΛΤΙΟ ΔΕΔΟΜΕΝΩΝ'!B4=\"\",0,VLOOKUP('1α.ΔΕΛΤΙΟ ΔΕΔΟΜΕΝΩΝ'!B4,'2.ΒΑΣΙΚΕΣ ΤΙΜΕΣ'!A$36:C$51,3,FALSE)*'1α.ΔΕΛΤΙΟ ΔΕΔΟΜΕΝΩΝ'!C4)","v":0},{"$f":"(IF(OR('1α.ΔΕΛΤΙΟ ΔΕΔΟΜΕΝΩΝ'!M4=\"\",'1α.ΔΕΛΤΙΟ ΔΕΔΟΜΕΝΩΝ'!Q4=\"\",'1α.ΔΕΛΤΙΟ ΔΕΔΟΜΕΝΩΝ'!R4=\"\",'1α.ΔΕΛΤΙΟ ΔΕΔΟΜΕΝΩΝ'!R4=\"Επιφάνεια χωρίς φυτοκάλυψη \"),0,IF('1α.ΔΕΛΤΙΟ ΔΕΔΟΜΕΝΩΝ'!M4=0,0,VLOOKUP('1α.ΔΕΛΤΙΟ ΔΕΔΟΜΕΝΩΝ'!M4&'1α.ΔΕΛΤΙΟ ΔΕΔΟΜΕΝΩΝ'!Q4&'1α.ΔΕΛΤΙΟ ΔΕΔΟΜΕΝΩΝ'!R4,'PS DATA'!D:E,2,FALSE)*'1α.ΔΕΛΤΙΟ ΔΕΔΟΜΕΝΩΝ'!C4*'2.ΒΑΣΙΚΕΣ ΤΙΜΕΣ'!B$54)))","v":0},{"$f":"IF('1α.ΔΕΛΤΙΟ ΔΕΔΟΜΕΝΩΝ'!B4=\"\",0,VLOOKUP('1α.ΔΕΛΤΙΟ ΔΕΔΟΜΕΝΩΝ'!B4,'CS DATA'!D$2:H$13,5,FALSE)*'1α.ΔΕΛΤΙΟ ΔΕΔΟΜΕΝΩΝ'!D4*'1α.ΔΕΛΤΙΟ ΔΕΔΟΜΕΝΩΝ'!C4*'2.ΒΑΣΙΚΕΣ ΤΙΜΕΣ'!D$70)*IF('1α.ΔΕΛΤΙΟ ΔΕΔΟΜΕΝΩΝ'!S4=\"\",0,VLOOKUP('1α.ΔΕΛΤΙΟ ΔΕΔΟΜΕΝΩΝ'!S4,'CS DATA'!A$1:B$13,2,FALSE))","v":0},{"$f":"IF('1α.ΔΕΛΤΙΟ ΔΕΔΟΜΕΝΩΝ'!T4=\"\",0,VLOOKUP('1α.ΔΕΛΤΙΟ ΔΕΔΟΜΕΝΩΝ'!T4,'2.ΒΑΣΙΚΕΣ ΤΙΜΕΣ'!E$64:F$74,2,FALSE)*'1α.ΔΕΛΤΙΟ ΔΕΔΟΜΕΝΩΝ'!C4)*'2.ΒΑΣΙΚΕΣ ΤΙΜΕΣ'!D$71","v":0},{"$f":"IF('1α.ΔΕΛΤΙΟ ΔΕΔΟΜΕΝΩΝ'!B4=\"\",0,VLOOKUP('1α.ΔΕΛΤΙΟ ΔΕΔΟΜΕΝΩΝ'!B4,'2.ΒΑΣΙΚΕΣ ΤΙΜΕΣ'!A$76:B$89,2,FALSE)*'1α.ΔΕΛΤΙΟ ΔΕΔΟΜΕΝΩΝ'!C4)","v":0},{"$f":"SUM(B4:I4)-J4","v":0},null,null,{"$f":"IF('1α.ΔΕΛΤΙΟ ΔΕΔΟΜΕΝΩΝ'!C$23=0,0,'1β.ΜΞΔΠ'!F26*'1α.ΔΕΛΤΙΟ ΔΕΔΟΜΕΝΩΝ'!C4/'1α.ΔΕΛΤΙΟ ΔΕΔΟΜΕΝΩΝ'!C$23)","v":0}]
[3,{"$f":"IF('1α.ΔΕΛΤΙΟ ΔΕΔΟΜΕΝΩΝ'!B5=\"\",0,IF('1α.ΔΕΛΤΙΟ ΔΕΔΟΜΕΝΩΝ'!C5>0,VLOOKUP('1α.ΔΕΛΤΙΟ ΔΕΔΟΜΕΝΩΝ'!B5,'2.ΒΑΣΙΚΕΣ ΤΙΜΕΣ'!A$6:D$18,4,FALSE)*VLOOKUP('1α.ΔΕΛΤΙΟ ΔΕΔΟΜΕΝΩΝ'!B5,'2.ΒΑΣΙΚΕΣ ΤΙΜΕΣ'!A$6:K$18,11,FALSE),0)*'1α.ΔΕΛΤΙΟ ΔΕΔΟΜΕΝΩΝ'!C5*'1α.ΔΕΛΤΙΟ ΔΕΔΟΜΕΝΩΝ'!D5)","v":0},{"$f":"'1α.ΔΕΛΤΙΟ ΔΕΔΟΜΕΝΩΝ'!F5*'2.ΒΑΣΙΚΕΣ ΤΙΜΕΣ'!C$22*'2.ΒΑΣΙΚΕΣ ΤΙΜΕΣ'!D$22*'1α.ΔΕΛΤΙΟ ΔΕΔΟΜΕΝΩΝ'!C5+'1α.ΔΕΛΤΙΟ ΔΕΔΟΜΕΝΩΝ'!C5*'1α.ΔΕΛΤΙΟ ΔΕΔΟΜΕΝΩΝ'!G5*'2.ΒΑΣΙΚΕΣ ΤΙΜΕΣ'!C$25*'2.ΒΑΣΙΚΕΣ ΤΙΜΕΣ'!D$25+'1α.ΔΕΛΤΙΟ ΔΕΔΟΜΕΝΩΝ'!H5*'1α.ΔΕΛΤΙΟ ΔΕΔΟΜΕΝΩΝ'!C5*'2.ΒΑΣΙΚΕΣ ΤΙΜΕΣ'!C$27*'2.ΒΑΣΙΚΕΣ ΤΙΜΕΣ'!D$27*'1α.ΔΕΛΤΙΟ ΔΕΔΟΜΕΝΩΝ'!W5+N5","v":0},{"$f":"IF('1α.ΔΕΛΤΙΟ ΔΕΔΟΜΕΝΩΝ'!B5=\"\",0,VLOOKUP('1α.ΔΕΛΤΙΟ ΔΕΔΟΜΕΝΩΝ'!B5,'2.ΒΑΣΙΚΕΣ ΤΙΜΕΣ'!A$36:B$51,2,FALSE)*('1α.ΔΕΛΤΙΟ ΔΕΔΟΜΕΝΩΝ'!C5-'1α.ΔΕΛΤΙΟ ΔΕΔΟΜΕΝΩΝ'!J5))","v":0},{"$f":"'2.ΒΑΣΙΚΕΣ ΤΙΜΕΣ'!D$36*0.7*('1α.ΔΕΛΤΙΟ ΔΕΔΟΜΕΝΩΝ'!C5-'1α.ΔΕΛΤΙΟ ΔΕΔΟΜΕΝΩΝ'!K5)","v":0},{"$f":"IF('1α.ΔΕΛΤΙΟ ΔΕΔΟΜΕΝΩΝ'!B5=\"\",0,VLOOKUP('1α.ΔΕΛΤΙΟ ΔΕΔΟΜΕΝΩΝ'!B5,'2.ΒΑΣΙΚΕΣ ΤΙΜΕΣ'!A$36:C$51,3,FALSE)*'1α.ΔΕΛΤΙΟ ΔΕΔΟΜΕΝΩΝ'!C5)","v":0},{"$f":"(IF(OR('1α.ΔΕΛΤΙΟ ΔΕΔΟΜΕΝΩΝ'!M5=\"\",'1α.ΔΕΛΤΙΟ ΔΕΔΟΜΕΝΩΝ'!Q5=\"\",'1α.ΔΕΛΤΙΟ ΔΕΔΟΜΕΝΩΝ'!R5=\"\",'1α.ΔΕΛΤΙΟ ΔΕΔΟΜΕΝΩΝ'!R5=\"Επιφάνεια χωρίς φυτοκάλυψη \"),0,IF('1α.ΔΕΛΤΙΟ ΔΕΔΟΜΕΝΩΝ'!M5=0,0,VLOOKUP('1α.ΔΕΛΤΙΟ ΔΕΔΟΜΕΝΩΝ'!M5&'1α.ΔΕΛΤΙΟ ΔΕΔΟΜΕΝΩΝ'!Q5&'1α.ΔΕΛΤΙΟ ΔΕΔΟΜΕΝΩΝ'!R5,'PS DATA'!D:E,2,FALSE)*'1α.ΔΕΛΤΙΟ ΔΕΔΟΜΕΝΩΝ'!C5*'2.ΒΑΣΙΚΕΣ ΤΙΜΕΣ'!B$54)))","v":0},{"$f":"IF('1α.ΔΕΛΤΙΟ ΔΕΔΟΜΕΝΩΝ'!B5=\"\",0,VLOOKUP('1α.ΔΕΛΤΙΟ ΔΕΔΟΜΕΝΩΝ'!B5,'CS DATA'!D$2:H$13,5,FALSE)*'1α.ΔΕΛΤΙΟ ΔΕΔΟΜΕΝΩΝ'!D5*'1α.ΔΕΛΤΙΟ ΔΕΔΟΜΕΝΩΝ'!C5*'2.ΒΑΣΙΚΕΣ ΤΙΜΕΣ'!D$70)*IF('1α.ΔΕΛΤΙΟ ΔΕΔΟΜΕΝΩΝ'!S5=\"\",0,VLOOKUP('1α.ΔΕΛΤΙΟ ΔΕΔΟΜΕΝΩΝ'!S5,'CS DATA'!A$1:B$13,2,FALSE))","v":0},{"$f":"IF('1α.ΔΕΛΤΙΟ ΔΕΔΟΜΕΝΩΝ'!T5=\"\",0,VLOOKUP('1α.ΔΕΛΤΙΟ ΔΕΔΟΜΕΝΩΝ'!T5,'2.ΒΑΣΙΚΕΣ ΤΙΜΕΣ'!E$64:F$74,2,FALSE)*'1α.ΔΕΛΤΙΟ ΔΕΔΟΜΕΝΩΝ'!C5)*'2.ΒΑΣΙΚΕΣ ΤΙΜΕΣ'!D$71","v":0},{"$f":"IF('1α.ΔΕΛΤΙΟ ΔΕΔΟΜΕΝΩΝ'!B5=\"\",0,VLOOKUP('1α.ΔΕΛΤΙΟ ΔΕΔΟΜΕΝΩΝ'!B5,'2.ΒΑΣΙΚΕΣ ΤΙΜΕΣ'!A$76:B$89,2,FALSE)*'1α.ΔΕΛΤΙΟ ΔΕΔΟΜΕΝΩΝ'!C5)","v":0},0,null,null,{"$f":"IF('1α.ΔΕΛΤΙΟ ΔΕΔΟΜΕΝΩΝ'!C$23=0,0,'1β.ΜΞΔΠ'!F27*'1α.ΔΕΛΤΙΟ ΔΕΔΟΜΕΝΩΝ'!C5/'1α.ΔΕΛΤΙΟ ΔΕΔΟΜΕΝΩΝ'!C$23)","v":0}]
[4,{"$f":"IF('1α.ΔΕΛΤΙΟ ΔΕΔΟΜΕΝΩΝ'!B6=\"\",0,IF('1α.ΔΕΛΤΙΟ ΔΕΔΟΜΕΝΩΝ'!C6>0,VLOOKUP('1α.ΔΕΛΤΙΟ ΔΕΔΟΜΕΝΩΝ'!B6,'2.ΒΑΣΙΚΕΣ ΤΙΜΕΣ'!A$6:D$18,4,FALSE)*VLOOKUP('1α.ΔΕΛΤΙΟ ΔΕΔΟΜΕΝΩΝ'!B6,'2.ΒΑΣΙΚΕΣ ΤΙΜΕΣ'!A$6:K$18,11,FALSE),0)*'1α.ΔΕΛΤΙΟ ΔΕΔΟΜΕΝΩΝ'!C6*'1α.ΔΕΛΤΙΟ ΔΕΔΟΜΕΝΩΝ'!D6)","v":0},{"$f":"'1α.ΔΕΛΤΙΟ ΔΕΔΟΜΕΝΩΝ'!F6*'2.ΒΑΣΙΚΕΣ ΤΙΜΕΣ'!C$22*'2.ΒΑΣΙΚΕΣ ΤΙΜΕΣ'!D$22*'1α.ΔΕΛΤΙΟ ΔΕΔΟΜΕΝΩΝ'!C6+'1α.ΔΕΛΤΙΟ ΔΕΔΟΜΕΝΩΝ'!C6*'1α.ΔΕΛΤΙΟ ΔΕΔΟΜΕΝΩΝ'!G6*'2.ΒΑΣΙΚΕΣ ΤΙΜΕΣ'!C$25*'2.ΒΑΣΙΚΕΣ ΤΙΜΕΣ'!D$25+'1α.ΔΕΛΤΙΟ ΔΕΔΟΜΕΝΩΝ'!H6*'1α.ΔΕΛΤΙΟ ΔΕΔΟΜΕΝΩΝ'!C6*'2.ΒΑΣΙΚΕΣ ΤΙΜΕΣ'!C$27*'2.ΒΑΣΙΚΕΣ ΤΙΜΕΣ'!D$27*'1α.ΔΕΛΤΙΟ ΔΕΔΟΜΕΝΩΝ'!W6+N6","v":0},{"$f":"IF('1α.ΔΕΛΤΙΟ ΔΕΔΟΜΕΝΩΝ'!B6=\"\",0,VLOOKUP('1α.ΔΕΛΤΙΟ ΔΕΔΟΜΕΝΩΝ'!B6,'2.ΒΑΣΙΚΕΣ ΤΙΜΕΣ'!A$36:B$51,2,FALSE)*('1α.ΔΕΛΤΙΟ ΔΕΔΟΜΕΝΩΝ'!C6-'1α.ΔΕΛΤΙΟ ΔΕΔΟΜΕΝΩΝ'!J6))","v":0},{"$f":"'2.ΒΑΣΙΚΕΣ ΤΙΜΕΣ'!D$36*0.7*('1α.ΔΕΛΤΙΟ ΔΕΔΟΜΕΝΩΝ'!C6-'1α.ΔΕΛΤΙΟ ΔΕΔΟΜΕΝΩΝ'!K6)","v":0},{"$f":"IF('1α.ΔΕΛΤΙΟ ΔΕΔΟΜΕΝΩΝ'!B6=\"\",0,VLOOKUP('1α.ΔΕΛΤΙΟ ΔΕΔΟΜΕΝΩΝ'!B6,'2.ΒΑΣΙΚΕΣ ΤΙΜΕΣ'!A$36:C$51,3,FALSE)*'1α.ΔΕΛΤΙΟ ΔΕΔΟΜΕΝΩΝ'!C6)","v":0},{"$f":"(IF(OR('1α.ΔΕΛΤΙΟ ΔΕΔΟΜΕΝΩΝ'!M6=\"\",'1α.ΔΕΛΤΙΟ ΔΕΔΟΜΕΝΩΝ'!Q6=\"\",'1α.ΔΕΛΤΙΟ ΔΕΔΟΜΕΝΩΝ'!R6=\"\",'1α.ΔΕΛΤΙΟ ΔΕΔΟΜΕΝΩΝ'!R6=\"Επιφάνεια χωρίς φυτοκάλυψη \"),0,IF('1α.ΔΕΛΤΙΟ ΔΕΔΟΜΕΝΩΝ'!M6=0,0,VLOOKUP('1α.ΔΕΛΤΙΟ ΔΕΔΟΜΕΝΩΝ'!M6&'1α.ΔΕΛΤΙΟ ΔΕΔΟΜΕΝΩΝ'!Q6&'1α.ΔΕΛΤΙΟ ΔΕΔΟΜΕΝΩΝ'!R6,'PS DATA'!D:E,2,FALSE)*'1α.ΔΕΛΤΙΟ ΔΕΔΟΜΕΝΩΝ'!C6*'2.ΒΑΣΙΚΕΣ ΤΙΜΕΣ'!B$54)))","v":0},{"$f":"IF('1α.ΔΕΛΤΙΟ ΔΕΔΟΜΕΝΩΝ'!B6=\"\",0,VLOOKUP('1α.ΔΕΛΤΙΟ ΔΕΔΟΜΕΝΩΝ'!B6,'CS DATA'!D$2:H$13,5,FALSE)*'1α.ΔΕΛΤΙΟ ΔΕΔΟΜΕΝΩΝ'!D6*'1α.ΔΕΛΤΙΟ ΔΕΔΟΜΕΝΩΝ'!C6*'2.ΒΑΣΙΚΕΣ ΤΙΜΕΣ'!D$70)*IF('1α.ΔΕΛΤΙΟ ΔΕΔΟΜΕΝΩΝ'!S6=\"\",0,VLOOKUP('1α.ΔΕΛΤΙΟ ΔΕΔΟΜΕΝΩΝ'!S6,'CS DATA'!A$1:B$13,2,FALSE))","v":0},{"$f":"IF('1α.ΔΕΛΤΙΟ ΔΕΔΟΜΕΝΩΝ'!T6=\"\",0,VLOOKUP('1α.ΔΕΛΤΙΟ ΔΕΔΟΜΕΝΩΝ'!T6,'2.ΒΑΣΙΚΕΣ ΤΙΜΕΣ'!E$64:F$74,2,FALSE)*'1α.ΔΕΛΤΙΟ ΔΕΔΟΜΕΝΩΝ'!C6)*'2.ΒΑΣΙΚΕΣ ΤΙΜΕΣ'!D$71","v":0},{"$f":"IF('1α.ΔΕΛΤΙΟ ΔΕΔΟΜΕΝΩΝ'!B6=\"\",0,VLOOKUP('1α.ΔΕΛΤΙΟ ΔΕΔΟΜΕΝΩΝ'!B6,'2.ΒΑΣΙΚΕΣ ΤΙΜΕΣ'!A$76:B$89,2,FALSE)*'1α.ΔΕΛΤΙΟ ΔΕΔΟΜΕΝΩΝ'!C6)","v":0},0,null,null,{"$f":"IF('1α.ΔΕΛΤΙΟ ΔΕΔΟΜΕΝΩΝ'!C$23=0,0,'1β.ΜΞΔΠ'!F28*'1α.ΔΕΛΤΙΟ ΔΕΔΟΜΕΝΩΝ'!C6/'1α.ΔΕΛΤΙΟ ΔΕΔΟΜΕΝΩΝ'!C$23)","v":0}]
[5,{"$f":"IF('1α.ΔΕΛΤΙΟ ΔΕΔΟΜΕΝΩΝ'!B7=\"\",0,IF('1α.ΔΕΛΤΙΟ ΔΕΔΟΜΕΝΩΝ'!C7>0,VLOOKUP('1α.ΔΕΛΤΙΟ ΔΕΔΟΜΕΝΩΝ'!B7,'2.ΒΑΣΙΚΕΣ ΤΙΜΕΣ'!A$6:D$18,4,FALSE)*VLOOKUP('1α.ΔΕΛΤΙΟ ΔΕΔΟΜΕΝΩΝ'!B7,'2.ΒΑΣΙΚΕΣ ΤΙΜΕΣ'!A$6:K$18,11,FALSE),0)*'1α.ΔΕΛΤΙΟ ΔΕΔΟΜΕΝΩΝ'!C7*'1α.ΔΕΛΤΙΟ ΔΕΔΟΜΕΝΩΝ'!D7)","v":0},{"$f":"'1α.ΔΕΛΤΙΟ ΔΕΔΟΜΕΝΩΝ'!F7*'2.ΒΑΣΙΚΕΣ ΤΙΜΕΣ'!C$22*'2.ΒΑΣΙΚΕΣ ΤΙΜΕΣ'!D$22*'1α.ΔΕΛΤΙΟ ΔΕΔΟΜΕΝΩΝ'!C7+'1α.ΔΕΛΤΙΟ ΔΕΔΟΜΕΝΩΝ'!C7*'1α.ΔΕΛΤΙΟ ΔΕΔΟΜΕΝΩΝ'!G7*'2.ΒΑΣΙΚΕΣ ΤΙΜΕΣ'!C$25*'2.ΒΑΣΙΚΕΣ ΤΙΜΕΣ'!D$25+'1α.ΔΕΛΤΙΟ ΔΕΔΟΜΕΝΩΝ'!H7*'1α.ΔΕΛΤΙΟ ΔΕΔΟΜΕΝΩΝ'!C7*'2.ΒΑΣΙΚΕΣ ΤΙΜΕΣ'!C$27*'2.ΒΑΣΙΚΕΣ ΤΙΜΕΣ'!D$27*'1α.ΔΕΛΤΙΟ ΔΕΔΟΜΕΝΩΝ'!W7+N7","v":0},{"$f":"IF('1α.ΔΕΛΤΙΟ ΔΕΔΟΜΕΝΩΝ'!B7=\"\",0,VLOOKUP('1α.ΔΕΛΤΙΟ ΔΕΔΟΜΕΝΩΝ'!B7,'2.ΒΑΣΙΚΕΣ ΤΙΜΕΣ'!A$36:B$51,2,FALSE)*('1α.ΔΕΛΤΙΟ ΔΕΔΟΜΕΝΩΝ'!C7-'1α.ΔΕΛΤΙΟ ΔΕΔΟΜΕΝΩΝ'!J7))","v":0},{"$f":"'2.ΒΑΣΙΚΕΣ ΤΙΜΕΣ'!D$36*0.7*('1α.ΔΕΛΤΙΟ ΔΕΔΟΜΕΝΩΝ'!C7-'1α.ΔΕΛΤΙΟ ΔΕΔΟΜΕΝΩΝ'!K7)","v":0},{"$f":"IF('1α.ΔΕΛΤΙΟ ΔΕΔΟΜΕΝΩΝ'!B7=\"\",0,VLOOKUP('1α.ΔΕΛΤΙΟ ΔΕΔΟΜΕΝΩΝ'!B7,'2.ΒΑΣΙΚΕΣ ΤΙΜΕΣ'!A$36:C$51,3,FALSE)*'1α.ΔΕΛΤΙΟ ΔΕΔΟΜΕΝΩΝ'!C7)","v":0},{"$f":"(IF(OR('1α.ΔΕΛΤΙΟ ΔΕΔΟΜΕΝΩΝ'!M7=\"\",'1α.ΔΕΛΤΙΟ ΔΕΔΟΜΕΝΩΝ'!Q7=\"\",'1α.ΔΕΛΤΙΟ ΔΕΔΟΜΕΝΩΝ'!R7=\"\",'1α.ΔΕΛΤΙΟ ΔΕΔΟΜΕΝΩΝ'!R7=\"Επιφάνεια χωρίς φυτοκάλυψη \"),0,IF('1α.ΔΕΛΤΙΟ ΔΕΔΟΜΕΝΩΝ'!M7=0,0,VLOOKUP('1α.ΔΕΛΤΙΟ ΔΕΔΟΜΕΝΩΝ'!M7&'1α.ΔΕΛΤΙΟ ΔΕΔΟΜΕΝΩΝ'!Q7&'1α.ΔΕΛΤΙΟ ΔΕΔΟΜΕΝΩΝ'!R7,'PS DATA'!D:E,2,FALSE)*'1α.ΔΕΛΤΙΟ ΔΕΔΟΜΕΝΩΝ'!C7*'2.ΒΑΣΙΚΕΣ ΤΙΜΕΣ'!B$54)))","v":0},{"$f":"IF('1α.ΔΕΛΤΙΟ ΔΕΔΟΜΕΝΩΝ'!B7=\"\",0,VLOOKUP('1α.ΔΕΛΤΙΟ ΔΕΔΟΜΕΝΩΝ'!B7,'CS DATA'!D$2:H$13,5,FALSE)*'1α.ΔΕΛΤΙΟ ΔΕΔΟΜΕΝΩΝ'!D7*'1α.ΔΕΛΤΙΟ ΔΕΔΟΜΕΝΩΝ'!C7*'2.ΒΑΣΙΚΕΣ ΤΙΜΕΣ'!D$70)*IF('1α.ΔΕΛΤΙΟ ΔΕΔΟΜΕΝΩΝ'!S7=\"\",0,VLOOKUP('1α.ΔΕΛΤΙΟ ΔΕΔΟΜΕΝΩΝ'!S7,'CS DATA'!A$1:B$13,2,FALSE))","v":0},{"$f":"IF('1α.ΔΕΛΤΙΟ ΔΕΔΟΜΕΝΩΝ'!T7=\"\",0,VLOOKUP('1α.ΔΕΛΤΙΟ ΔΕΔΟΜΕΝΩΝ'!T7,'2.ΒΑΣΙΚΕΣ ΤΙΜΕΣ'!E$64:F$74,2,FALSE)*'1α.ΔΕΛΤΙΟ ΔΕΔΟΜΕΝΩΝ'!C7)*'2.ΒΑΣΙΚΕΣ ΤΙΜΕΣ'!D$71","v":0},{"$f":"IF('1α.ΔΕΛΤΙΟ ΔΕΔΟΜΕΝΩΝ'!B7=\"\",0,VLOOKUP('1α.ΔΕΛΤΙΟ ΔΕΔΟΜΕΝΩΝ'!B7,'2.ΒΑΣΙΚΕΣ ΤΙΜΕΣ'!A$76:B$89,2,FALSE)*'1α.ΔΕΛΤΙΟ ΔΕΔΟΜΕΝΩΝ'!C7)","v":0},0,null,null,{"$f":"IF('1α.ΔΕΛΤΙΟ ΔΕΔΟΜΕΝΩΝ'!C$23=0,0,'1β.ΜΞΔΠ'!F29*'1α.ΔΕΛΤΙΟ ΔΕΔΟΜΕΝΩΝ'!C7/'1α.ΔΕΛΤΙΟ ΔΕΔΟΜΕΝΩΝ'!C$23)","v":0}]
[6,{"$f":"IF('1α.ΔΕΛΤΙΟ ΔΕΔΟΜΕΝΩΝ'!B8=\"\",0,IF('1α.ΔΕΛΤΙΟ ΔΕΔΟΜΕΝΩΝ'!C8>0,VLOOKUP('1α.ΔΕΛΤΙΟ ΔΕΔΟΜΕΝΩΝ'!B8,'2.ΒΑΣΙΚΕΣ ΤΙΜΕΣ'!A$6:D$18,4,FALSE)*VLOOKUP('1α.ΔΕΛΤΙΟ ΔΕΔΟΜΕΝΩΝ'!B8,'2.ΒΑΣΙΚΕΣ ΤΙΜΕΣ'!A$6:K$18,11,FALSE),0)*'1α.ΔΕΛΤΙΟ ΔΕΔΟΜΕΝΩΝ'!C8*'1α.ΔΕΛΤΙΟ ΔΕΔΟΜΕΝΩΝ'!D8)","v":0},{"$f":"'1α.ΔΕΛΤΙΟ ΔΕΔΟΜΕΝΩΝ'!F8*'2.ΒΑΣΙΚΕΣ ΤΙΜΕΣ'!C$22*'2.ΒΑΣΙΚΕΣ ΤΙΜΕΣ'!D$22*'1α.ΔΕΛΤΙΟ ΔΕΔΟΜΕΝΩΝ'!C8+'1α.ΔΕΛΤΙΟ ΔΕΔΟΜΕΝΩΝ'!C8*'1α.ΔΕΛΤΙΟ ΔΕΔΟΜΕΝΩΝ'!G8*'2.ΒΑΣΙΚΕΣ ΤΙΜΕΣ'!C$25*'2.ΒΑΣΙΚΕΣ ΤΙΜΕΣ'!D$25+'1α.ΔΕΛΤΙΟ ΔΕΔΟΜΕΝΩΝ'!H8*'1α.ΔΕΛΤΙΟ ΔΕΔΟΜΕΝΩΝ'!C8*'2.ΒΑΣΙΚΕΣ ΤΙΜΕΣ'!C$27*'2.ΒΑΣΙΚΕΣ ΤΙΜΕΣ'!D$27*'1α.ΔΕΛΤΙΟ ΔΕΔΟΜΕΝΩΝ'!W8+N8","v":0},{"$f":"IF('1α.ΔΕΛΤΙΟ ΔΕΔΟΜΕΝΩΝ'!B8=\"\",0,VLOOKUP('1α.ΔΕΛΤΙΟ ΔΕΔΟΜΕΝΩΝ'!B8,'2.ΒΑΣΙΚΕΣ ΤΙΜΕΣ'!A$36:B$51,2,FALSE)*('1α.ΔΕΛΤΙΟ ΔΕΔΟΜΕΝΩΝ'!C8-'1α.ΔΕΛΤΙΟ ΔΕΔΟΜΕΝΩΝ'!J8))","v":0},{"$f":"'2.ΒΑΣΙΚΕΣ ΤΙΜΕΣ'!D$36*0.7*('1α.ΔΕΛΤΙΟ ΔΕΔΟΜΕΝΩΝ'!C8-'1α.ΔΕΛΤΙΟ ΔΕΔΟΜΕΝΩΝ'!K8)","v":0},{"$f":"IF('1α.ΔΕΛΤΙΟ ΔΕΔΟΜΕΝΩΝ'!B8=\"\",0,VLOOKUP('1α.ΔΕΛΤΙΟ ΔΕΔΟΜΕΝΩΝ'!B8,'2.ΒΑΣΙΚΕΣ ΤΙΜΕΣ'!A$36:C$51,3,FALSE)*'1α.ΔΕΛΤΙΟ ΔΕΔΟΜΕΝΩΝ'!C8)","v":0},{"$f":"(IF(OR('1α.ΔΕΛΤΙΟ ΔΕΔΟΜΕΝΩΝ'!M8=\"\",'1α.ΔΕΛΤΙΟ ΔΕΔΟΜΕΝΩΝ'!Q8=\"\",'1α.ΔΕΛΤΙΟ ΔΕΔΟΜΕΝΩΝ'!R8=\"\",'1α.ΔΕΛΤΙΟ ΔΕΔΟΜΕΝΩΝ'!R8=\"Επιφάνεια χωρίς φυτοκάλυψη \"),0,IF('1α.ΔΕΛΤΙΟ ΔΕΔΟΜΕΝΩΝ'!M8=0,0,VLOOKUP('1α.ΔΕΛΤΙΟ ΔΕΔΟΜΕΝΩΝ'!M8&'1α.ΔΕΛΤΙΟ ΔΕΔΟΜΕΝΩΝ'!Q8&'1α.ΔΕΛΤΙΟ ΔΕΔΟΜΕΝΩΝ'!R8,'PS DATA'!D:E,2,FALSE)*'1α.ΔΕΛΤΙΟ ΔΕΔΟΜΕΝΩΝ'!C8*'2.ΒΑΣΙΚΕΣ ΤΙΜΕΣ'!B$54)))","v":0},{"$f":"IF('1α.ΔΕΛΤΙΟ ΔΕΔΟΜΕΝΩΝ'!B8=\"\",0,VLOOKUP('1α.ΔΕΛΤΙΟ ΔΕΔΟΜΕΝΩΝ'!B8,'CS DATA'!D$2:H$13,5,FALSE)*'1α.ΔΕΛΤΙΟ ΔΕΔΟΜΕΝΩΝ'!D8*'1α.ΔΕΛΤΙΟ ΔΕΔΟΜΕΝΩΝ'!C8*'2.ΒΑΣΙΚΕΣ ΤΙΜΕΣ'!D$70)*IF('1α.ΔΕΛΤΙΟ ΔΕΔΟΜΕΝΩΝ'!S8=\"\",0,VLOOKUP('1α.ΔΕΛΤΙΟ ΔΕΔΟΜΕΝΩΝ'!S8,'CS DATA'!A$1:B$13,2,FALSE))","v":0},{"$f":"IF('1α.ΔΕΛΤΙΟ ΔΕΔΟΜΕΝΩΝ'!T8=\"\",0,VLOOKUP('1α.ΔΕΛΤΙΟ ΔΕΔΟΜΕΝΩΝ'!T8,'2.ΒΑΣΙΚΕΣ ΤΙΜΕΣ'!E$64:F$74,2,FALSE)*'1α.ΔΕΛΤΙΟ ΔΕΔΟΜΕΝΩΝ'!C8)*'2.ΒΑΣΙΚΕΣ ΤΙΜΕΣ'!D$71","v":0},{"$f":"IF('1α.ΔΕΛΤΙΟ ΔΕΔΟΜΕΝΩΝ'!B8=\"\",0,VLOOKUP('1α.ΔΕΛΤΙΟ ΔΕΔΟΜΕΝΩΝ'!B8,'2.ΒΑΣΙΚΕΣ ΤΙΜΕΣ'!A$76:B$89,2,FALSE)*'1α.ΔΕΛΤΙΟ ΔΕΔΟΜΕΝΩΝ'!C8)","v":0},0,null,null,{"$f":"IF('1α.ΔΕΛΤΙΟ ΔΕΔΟΜΕΝΩΝ'!C$23=0,0,'1β.ΜΞΔΠ'!F30*'1α.ΔΕΛΤΙΟ ΔΕΔΟΜΕΝΩΝ'!C8/'1α.ΔΕΛΤΙΟ ΔΕΔΟΜΕΝΩΝ'!C$23)","v":0}]
[7,{"$f":"IF('1α.ΔΕΛΤΙΟ ΔΕΔΟΜΕΝΩΝ'!B9=\"\",0,IF('1α.ΔΕΛΤΙΟ ΔΕΔΟΜΕΝΩΝ'!C9>0,VLOOKUP('1α.ΔΕΛΤΙΟ ΔΕΔΟΜΕΝΩΝ'!B9,'2.ΒΑΣΙΚΕΣ ΤΙΜΕΣ'!A$6:D$18,4,FALSE)*VLOOKUP('1α.ΔΕΛΤΙΟ ΔΕΔΟΜΕΝΩΝ'!B9,'2.ΒΑΣΙΚΕΣ ΤΙΜΕΣ'!A$6:K$18,11,FALSE),0)*'1α.ΔΕΛΤΙΟ ΔΕΔΟΜΕΝΩΝ'!C9*'1α.ΔΕΛΤΙΟ ΔΕΔΟΜΕΝΩΝ'!D9)","v":0},{"$f":"'1α.ΔΕΛΤΙΟ ΔΕΔΟΜΕΝΩΝ'!F9*'2.ΒΑΣΙΚΕΣ ΤΙΜΕΣ'!C$22*'2.ΒΑΣΙΚΕΣ ΤΙΜΕΣ'!D$22*'1α.ΔΕΛΤΙΟ ΔΕΔΟΜΕΝΩΝ'!C9+'1α.ΔΕΛΤΙΟ ΔΕΔΟΜΕΝΩΝ'!C9*'1α.ΔΕΛΤΙΟ ΔΕΔΟΜΕΝΩΝ'!G9*'2.ΒΑΣΙΚΕΣ ΤΙΜΕΣ'!C$25*'2.ΒΑΣΙΚΕΣ ΤΙΜΕΣ'!D$25+'1α.ΔΕΛΤΙΟ ΔΕΔΟΜΕΝΩΝ'!H9*'1α.ΔΕΛΤΙΟ ΔΕΔΟΜΕΝΩΝ'!C9*'2.ΒΑΣΙΚΕΣ ΤΙΜΕΣ'!C$27*'2.ΒΑΣΙΚΕΣ ΤΙΜΕΣ'!D$27*'1α.ΔΕΛΤΙΟ ΔΕΔΟΜΕΝΩΝ'!W9+N9","v":0},{"$f":"IF('1α.ΔΕΛΤΙΟ ΔΕΔΟΜΕΝΩΝ'!B9=\"\",0,VLOOKUP('1α.ΔΕΛΤΙΟ ΔΕΔΟΜΕΝΩΝ'!B9,'2.ΒΑΣΙΚΕΣ ΤΙΜΕΣ'!A$36:B$51,2,FALSE)*('1α.ΔΕΛΤΙΟ ΔΕΔΟΜΕΝΩΝ'!C9-'1α.ΔΕΛΤΙΟ ΔΕΔΟΜΕΝΩΝ'!J9))","v":0},{"$f":"'2.ΒΑΣΙΚΕΣ ΤΙΜΕΣ'!D$36*0.7*('1α.ΔΕΛΤΙΟ ΔΕΔΟΜΕΝΩΝ'!C9-'1α.ΔΕΛΤΙΟ ΔΕΔΟΜΕΝΩΝ'!K9)","v":0},{"$f":"IF('1α.ΔΕΛΤΙΟ ΔΕΔΟΜΕΝΩΝ'!B9=\"\",0,VLOOKUP('1α.ΔΕΛΤΙΟ ΔΕΔΟΜΕΝΩΝ'!B9,'2.ΒΑΣΙΚΕΣ ΤΙΜΕΣ'!A$36:C$51,3,FALSE)*'1α.ΔΕΛΤΙΟ ΔΕΔΟΜΕΝΩΝ'!C9)","v":0},{"$f":"(IF(OR('1α.ΔΕΛΤΙΟ ΔΕΔΟΜΕΝΩΝ'!M9=\"\",'1α.ΔΕΛΤΙΟ ΔΕΔΟΜΕΝΩΝ'!Q9=\"\",'1α.ΔΕΛΤΙΟ ΔΕΔΟΜΕΝΩΝ'!R9=\"\",'1α.ΔΕΛΤΙΟ ΔΕΔΟΜΕΝΩΝ'!R9=\"Επιφάνεια χωρίς φυτοκάλυψη \"),0,IF('1α.ΔΕΛΤΙΟ ΔΕΔΟΜΕΝΩΝ'!M9=0,0,VLOOKUP('1α.ΔΕΛΤΙΟ ΔΕΔΟΜΕΝΩΝ'!M9&'1α.ΔΕΛΤΙΟ ΔΕΔΟΜΕΝΩΝ'!Q9&'1α.ΔΕΛΤΙΟ ΔΕΔΟΜΕΝΩΝ'!R9,'PS DATA'!D:E,2,FALSE)*'1α.ΔΕΛΤΙΟ ΔΕΔΟΜΕΝΩΝ'!C9*'2.ΒΑΣΙΚΕΣ ΤΙΜΕΣ'!B$54)))","v":0},{"$f":"IF('1α.ΔΕΛΤΙΟ ΔΕΔΟΜΕΝΩΝ'!B9=\"\",0,VLOOKUP('1α.ΔΕΛΤΙΟ ΔΕΔΟΜΕΝΩΝ'!B9,'CS DATA'!D$2:H$13,5,FALSE)*'1α.ΔΕΛΤΙΟ ΔΕΔΟΜΕΝΩΝ'!D9*'1α.ΔΕΛΤΙΟ ΔΕΔΟΜΕΝΩΝ'!C9*'2.ΒΑΣΙΚΕΣ ΤΙΜΕΣ'!D$70)*IF('1α.ΔΕΛΤΙΟ ΔΕΔΟΜΕΝΩΝ'!S9=\"\",0,VLOOKUP('1α.ΔΕΛΤΙΟ ΔΕΔΟΜΕΝΩΝ'!S9,'CS DATA'!A$1:B$13,2,FALSE))","v":0},{"$f":"IF('1α.ΔΕΛΤΙΟ ΔΕΔΟΜΕΝΩΝ'!T9=\"\",0,VLOOKUP('1α.ΔΕΛΤΙΟ ΔΕΔΟΜΕΝΩΝ'!T9,'2.ΒΑΣΙΚΕΣ ΤΙΜΕΣ'!E$64:F$74,2,FALSE)*'1α.ΔΕΛΤΙΟ ΔΕΔΟΜΕΝΩΝ'!C9)*'2.ΒΑΣΙΚΕΣ ΤΙΜΕΣ'!D$71","v":0},{"$f":"IF('1α.ΔΕΛΤΙΟ ΔΕΔΟΜΕΝΩΝ'!B9=\"\",0,VLOOKUP('1α.ΔΕΛΤΙΟ ΔΕΔΟΜΕΝΩΝ'!B9,'2.ΒΑΣΙΚΕΣ ΤΙΜΕΣ'!A$76:B$89,2,FALSE)*'1α.ΔΕΛΤΙΟ ΔΕΔΟΜΕΝΩΝ'!C9)","v":0},0,null,null,{"$f":"IF('1α.ΔΕΛΤΙΟ ΔΕΔΟΜΕΝΩΝ'!C$23=0,0,'1β.ΜΞΔΠ'!F31*'1α.ΔΕΛΤΙΟ ΔΕΔΟΜΕΝΩΝ'!C9/'1α.ΔΕΛΤΙΟ ΔΕΔΟΜΕΝΩΝ'!C$23)","v":0}]
[8,{"$f":"IF('1α.ΔΕΛΤΙΟ ΔΕΔΟΜΕΝΩΝ'!B10=\"\",0,IF('1α.ΔΕΛΤΙΟ ΔΕΔΟΜΕΝΩΝ'!C10>0,VLOOKUP('1α.ΔΕΛΤΙΟ ΔΕΔΟΜΕΝΩΝ'!B10,'2.ΒΑΣΙΚΕΣ ΤΙΜΕΣ'!A$6:D$18,4,FALSE)*VLOOKUP('1α.ΔΕΛΤΙΟ ΔΕΔΟΜΕΝΩΝ'!B10,'2.ΒΑΣΙΚΕΣ ΤΙΜΕΣ'!A$6:K$18,11,FALSE),0)*'1α.ΔΕΛΤΙΟ ΔΕΔΟΜΕΝΩΝ'!C10*'1α.ΔΕΛΤΙΟ ΔΕΔΟΜΕΝΩΝ'!D10)","v":0},{"$f":"'1α.ΔΕΛΤΙΟ ΔΕΔΟΜΕΝΩΝ'!F10*'2.ΒΑΣΙΚΕΣ ΤΙΜΕΣ'!C$22*'2.ΒΑΣΙΚΕΣ ΤΙΜΕΣ'!D$22*'1α.ΔΕΛΤΙΟ ΔΕΔΟΜΕΝΩΝ'!C10+'1α.ΔΕΛΤΙΟ ΔΕΔΟΜΕΝΩΝ'!C10*'1α.ΔΕΛΤΙΟ ΔΕΔΟΜΕΝΩΝ'!G10*'2.ΒΑΣΙΚΕΣ ΤΙΜΕΣ'!C$25*'2.ΒΑΣΙΚΕΣ ΤΙΜΕΣ'!D$25+'1α.ΔΕΛΤΙΟ ΔΕΔΟΜΕΝΩΝ'!H10*'1α.ΔΕΛΤΙΟ ΔΕΔΟΜΕΝΩΝ'!C10*'2.ΒΑΣΙΚΕΣ ΤΙΜΕΣ'!C$27*'2.ΒΑΣΙΚΕΣ ΤΙΜΕΣ'!D$27*'1α.ΔΕΛΤΙΟ ΔΕΔΟΜΕΝΩΝ'!W10+N10","v":0},{"$f":"IF('1α.ΔΕΛΤΙΟ ΔΕΔΟΜΕΝΩΝ'!B10=\"\",0,VLOOKUP('1α.ΔΕΛΤΙΟ ΔΕΔΟΜΕΝΩΝ'!B10,'2.ΒΑΣΙΚΕΣ ΤΙΜΕΣ'!A$36:B$51,2,FALSE)*('1α.ΔΕΛΤΙΟ ΔΕΔΟΜΕΝΩΝ'!C10-'1α.ΔΕΛΤΙΟ ΔΕΔΟΜΕΝΩΝ'!J10))","v":0},{"$f":"'2.ΒΑΣΙΚΕΣ ΤΙΜΕΣ'!D$36*0.7*('1α.ΔΕΛΤΙΟ ΔΕΔΟΜΕΝΩΝ'!C10-'1α.ΔΕΛΤΙΟ ΔΕΔΟΜΕΝΩΝ'!K10)","v":0},{"$f":"IF('1α.ΔΕΛΤΙΟ ΔΕΔΟΜΕΝΩΝ'!B10=\"\",0,VLOOKUP('1α.ΔΕΛΤΙΟ ΔΕΔΟΜΕΝΩΝ'!B10,'2.ΒΑΣΙΚΕΣ ΤΙΜΕΣ'!A$36:C$51,3,FALSE)*'1α.ΔΕΛΤΙΟ ΔΕΔΟΜΕΝΩΝ'!C10)","v":0},{"$f":"(IF(OR('1α.ΔΕΛΤΙΟ ΔΕΔΟΜΕΝΩΝ'!M10=\"\",'1α.ΔΕΛΤΙΟ ΔΕΔΟΜΕΝΩΝ'!Q10=\"\",'1α.ΔΕΛΤΙΟ ΔΕΔΟΜΕΝΩΝ'!R10=\"\",'1α.ΔΕΛΤΙΟ ΔΕΔΟΜΕΝΩΝ'!R10=\"Επιφάνεια χωρίς φυτοκάλυψη \"),0,IF('1α.ΔΕΛΤΙΟ ΔΕΔΟΜΕΝΩΝ'!M10=0,0,VLOOKUP('1α.ΔΕΛΤΙΟ ΔΕΔΟΜΕΝΩΝ'!M10&'1α.ΔΕΛΤΙΟ ΔΕΔΟΜΕΝΩΝ'!Q10&'1α.ΔΕΛΤΙΟ ΔΕΔΟΜΕΝΩΝ'!R10,'PS DATA'!D:E,2,FALSE)*'1α.ΔΕΛΤΙΟ ΔΕΔΟΜΕΝΩΝ'!C10*'2.ΒΑΣΙΚΕΣ ΤΙΜΕΣ'!B$54)))","v":0},{"$f":"IF('1α.ΔΕΛΤΙΟ ΔΕΔΟΜΕΝΩΝ'!B10=\"\",0,VLOOKUP('1α.ΔΕΛΤΙΟ ΔΕΔΟΜΕΝΩΝ'!B10,'CS DATA'!D$2:H$13,5,FALSE)*'1α.ΔΕΛΤΙΟ ΔΕΔΟΜΕΝΩΝ'!D10*'1α.ΔΕΛΤΙΟ ΔΕΔΟΜΕΝΩΝ'!C10*'2.ΒΑΣΙΚΕΣ ΤΙΜΕΣ'!D$70)*IF('1α.ΔΕΛΤΙΟ ΔΕΔΟΜΕΝΩΝ'!S10=\"\",0,VLOOKUP('1α.ΔΕΛΤΙΟ ΔΕΔΟΜΕΝΩΝ'!S10,'CS DATA'!A$1:B$13,2,FALSE))","v":0},{"$f":"IF('1α.ΔΕΛΤΙΟ ΔΕΔΟΜΕΝΩΝ'!T10=\"\",0,VLOOKUP('1α.ΔΕΛΤΙΟ ΔΕΔΟΜΕΝΩΝ'!T10,'2.ΒΑΣΙΚΕΣ ΤΙΜΕΣ'!E$64:F$74,2,FALSE)*'1α.ΔΕΛΤΙΟ ΔΕΔΟΜΕΝΩΝ'!C10)*'2.ΒΑΣΙΚΕΣ ΤΙΜΕΣ'!D$71","v":0},{"$f":"IF('1α.ΔΕΛΤΙΟ ΔΕΔΟΜΕΝΩΝ'!B10=\"\",0,VLOOKUP('1α.ΔΕΛΤΙΟ ΔΕΔΟΜΕΝΩΝ'!B10,'2.ΒΑΣΙΚΕΣ ΤΙΜΕΣ'!A$76:B$89,2,FALSE)*'1α.ΔΕΛΤΙΟ ΔΕΔΟΜΕΝΩΝ'!C10)","v":0},0,null,null,{"$f":"IF('1α.ΔΕΛΤΙΟ ΔΕΔΟΜΕΝΩΝ'!C$23=0,0,'1β.ΜΞΔΠ'!F32*'1α.ΔΕΛΤΙΟ ΔΕΔΟΜΕΝΩΝ'!C10/'1α.ΔΕΛΤΙΟ ΔΕΔΟΜΕΝΩΝ'!C$23)","v":0}]
[9,{"$f":"IF('1α.ΔΕΛΤΙΟ ΔΕΔΟΜΕΝΩΝ'!B11=\"\",0,IF('1α.ΔΕΛΤΙΟ ΔΕΔΟΜΕΝΩΝ'!C11>0,VLOOKUP('1α.ΔΕΛΤΙΟ ΔΕΔΟΜΕΝΩΝ'!B11,'2.ΒΑΣΙΚΕΣ ΤΙΜΕΣ'!A$6:D$18,4,FALSE)*VLOOKUP('1α.ΔΕΛΤΙΟ ΔΕΔΟΜΕΝΩΝ'!B11,'2.ΒΑΣΙΚΕΣ ΤΙΜΕΣ'!A$6:K$18,11,FALSE),0)*'1α.ΔΕΛΤΙΟ ΔΕΔΟΜΕΝΩΝ'!C11*'1α.ΔΕΛΤΙΟ ΔΕΔΟΜΕΝΩΝ'!D11)","v":0},{"$f":"'1α.ΔΕΛΤΙΟ ΔΕΔΟΜΕΝΩΝ'!F11*'2.ΒΑΣΙΚΕΣ ΤΙΜΕΣ'!C$22*'2.ΒΑΣΙΚΕΣ ΤΙΜΕΣ'!D$22*'1α.ΔΕΛΤΙΟ ΔΕΔΟΜΕΝΩΝ'!C11+'1α.ΔΕΛΤΙΟ ΔΕΔΟΜΕΝΩΝ'!C11*'1α.ΔΕΛΤΙΟ ΔΕΔΟΜΕΝΩΝ'!G11*'2.ΒΑΣΙΚΕΣ ΤΙΜΕΣ'!C$25*'2.ΒΑΣΙΚΕΣ ΤΙΜΕΣ'!D$25+'1α.ΔΕΛΤΙΟ ΔΕΔΟΜΕΝΩΝ'!H11*'1α.ΔΕΛΤΙΟ ΔΕΔΟΜΕΝΩΝ'!C11*'2.ΒΑΣΙΚΕΣ ΤΙΜΕΣ'!C$27*'2.ΒΑΣΙΚΕΣ ΤΙΜΕΣ'!D$27*'1α.ΔΕΛΤΙΟ ΔΕΔΟΜΕΝΩΝ'!W11+N11","v":0},{"$f":"IF('1α.ΔΕΛΤΙΟ ΔΕΔΟΜΕΝΩΝ'!B11=\"\",0,VLOOKUP('1α.ΔΕΛΤΙΟ ΔΕΔΟΜΕΝΩΝ'!B11,'2.ΒΑΣΙΚΕΣ ΤΙΜΕΣ'!A$36:B$51,2,FALSE)*('1α.ΔΕΛΤΙΟ ΔΕΔΟΜΕΝΩΝ'!C11-'1α.ΔΕΛΤΙΟ ΔΕΔΟΜΕΝΩΝ'!J11))","v":0},{"$f":"'2.ΒΑΣΙΚΕΣ ΤΙΜΕΣ'!D$36*0.7*('1α.ΔΕΛΤΙΟ ΔΕΔΟΜΕΝΩΝ'!C11-'1α.ΔΕΛΤΙΟ ΔΕΔΟΜΕΝΩΝ'!K11)","v":0},{"$f":"IF('1α.ΔΕΛΤΙΟ ΔΕΔΟΜΕΝΩΝ'!B11=\"\",0,VLOOKUP('1α.ΔΕΛΤΙΟ ΔΕΔΟΜΕΝΩΝ'!B11,'2.ΒΑΣΙΚΕΣ ΤΙΜΕΣ'!A$36:C$51,3,FALSE)*'1α.ΔΕΛΤΙΟ ΔΕΔΟΜΕΝΩΝ'!C11)","v":0},{"$f":"(IF(OR('1α.ΔΕΛΤΙΟ ΔΕΔΟΜΕΝΩΝ'!M11=\"\",'1α.ΔΕΛΤΙΟ ΔΕΔΟΜΕΝΩΝ'!Q11=\"\",'1α.ΔΕΛΤΙΟ ΔΕΔΟΜΕΝΩΝ'!R11=\"\",'1α.ΔΕΛΤΙΟ ΔΕΔΟΜΕΝΩΝ'!R11=\"Επιφάνεια χωρίς φυτοκάλυψη \"),0,IF('1α.ΔΕΛΤΙΟ ΔΕΔΟΜΕΝΩΝ'!M11=0,0,VLOOKUP('1α.ΔΕΛΤΙΟ ΔΕΔΟΜΕΝΩΝ'!M11&'1α.ΔΕΛΤΙΟ ΔΕΔΟΜΕΝΩΝ'!Q11&'1α.ΔΕΛΤΙΟ ΔΕΔΟΜΕΝΩΝ'!R11,'PS DATA'!D:E,2,FALSE)*'1α.ΔΕΛΤΙΟ ΔΕΔΟΜΕΝΩΝ'!C11*'2.ΒΑΣΙΚΕΣ ΤΙΜΕΣ'!B$54)))","v":0},{"$f":"IF('1α.ΔΕΛΤΙΟ ΔΕΔΟΜΕΝΩΝ'!B11=\"\",0,VLOOKUP('1α.ΔΕΛΤΙΟ ΔΕΔΟΜΕΝΩΝ'!B11,'CS DATA'!D$2:H$13,5,FALSE)*'1α.ΔΕΛΤΙΟ ΔΕΔΟΜΕΝΩΝ'!D11*'1α.ΔΕΛΤΙΟ ΔΕΔΟΜΕΝΩΝ'!C11*'2.ΒΑΣΙΚΕΣ ΤΙΜΕΣ'!D$70)*IF('1α.ΔΕΛΤΙΟ ΔΕΔΟΜΕΝΩΝ'!S11=\"\",0,VLOOKUP('1α.ΔΕΛΤΙΟ ΔΕΔΟΜΕΝΩΝ'!S11,'CS DATA'!A$1:B$13,2,FALSE))","v":0},{"$f":"IF('1α.ΔΕΛΤΙΟ ΔΕΔΟΜΕΝΩΝ'!T11=\"\",0,VLOOKUP('1α.ΔΕΛΤΙΟ ΔΕΔΟΜΕΝΩΝ'!T11,'2.ΒΑΣΙΚΕΣ ΤΙΜΕΣ'!E$64:F$74,2,FALSE)*'1α.ΔΕΛΤΙΟ ΔΕΔΟΜΕΝΩΝ'!C11)*'2.ΒΑΣΙΚΕΣ ΤΙΜΕΣ'!D$71","v":0},{"$f":"IF('1α.ΔΕΛΤΙΟ ΔΕΔΟΜΕΝΩΝ'!B11=\"\",0,VLOOKUP('1α.ΔΕΛΤΙΟ ΔΕΔΟΜΕΝΩΝ'!B11,'2.ΒΑΣΙΚΕΣ ΤΙΜΕΣ'!A$76:B$89,2,FALSE)*'1α.ΔΕΛΤΙΟ ΔΕΔΟΜΕΝΩΝ'!C11)","v":0},0,null,null,{"$f":"IF('1α.ΔΕΛΤΙΟ ΔΕΔΟΜΕΝΩΝ'!C$23=0,0,'1β.ΜΞΔΠ'!F33*'1α.ΔΕΛΤΙΟ ΔΕΔΟΜΕΝΩΝ'!C11/'1α.ΔΕΛΤΙΟ ΔΕΔΟΜΕΝΩΝ'!C$23)","v":0}]
[10,{"$f":"IF('1α.ΔΕΛΤΙΟ ΔΕΔΟΜΕΝΩΝ'!B12=\"\",0,IF('1α.ΔΕΛΤΙΟ ΔΕΔΟΜΕΝΩΝ'!C12>0,VLOOKUP('1α.ΔΕΛΤΙΟ ΔΕΔΟΜΕΝΩΝ'!B12,'2.ΒΑΣΙΚΕΣ ΤΙΜΕΣ'!A$6:D$18,4,FALSE)*VLOOKUP('1α.ΔΕΛΤΙΟ ΔΕΔΟΜΕΝΩΝ'!B12,'2.ΒΑΣΙΚΕΣ ΤΙΜΕΣ'!A$6:K$18,11,FALSE),0)*'1α.ΔΕΛΤΙΟ ΔΕΔΟΜΕΝΩΝ'!C12*'1α.ΔΕΛΤΙΟ ΔΕΔΟΜΕΝΩΝ'!D12)","v":0},{"$f":"'1α.ΔΕΛΤΙΟ ΔΕΔΟΜΕΝΩΝ'!F12*'2.ΒΑΣΙΚΕΣ ΤΙΜΕΣ'!C$22*'2.ΒΑΣΙΚΕΣ ΤΙΜΕΣ'!D$22*'1α.ΔΕΛΤΙΟ ΔΕΔΟΜΕΝΩΝ'!C12+'1α.ΔΕΛΤΙΟ ΔΕΔΟΜΕΝΩΝ'!C12*'1α.ΔΕΛΤΙΟ ΔΕΔΟΜΕΝΩΝ'!G12*'2.ΒΑΣΙΚΕΣ ΤΙΜΕΣ'!C$25*'2.ΒΑΣΙΚΕΣ ΤΙΜΕΣ'!D$25+'1α.ΔΕΛΤΙΟ ΔΕΔΟΜΕΝΩΝ'!H12*'1α.ΔΕΛΤΙΟ ΔΕΔΟΜΕΝΩΝ'!C12*'2.ΒΑΣΙΚΕΣ ΤΙΜΕΣ'!C$27*'2.ΒΑΣΙΚΕΣ ΤΙΜΕΣ'!D$27*'1α.ΔΕΛΤΙΟ ΔΕΔΟΜΕΝΩΝ'!W12+N12","v":0},{"$f":"IF('1α.ΔΕΛΤΙΟ ΔΕΔΟΜΕΝΩΝ'!B12=\"\",0,VLOOKUP('1α.ΔΕΛΤΙΟ ΔΕΔΟΜΕΝΩΝ'!B12,'2.ΒΑΣΙΚΕΣ ΤΙΜΕΣ'!A$36:B$51,2,FALSE)*('1α.ΔΕΛΤΙΟ ΔΕΔΟΜΕΝΩΝ'!C12-'1α.ΔΕΛΤΙΟ ΔΕΔΟΜΕΝΩΝ'!J12))","v":0},{"$f":"'2.ΒΑΣΙΚΕΣ ΤΙΜΕΣ'!D$36*0.7*('1α.ΔΕΛΤΙΟ ΔΕΔΟΜΕΝΩΝ'!C12-'1α.ΔΕΛΤΙΟ ΔΕΔΟΜΕΝΩΝ'!K12)","v":0},{"$f":"IF('1α.ΔΕΛΤΙΟ ΔΕΔΟΜΕΝΩΝ'!B12=\"\",0,VLOOKUP('1α.ΔΕΛΤΙΟ ΔΕΔΟΜΕΝΩΝ'!B12,'2.ΒΑΣΙΚΕΣ ΤΙΜΕΣ'!A$36:C$51,3,FALSE)*'1α.ΔΕΛΤΙΟ ΔΕΔΟΜΕΝΩΝ'!C12)","v":0},{"$f":"(IF(OR('1α.ΔΕΛΤΙΟ ΔΕΔΟΜΕΝΩΝ'!M12=\"\",'1α.ΔΕΛΤΙΟ ΔΕΔΟΜΕΝΩΝ'!Q12=\"\",'1α.ΔΕΛΤΙΟ ΔΕΔΟΜΕΝΩΝ'!R12=\"\",'1α.ΔΕΛΤΙΟ ΔΕΔΟΜΕΝΩΝ'!R12=\"Επιφάνεια χωρίς φυτοκάλυψη \"),0,IF('1α.ΔΕΛΤΙΟ ΔΕΔΟΜΕΝΩΝ'!M12=0,0,VLOOKUP('1α.ΔΕΛΤΙΟ ΔΕΔΟΜΕΝΩΝ'!M12&'1α.ΔΕΛΤΙΟ ΔΕΔΟΜΕΝΩΝ'!Q12&'1α.ΔΕΛΤΙΟ ΔΕΔΟΜΕΝΩΝ'!R12,'PS DATA'!D:E,2,FALSE)*'1α.ΔΕΛΤΙΟ ΔΕΔΟΜΕΝΩΝ'!C12*'2.ΒΑΣΙΚΕΣ ΤΙΜΕΣ'!B$54)))","v":0},{"$f":"IF('1α.ΔΕΛΤΙΟ ΔΕΔΟΜΕΝΩΝ'!B12=\"\",0,VLOOKUP('1α.ΔΕΛΤΙΟ ΔΕΔΟΜΕΝΩΝ'!B12,'CS DATA'!D$2:H$13,5,FALSE)*'1α.ΔΕΛΤΙΟ ΔΕΔΟΜΕΝΩΝ'!D12*'1α.ΔΕΛΤΙΟ ΔΕΔΟΜΕΝΩΝ'!C12*'2.ΒΑΣΙΚΕΣ ΤΙΜΕΣ'!D$70)*IF('1α.ΔΕΛΤΙΟ ΔΕΔΟΜΕΝΩΝ'!S12=\"\",0,VLOOKUP('1α.ΔΕΛΤΙΟ ΔΕΔΟΜΕΝΩΝ'!S12,'CS DATA'!A$1:B$13,2,FALSE))","v":0},{"$f":"IF('1α.ΔΕΛΤΙΟ ΔΕΔΟΜΕΝΩΝ'!T12=\"\",0,VLOOKUP('1α.ΔΕΛΤΙΟ ΔΕΔΟΜΕΝΩΝ'!T12,'2.ΒΑΣΙΚΕΣ ΤΙΜΕΣ'!E$64:F$74,2,FALSE)*'1α.ΔΕΛΤΙΟ ΔΕΔΟΜΕΝΩΝ'!C12)*'2.ΒΑΣΙΚΕΣ ΤΙΜΕΣ'!D$71","v":0},{"$f":"IF('1α.ΔΕΛΤΙΟ ΔΕΔΟΜΕΝΩΝ'!B12=\"\",0,VLOOKUP('1α.ΔΕΛΤΙΟ ΔΕΔΟΜΕΝΩΝ'!B12,'2.ΒΑΣΙΚΕΣ ΤΙΜΕΣ'!A$76:B$89,2,FALSE)*'1α.ΔΕΛΤΙΟ ΔΕΔΟΜΕΝΩΝ'!C12)","v":0},0,null,null,{"$f":"IF('1α.ΔΕΛΤΙΟ ΔΕΔΟΜΕΝΩΝ'!C$23=0,0,'1β.ΜΞΔΠ'!F34*'1α.ΔΕΛΤΙΟ ΔΕΔΟΜΕΝΩΝ'!C12/'1α.ΔΕΛΤΙΟ ΔΕΔΟΜΕΝΩΝ'!C$23)","v":0}]
[11,{"$f":"IF('1α.ΔΕΛΤΙΟ ΔΕΔΟΜΕΝΩΝ'!B13=\"\",0,IF('1α.ΔΕΛΤΙΟ ΔΕΔΟΜΕΝΩΝ'!C13>0,VLOOKUP('1α.ΔΕΛΤΙΟ ΔΕΔΟΜΕΝΩΝ'!B13,'2.ΒΑΣΙΚΕΣ ΤΙΜΕΣ'!A$6:D$18,4,FALSE)*VLOOKUP('1α.ΔΕΛΤΙΟ ΔΕΔΟΜΕΝΩΝ'!B13,'2.ΒΑΣΙΚΕΣ ΤΙΜΕΣ'!A$6:K$18,11,FALSE),0)*'1α.ΔΕΛΤΙΟ ΔΕΔΟΜΕΝΩΝ'!C13*'1α.ΔΕΛΤΙΟ ΔΕΔΟΜΕΝΩΝ'!D13)","v":0},{"$f":"'1α.ΔΕΛΤΙΟ ΔΕΔΟΜΕΝΩΝ'!F13*'2.ΒΑΣΙΚΕΣ ΤΙΜΕΣ'!C$22*'2.ΒΑΣΙΚΕΣ ΤΙΜΕΣ'!D$22*'1α.ΔΕΛΤΙΟ ΔΕΔΟΜΕΝΩΝ'!C13+'1α.ΔΕΛΤΙΟ ΔΕΔΟΜΕΝΩΝ'!C13*'1α.ΔΕΛΤΙΟ ΔΕΔΟΜΕΝΩΝ'!G13*'2.ΒΑΣΙΚΕΣ ΤΙΜΕΣ'!C$25*'2.ΒΑΣΙΚΕΣ ΤΙΜΕΣ'!D$25+'1α.ΔΕΛΤΙΟ ΔΕΔΟΜΕΝΩΝ'!H13*'1α.ΔΕΛΤΙΟ ΔΕΔΟΜΕΝΩΝ'!C13*'2.ΒΑΣΙΚΕΣ ΤΙΜΕΣ'!C$27*'2.ΒΑΣΙΚΕΣ ΤΙΜΕΣ'!D$27*'1α.ΔΕΛΤΙΟ ΔΕΔΟΜΕΝΩΝ'!W13+N13","v":0},{"$f":"IF('1α.ΔΕΛΤΙΟ ΔΕΔΟΜΕΝΩΝ'!B13=\"\",0,VLOOKUP('1α.ΔΕΛΤΙΟ ΔΕΔΟΜΕΝΩΝ'!B13,'2.ΒΑΣΙΚΕΣ ΤΙΜΕΣ'!A$36:B$51,2,FALSE)*('1α.ΔΕΛΤΙΟ ΔΕΔΟΜΕΝΩΝ'!C13-'1α.ΔΕΛΤΙΟ ΔΕΔΟΜΕΝΩΝ'!J13))","v":0},{"$f":"'2.ΒΑΣΙΚΕΣ ΤΙΜΕΣ'!D$36*0.7*('1α.ΔΕΛΤΙΟ ΔΕΔΟΜΕΝΩΝ'!C13-'1α.ΔΕΛΤΙΟ ΔΕΔΟΜΕΝΩΝ'!K13)","v":0},{"$f":"IF('1α.ΔΕΛΤΙΟ ΔΕΔΟΜΕΝΩΝ'!B13=\"\",0,VLOOKUP('1α.ΔΕΛΤΙΟ ΔΕΔΟΜΕΝΩΝ'!B13,'2.ΒΑΣΙΚΕΣ ΤΙΜΕΣ'!A$36:C$51,3,FALSE)*'1α.ΔΕΛΤΙΟ ΔΕΔΟΜΕΝΩΝ'!C13)","v":0},{"$f":"(IF(OR('1α.ΔΕΛΤΙΟ ΔΕΔΟΜΕΝΩΝ'!M13=\"\",'1α.ΔΕΛΤΙΟ ΔΕΔΟΜΕΝΩΝ'!Q13=\"\",'1α.ΔΕΛΤΙΟ ΔΕΔΟΜΕΝΩΝ'!R13=\"\",'1α.ΔΕΛΤΙΟ ΔΕΔΟΜΕΝΩΝ'!R13=\"Επιφάνεια χωρίς φυτοκάλυψη \"),0,IF('1α.ΔΕΛΤΙΟ ΔΕΔΟΜΕΝΩΝ'!M13=0,0,VLOOKUP('1α.ΔΕΛΤΙΟ ΔΕΔΟΜΕΝΩΝ'!M13&'1α.ΔΕΛΤΙΟ ΔΕΔΟΜΕΝΩΝ'!Q13&'1α.ΔΕΛΤΙΟ ΔΕΔΟΜΕΝΩΝ'!R13,'PS DATA'!D:E,2,FALSE)*'1α.ΔΕΛΤΙΟ ΔΕΔΟΜΕΝΩΝ'!C13*'2.ΒΑΣΙΚΕΣ ΤΙΜΕΣ'!B$54)))","v":0},{"$f":"IF('1α.ΔΕΛΤΙΟ ΔΕΔΟΜΕΝΩΝ'!B13=\"\",0,VLOOKUP('1α.ΔΕΛΤΙΟ ΔΕΔΟΜΕΝΩΝ'!B13,'CS DATA'!D$2:H$13,5,FALSE)*'1α.ΔΕΛΤΙΟ ΔΕΔΟΜΕΝΩΝ'!D13*'1α.ΔΕΛΤΙΟ ΔΕΔΟΜΕΝΩΝ'!C13*'2.ΒΑΣΙΚΕΣ ΤΙΜΕΣ'!D$70)*IF('1α.ΔΕΛΤΙΟ ΔΕΔΟΜΕΝΩΝ'!S13=\"\",0,VLOOKUP('1α.ΔΕΛΤΙΟ ΔΕΔΟΜΕΝΩΝ'!S13,'CS DATA'!A$1:B$13,2,FALSE))","v":0},{"$f":"IF('1α.ΔΕΛΤΙΟ ΔΕΔΟΜΕΝΩΝ'!T13=\"\",0,VLOOKUP('1α.ΔΕΛΤΙΟ ΔΕΔΟΜΕΝΩΝ'!T13,'2.ΒΑΣΙΚΕΣ ΤΙΜΕΣ'!E$64:F$74,2,FALSE)*'1α.ΔΕΛΤΙΟ ΔΕΔΟΜΕΝΩΝ'!C13)*'2.ΒΑΣΙΚΕΣ ΤΙΜΕΣ'!D$71","v":0},{"$f":"IF('1α.ΔΕΛΤΙΟ ΔΕΔΟΜΕΝΩΝ'!B13=\"\",0,VLOOKUP('1α.ΔΕΛΤΙΟ ΔΕΔΟΜΕΝΩΝ'!B13,'2.ΒΑΣΙΚΕΣ ΤΙΜΕΣ'!A$76:B$89,2,FALSE)*'1α.ΔΕΛΤΙΟ ΔΕΔΟΜΕΝΩΝ'!C13)","v":0},0,null,null,{"$f":"IF('1α.ΔΕΛΤΙΟ ΔΕΔΟΜΕΝΩΝ'!C$23=0,0,'1β.ΜΞΔΠ'!F35*'1α.ΔΕΛΤΙΟ ΔΕΔΟΜΕΝΩΝ'!C13/'1α.ΔΕΛΤΙΟ ΔΕΔΟΜΕΝΩΝ'!C$23)","v":0}]
[12,{"$f":"IF('1α.ΔΕΛΤΙΟ ΔΕΔΟΜΕΝΩΝ'!B14=\"\",0,IF('1α.ΔΕΛΤΙΟ ΔΕΔΟΜΕΝΩΝ'!C14>0,VLOOKUP('1α.ΔΕΛΤΙΟ ΔΕΔΟΜΕΝΩΝ'!B14,'2.ΒΑΣΙΚΕΣ ΤΙΜΕΣ'!A$6:D$18,4,FALSE)*VLOOKUP('1α.ΔΕΛΤΙΟ ΔΕΔΟΜΕΝΩΝ'!B14,'2.ΒΑΣΙΚΕΣ ΤΙΜΕΣ'!A$6:K$18,11,FALSE),0)*'1α.ΔΕΛΤΙΟ ΔΕΔΟΜΕΝΩΝ'!C14*'1α.ΔΕΛΤΙΟ ΔΕΔΟΜΕΝΩΝ'!D14)","v":0},{"$f":"'1α.ΔΕΛΤΙΟ ΔΕΔΟΜΕΝΩΝ'!F14*'2.ΒΑΣΙΚΕΣ ΤΙΜΕΣ'!C$22*'2.ΒΑΣΙΚΕΣ ΤΙΜΕΣ'!D$22*'1α.ΔΕΛΤΙΟ ΔΕΔΟΜΕΝΩΝ'!C14+'1α.ΔΕΛΤΙΟ ΔΕΔΟΜΕΝΩΝ'!C14*'1α.ΔΕΛΤΙΟ ΔΕΔΟΜΕΝΩΝ'!G14*'2.ΒΑΣΙΚΕΣ ΤΙΜΕΣ'!C$25*'2.ΒΑΣΙΚΕΣ ΤΙΜΕΣ'!D$25+'1α.ΔΕΛΤΙΟ ΔΕΔΟΜΕΝΩΝ'!H14*'1α.ΔΕΛΤΙΟ ΔΕΔΟΜΕΝΩΝ'!C14*'2.ΒΑΣΙΚΕΣ ΤΙΜΕΣ'!C$27*'2.ΒΑΣΙΚΕΣ ΤΙΜΕΣ'!D$27*'1α.ΔΕΛΤΙΟ ΔΕΔΟΜΕΝΩΝ'!W14+N14","v":0},{"$f":"IF('1α.ΔΕΛΤΙΟ ΔΕΔΟΜΕΝΩΝ'!B14=\"\",0,VLOOKUP('1α.ΔΕΛΤΙΟ ΔΕΔΟΜΕΝΩΝ'!B14,'2.ΒΑΣΙΚΕΣ ΤΙΜΕΣ'!A$36:B$51,2,FALSE)*('1α.ΔΕΛΤΙΟ ΔΕΔΟΜΕΝΩΝ'!C14-'1α.ΔΕΛΤΙΟ ΔΕΔΟΜΕΝΩΝ'!J14))","v":0},{"$f":"'2.ΒΑΣΙΚΕΣ ΤΙΜΕΣ'!D$36*0.7*('1α.ΔΕΛΤΙΟ ΔΕΔΟΜΕΝΩΝ'!C14-'1α.ΔΕΛΤΙΟ ΔΕΔΟΜΕΝΩΝ'!K14)","v":0},{"$f":"IF('1α.ΔΕΛΤΙΟ ΔΕΔΟΜΕΝΩΝ'!B14=\"\",0,VLOOKUP('1α.ΔΕΛΤΙΟ ΔΕΔΟΜΕΝΩΝ'!B14,'2.ΒΑΣΙΚΕΣ ΤΙΜΕΣ'!A$36:C$51,3,FALSE)*'1α.ΔΕΛΤΙΟ ΔΕΔΟΜΕΝΩΝ'!C14)","v":0},{"$f":"(IF(OR('1α.ΔΕΛΤΙΟ ΔΕΔΟΜΕΝΩΝ'!M14=\"\",'1α.ΔΕΛΤΙΟ ΔΕΔΟΜΕΝΩΝ'!Q14=\"\",'1α.ΔΕΛΤΙΟ ΔΕΔΟΜΕΝΩΝ'!R14=\"\",'1α.ΔΕΛΤΙΟ ΔΕΔΟΜΕΝΩΝ'!R14=\"Επιφάνεια χωρίς φυτοκάλυψη \"),0,IF('1α.ΔΕΛΤΙΟ ΔΕΔΟΜΕΝΩΝ'!M14=0,0,VLOOKUP('1α.ΔΕΛΤΙΟ ΔΕΔΟΜΕΝΩΝ'!M14&'1α.ΔΕΛΤΙΟ ΔΕΔΟΜΕΝΩΝ'!Q14&'1α.ΔΕΛΤΙΟ ΔΕΔΟΜΕΝΩΝ'!R14,'PS DATA'!D:E,2,FALSE)*'1α.ΔΕΛΤΙΟ ΔΕΔΟΜΕΝΩΝ'!C14*'2.ΒΑΣΙΚΕΣ ΤΙΜΕΣ'!B$54)))","v":0},{"$f":"IF('1α.ΔΕΛΤΙΟ ΔΕΔΟΜΕΝΩΝ'!B14=\"\",0,VLOOKUP('1α.ΔΕΛΤΙΟ ΔΕΔΟΜΕΝΩΝ'!B14,'CS DATA'!D$2:H$13,5,FALSE)*'1α.ΔΕΛΤΙΟ ΔΕΔΟΜΕΝΩΝ'!D14*'1α.ΔΕΛΤΙΟ ΔΕΔΟΜΕΝΩΝ'!C14*'2.ΒΑΣΙΚΕΣ ΤΙΜΕΣ'!D$70)*IF('1α.ΔΕΛΤΙΟ ΔΕΔΟΜΕΝΩΝ'!S14=\"\",0,VLOOKUP('1α.ΔΕΛΤΙΟ ΔΕΔΟΜΕΝΩΝ'!S14,'CS DATA'!A$1:B$13,2,FALSE))","v":0},{"$f":"IF('1α.ΔΕΛΤΙΟ ΔΕΔΟΜΕΝΩΝ'!T14=\"\",0,VLOOKUP('1α.ΔΕΛΤΙΟ ΔΕΔΟΜΕΝΩΝ'!T14,'2.ΒΑΣΙΚΕΣ ΤΙΜΕΣ'!E$64:F$74,2,FALSE)*'1α.ΔΕΛΤΙΟ ΔΕΔΟΜΕΝΩΝ'!C14)*'2.ΒΑΣΙΚΕΣ ΤΙΜΕΣ'!D$71","v":0},{"$f":"IF('1α.ΔΕΛΤΙΟ ΔΕΔΟΜΕΝΩΝ'!B14=\"\",0,VLOOKUP('1α.ΔΕΛΤΙΟ ΔΕΔΟΜΕΝΩΝ'!B14,'2.ΒΑΣΙΚΕΣ ΤΙΜΕΣ'!A$76:B$89,2,FALSE)*'1α.ΔΕΛΤΙΟ ΔΕΔΟΜΕΝΩΝ'!C14)","v":0},0,null,null,{"$f":"IF('1α.ΔΕΛΤΙΟ ΔΕΔΟΜΕΝΩΝ'!C$23=0,0,'1β.ΜΞΔΠ'!F36*'1α.ΔΕΛΤΙΟ ΔΕΔΟΜΕΝΩΝ'!C14/'1α.ΔΕΛΤΙΟ ΔΕΔΟΜΕΝΩΝ'!C$23)","v":0}]
[13,{"$f":"IF('1α.ΔΕΛΤΙΟ ΔΕΔΟΜΕΝΩΝ'!B15=\"\",0,IF('1α.ΔΕΛΤΙΟ ΔΕΔΟΜΕΝΩΝ'!C15>0,VLOOKUP('1α.ΔΕΛΤΙΟ ΔΕΔΟΜΕΝΩΝ'!B15,'2.ΒΑΣΙΚΕΣ ΤΙΜΕΣ'!A$6:D$18,4,FALSE)*VLOOKUP('1α.ΔΕΛΤΙΟ ΔΕΔΟΜΕΝΩΝ'!B15,'2.ΒΑΣΙΚΕΣ ΤΙΜΕΣ'!A$6:K$18,11,FALSE),0)*'1α.ΔΕΛΤΙΟ ΔΕΔΟΜΕΝΩΝ'!C15*'1α.ΔΕΛΤΙΟ ΔΕΔΟΜΕΝΩΝ'!D15)","v":0},{"$f":"'1α.ΔΕΛΤΙΟ ΔΕΔΟΜΕΝΩΝ'!F15*'2.ΒΑΣΙΚΕΣ ΤΙΜΕΣ'!C$22*'2.ΒΑΣΙΚΕΣ ΤΙΜΕΣ'!D$22*'1α.ΔΕΛΤΙΟ ΔΕΔΟΜΕΝΩΝ'!C15+'1α.ΔΕΛΤΙΟ ΔΕΔΟΜΕΝΩΝ'!C15*'1α.ΔΕΛΤΙΟ ΔΕΔΟΜΕΝΩΝ'!G15*'2.ΒΑΣΙΚΕΣ ΤΙΜΕΣ'!C$25*'2.ΒΑΣΙΚΕΣ ΤΙΜΕΣ'!D$25+'1α.ΔΕΛΤΙΟ ΔΕΔΟΜΕΝΩΝ'!H15*'1α.ΔΕΛΤΙΟ ΔΕΔΟΜΕΝΩΝ'!C15*'2.ΒΑΣΙΚΕΣ ΤΙΜΕΣ'!C$27*'2.ΒΑΣΙΚΕΣ ΤΙΜΕΣ'!D$27*'1α.ΔΕΛΤΙΟ ΔΕΔΟΜΕΝΩΝ'!W15+N15","v":0},{"$f":"IF('1α.ΔΕΛΤΙΟ ΔΕΔΟΜΕΝΩΝ'!B15=\"\",0,VLOOKUP('1α.ΔΕΛΤΙΟ ΔΕΔΟΜΕΝΩΝ'!B15,'2.ΒΑΣΙΚΕΣ ΤΙΜΕΣ'!A$36:B$51,2,FALSE)*('1α.ΔΕΛΤΙΟ ΔΕΔΟΜΕΝΩΝ'!C15-'1α.ΔΕΛΤΙΟ ΔΕΔΟΜΕΝΩΝ'!J15))","v":0},{"$f":"'2.ΒΑΣΙΚΕΣ ΤΙΜΕΣ'!D$36*0.7*('1α.ΔΕΛΤΙΟ ΔΕΔΟΜΕΝΩΝ'!C15-'1α.ΔΕΛΤΙΟ ΔΕΔΟΜΕΝΩΝ'!K15)","v":0},{"$f":"IF('1α.ΔΕΛΤΙΟ ΔΕΔΟΜΕΝΩΝ'!B15=\"\",0,VLOOKUP('1α.ΔΕΛΤΙΟ ΔΕΔΟΜΕΝΩΝ'!B15,'2.ΒΑΣΙΚΕΣ ΤΙΜΕΣ'!A$36:C$51,3,FALSE)*'1α.ΔΕΛΤΙΟ ΔΕΔΟΜΕΝΩΝ'!C15)","v":0},{"$f":"(IF(OR('1α.ΔΕΛΤΙΟ ΔΕΔΟΜΕΝΩΝ'!M15=\"\",'1α.ΔΕΛΤΙΟ ΔΕΔΟΜΕΝΩΝ'!Q15=\"\",'1α.ΔΕΛΤΙΟ ΔΕΔΟΜΕΝΩΝ'!R15=\"\",'1α.ΔΕΛΤΙΟ ΔΕΔΟΜΕΝΩΝ'!R15=\"Επιφάνεια χωρίς φυτοκάλυψη \"),0,IF('1α.ΔΕΛΤΙΟ ΔΕΔΟΜΕΝΩΝ'!M15=0,0,VLOOKUP('1α.ΔΕΛΤΙΟ ΔΕΔΟΜΕΝΩΝ'!M15&'1α.ΔΕΛΤΙΟ ΔΕΔΟΜΕΝΩΝ'!Q15&'1α.ΔΕΛΤΙΟ ΔΕΔΟΜΕΝΩΝ'!R15,'PS DATA'!D:E,2,FALSE)*'1α.ΔΕΛΤΙΟ ΔΕΔΟΜΕΝΩΝ'!C15*'2.ΒΑΣΙΚΕΣ ΤΙΜΕΣ'!B$54)))","v":0},{"$f":"IF('1α.ΔΕΛΤΙΟ ΔΕΔΟΜΕΝΩΝ'!B15=\"\",0,VLOOKUP('1α.ΔΕΛΤΙΟ ΔΕΔΟΜΕΝΩΝ'!B15,'CS DATA'!D$2:H$13,5,FALSE)*'1α.ΔΕΛΤΙΟ ΔΕΔΟΜΕΝΩΝ'!D15*'1α.ΔΕΛΤΙΟ ΔΕΔΟΜΕΝΩΝ'!C15*'2.ΒΑΣΙΚΕΣ ΤΙΜΕΣ'!D$70)*IF('1α.ΔΕΛΤΙΟ ΔΕΔΟΜΕΝΩΝ'!S15=\"\",0,VLOOKUP('1α.ΔΕΛΤΙΟ ΔΕΔΟΜΕΝΩΝ'!S15,'CS DATA'!A$1:B$13,2,FALSE))","v":0},{"$f":"IF('1α.ΔΕΛΤΙΟ ΔΕΔΟΜΕΝΩΝ'!T15=\"\",0,VLOOKUP('1α.ΔΕΛΤΙΟ ΔΕΔΟΜΕΝΩΝ'!T15,'2.ΒΑΣΙΚΕΣ ΤΙΜΕΣ'!E$64:F$74,2,FALSE)*'1α.ΔΕΛΤΙΟ ΔΕΔΟΜΕΝΩΝ'!C15)*'2.ΒΑΣΙΚΕΣ ΤΙΜΕΣ'!D$71","v":0},{"$f":"IF('1α.ΔΕΛΤΙΟ ΔΕΔΟΜΕΝΩΝ'!B15=\"\",0,VLOOKUP('1α.ΔΕΛΤΙΟ ΔΕΔΟΜΕΝΩΝ'!B15,'2.ΒΑΣΙΚΕΣ ΤΙΜΕΣ'!A$76:B$89,2,FALSE)*'1α.ΔΕΛΤΙΟ ΔΕΔΟΜΕΝΩΝ'!C15)","v":0},0,null,null,{"$f":"IF('1α.ΔΕΛΤΙΟ ΔΕΔΟΜΕΝΩΝ'!C$23=0,0,'1β.ΜΞΔΠ'!F37*'1α.ΔΕΛΤΙΟ ΔΕΔΟΜΕΝΩΝ'!C15/'1α.ΔΕΛΤΙΟ ΔΕΔΟΜΕΝΩΝ'!C$23)","v":0}]
[14,{"$f":"IF('1α.ΔΕΛΤΙΟ ΔΕΔΟΜΕΝΩΝ'!B16=\"\",0,IF('1α.ΔΕΛΤΙΟ ΔΕΔΟΜΕΝΩΝ'!C16>0,VLOOKUP('1α.ΔΕΛΤΙΟ ΔΕΔΟΜΕΝΩΝ'!B16,'2.ΒΑΣΙΚΕΣ ΤΙΜΕΣ'!A$6:D$18,4,FALSE)*VLOOKUP('1α.ΔΕΛΤΙΟ ΔΕΔΟΜΕΝΩΝ'!B16,'2.ΒΑΣΙΚΕΣ ΤΙΜΕΣ'!A$6:K$18,11,FALSE),0)*'1α.ΔΕΛΤΙΟ ΔΕΔΟΜΕΝΩΝ'!C16*'1α.ΔΕΛΤΙΟ ΔΕΔΟΜΕΝΩΝ'!D16)","v":0},{"$f":"'1α.ΔΕΛΤΙΟ ΔΕΔΟΜΕΝΩΝ'!F16*'2.ΒΑΣΙΚΕΣ ΤΙΜΕΣ'!C$22*'2.ΒΑΣΙΚΕΣ ΤΙΜΕΣ'!D$22*'1α.ΔΕΛΤΙΟ ΔΕΔΟΜΕΝΩΝ'!C16+'1α.ΔΕΛΤΙΟ ΔΕΔΟΜΕΝΩΝ'!C16*'1α.ΔΕΛΤΙΟ ΔΕΔΟΜΕΝΩΝ'!G16*'2.ΒΑΣΙΚΕΣ ΤΙΜΕΣ'!C$25*'2.ΒΑΣΙΚΕΣ ΤΙΜΕΣ'!D$25+'1α.ΔΕΛΤΙΟ ΔΕΔΟΜΕΝΩΝ'!H16*'1α.ΔΕΛΤΙΟ ΔΕΔΟΜΕΝΩΝ'!C16*'2.ΒΑΣΙΚΕΣ ΤΙΜΕΣ'!C$27*'2.ΒΑΣΙΚΕΣ ΤΙΜΕΣ'!D$27*'1α.ΔΕΛΤΙΟ ΔΕΔΟΜΕΝΩΝ'!W16+N16","v":0},{"$f":"IF('1α.ΔΕΛΤΙΟ ΔΕΔΟΜΕΝΩΝ'!B16=\"\",0,VLOOKUP('1α.ΔΕΛΤΙΟ ΔΕΔΟΜΕΝΩΝ'!B16,'2.ΒΑΣΙΚΕΣ ΤΙΜΕΣ'!A$36:B$51,2,FALSE)*('1α.ΔΕΛΤΙΟ ΔΕΔΟΜΕΝΩΝ'!C16-'1α.ΔΕΛΤΙΟ ΔΕΔΟΜΕΝΩΝ'!J16))","v":0},{"$f":"'2.ΒΑΣΙΚΕΣ ΤΙΜΕΣ'!D$36*0.7*('1α.ΔΕΛΤΙΟ ΔΕΔΟΜΕΝΩΝ'!C16-'1α.ΔΕΛΤΙΟ ΔΕΔΟΜΕΝΩΝ'!K16)","v":0},{"$f":"IF('1α.ΔΕΛΤΙΟ ΔΕΔΟΜΕΝΩΝ'!B16=\"\",0,VLOOKUP('1α.ΔΕΛΤΙΟ ΔΕΔΟΜΕΝΩΝ'!B16,'2.ΒΑΣΙΚΕΣ ΤΙΜΕΣ'!A$36:C$51,3,FALSE)*'1α.ΔΕΛΤΙΟ ΔΕΔΟΜΕΝΩΝ'!C16)","v":0},{"$f":"(IF(OR('1α.ΔΕΛΤΙΟ ΔΕΔΟΜΕΝΩΝ'!M16=\"\",'1α.ΔΕΛΤΙΟ ΔΕΔΟΜΕΝΩΝ'!Q16=\"\",'1α.ΔΕΛΤΙΟ ΔΕΔΟΜΕΝΩΝ'!R16=\"\",'1α.ΔΕΛΤΙΟ ΔΕΔΟΜΕΝΩΝ'!R16=\"Επιφάνεια χωρίς φυτοκάλυψη \"),0,IF('1α.ΔΕΛΤΙΟ ΔΕΔΟΜΕΝΩΝ'!M16=0,0,VLOOKUP('1α.ΔΕΛΤΙΟ ΔΕΔΟΜΕΝΩΝ'!M16&'1α.ΔΕΛΤΙΟ ΔΕΔΟΜΕΝΩΝ'!Q16&'1α.ΔΕΛΤΙΟ ΔΕΔΟΜΕΝΩΝ'!R16,'PS DATA'!D:E,2,FALSE)*'1α.ΔΕΛΤΙΟ ΔΕΔΟΜΕΝΩΝ'!C16*'2.ΒΑΣΙΚΕΣ ΤΙΜΕΣ'!B$54)))","v":0},{"$f":"IF('1α.ΔΕΛΤΙΟ ΔΕΔΟΜΕΝΩΝ'!B16=\"\",0,VLOOKUP('1α.ΔΕΛΤΙΟ ΔΕΔΟΜΕΝΩΝ'!B16,'CS DATA'!D$2:H$13,5,FALSE)*'1α.ΔΕΛΤΙΟ ΔΕΔΟΜΕΝΩΝ'!D16*'1α.ΔΕΛΤΙΟ ΔΕΔΟΜΕΝΩΝ'!C16*'2.ΒΑΣΙΚΕΣ ΤΙΜΕΣ'!D$70)*IF('1α.ΔΕΛΤΙΟ ΔΕΔΟΜΕΝΩΝ'!S16=\"\",0,VLOOKUP('1α.ΔΕΛΤΙΟ ΔΕΔΟΜΕΝΩΝ'!S16,'CS DATA'!A$1:B$13,2,FALSE))","v":0},{"$f":"IF('1α.ΔΕΛΤΙΟ ΔΕΔΟΜΕΝΩΝ'!T16=\"\",0,VLOOKUP('1α.ΔΕΛΤΙΟ ΔΕΔΟΜΕΝΩΝ'!T16,'2.ΒΑΣΙΚΕΣ ΤΙΜΕΣ'!E$64:F$74,2,FALSE)*'1α.ΔΕΛΤΙΟ ΔΕΔΟΜΕΝΩΝ'!C16)*'2.ΒΑΣΙΚΕΣ ΤΙΜΕΣ'!D$71","v":0},{"$f":"IF('1α.ΔΕΛΤΙΟ ΔΕΔΟΜΕΝΩΝ'!B16=\"\",0,VLOOKUP('1α.ΔΕΛΤΙΟ ΔΕΔΟΜΕΝΩΝ'!B16,'2.ΒΑΣΙΚΕΣ ΤΙΜΕΣ'!A$76:B$89,2,FALSE)*'1α.ΔΕΛΤΙΟ ΔΕΔΟΜΕΝΩΝ'!C16)","v":0},0,null,null,{"$f":"IF('1α.ΔΕΛΤΙΟ ΔΕΔΟΜΕΝΩΝ'!C$23=0,0,'1β.ΜΞΔΠ'!F38*'1α.ΔΕΛΤΙΟ ΔΕΔΟΜΕΝΩΝ'!C16/'1α.ΔΕΛΤΙΟ ΔΕΔΟΜΕΝΩΝ'!C$23)","v":0}]
[15,{"$f":"IF('1α.ΔΕΛΤΙΟ ΔΕΔΟΜΕΝΩΝ'!B17=\"\",0,IF('1α.ΔΕΛΤΙΟ ΔΕΔΟΜΕΝΩΝ'!C17>0,VLOOKUP('1α.ΔΕΛΤΙΟ ΔΕΔΟΜΕΝΩΝ'!B17,'2.ΒΑΣΙΚΕΣ ΤΙΜΕΣ'!A$6:D$18,4,FALSE)*VLOOKUP('1α.ΔΕΛΤΙΟ ΔΕΔΟΜΕΝΩΝ'!B17,'2.ΒΑΣΙΚΕΣ ΤΙΜΕΣ'!A$6:K$18,11,FALSE),0)*'1α.ΔΕΛΤΙΟ ΔΕΔΟΜΕΝΩΝ'!C17*'1α.ΔΕΛΤΙΟ ΔΕΔΟΜΕΝΩΝ'!D17)","v":0},{"$f":"'1α.ΔΕΛΤΙΟ ΔΕΔΟΜΕΝΩΝ'!F17*'2.ΒΑΣΙΚΕΣ ΤΙΜΕΣ'!C$22*'2.ΒΑΣΙΚΕΣ ΤΙΜΕΣ'!D$22*'1α.ΔΕΛΤΙΟ ΔΕΔΟΜΕΝΩΝ'!C17+'1α.ΔΕΛΤΙΟ ΔΕΔΟΜΕΝΩΝ'!C17*'1α.ΔΕΛΤΙΟ ΔΕΔΟΜΕΝΩΝ'!G17*'2.ΒΑΣΙΚΕΣ ΤΙΜΕΣ'!C$25*'2.ΒΑΣΙΚΕΣ ΤΙΜΕΣ'!D$25+'1α.ΔΕΛΤΙΟ ΔΕΔΟΜΕΝΩΝ'!H17*'1α.ΔΕΛΤΙΟ ΔΕΔΟΜΕΝΩΝ'!C17*'2.ΒΑΣΙΚΕΣ ΤΙΜΕΣ'!C$27*'2.ΒΑΣΙΚΕΣ ΤΙΜΕΣ'!D$27*'1α.ΔΕΛΤΙΟ ΔΕΔΟΜΕΝΩΝ'!W17+N17","v":0},{"$f":"IF('1α.ΔΕΛΤΙΟ ΔΕΔΟΜΕΝΩΝ'!B17=\"\",0,VLOOKUP('1α.ΔΕΛΤΙΟ ΔΕΔΟΜΕΝΩΝ'!B17,'2.ΒΑΣΙΚΕΣ ΤΙΜΕΣ'!A$36:B$51,2,FALSE)*('1α.ΔΕΛΤΙΟ ΔΕΔΟΜΕΝΩΝ'!C17-'1α.ΔΕΛΤΙΟ ΔΕΔΟΜΕΝΩΝ'!J17))","v":0},{"$f":"'2.ΒΑΣΙΚΕΣ ΤΙΜΕΣ'!D$36*0.7*('1α.ΔΕΛΤΙΟ ΔΕΔΟΜΕΝΩΝ'!C17-'1α.ΔΕΛΤΙΟ ΔΕΔΟΜΕΝΩΝ'!K17)","v":0},{"$f":"IF('1α.ΔΕΛΤΙΟ ΔΕΔΟΜΕΝΩΝ'!B17=\"\",0,VLOOKUP('1α.ΔΕΛΤΙΟ ΔΕΔΟΜΕΝΩΝ'!B17,'2.ΒΑΣΙΚΕΣ ΤΙΜΕΣ'!A$36:C$51,3,FALSE)*'1α.ΔΕΛΤΙΟ ΔΕΔΟΜΕΝΩΝ'!C17)","v":0},{"$f":"(IF(OR('1α.ΔΕΛΤΙΟ ΔΕΔΟΜΕΝΩΝ'!M17=\"\",'1α.ΔΕΛΤΙΟ ΔΕΔΟΜΕΝΩΝ'!Q17=\"\",'1α.ΔΕΛΤΙΟ ΔΕΔΟΜΕΝΩΝ'!R17=\"\",'1α.ΔΕΛΤΙΟ ΔΕΔΟΜΕΝΩΝ'!R17=\"Επιφάνεια χωρίς φυτοκάλυψη \"),0,IF('1α.ΔΕΛΤΙΟ ΔΕΔΟΜΕΝΩΝ'!M17=0,0,VLOOKUP('1α.ΔΕΛΤΙΟ ΔΕΔΟΜΕΝΩΝ'!M17&'1α.ΔΕΛΤΙΟ ΔΕΔΟΜΕΝΩΝ'!Q17&'1α.ΔΕΛΤΙΟ ΔΕΔΟΜΕΝΩΝ'!R17,'PS DATA'!D:E,2,FALSE)*'1α.ΔΕΛΤΙΟ ΔΕΔΟΜΕΝΩΝ'!C17*'2.ΒΑΣΙΚΕΣ ΤΙΜΕΣ'!B$54)))","v":0},{"$f":"IF('1α.ΔΕΛΤΙΟ ΔΕΔΟΜΕΝΩΝ'!B17=\"\",0,VLOOKUP('1α.ΔΕΛΤΙΟ ΔΕΔΟΜΕΝΩΝ'!B17,'CS DATA'!D$2:H$13,5,FALSE)*'1α.ΔΕΛΤΙΟ ΔΕΔΟΜΕΝΩΝ'!D17*'1α.ΔΕΛΤΙΟ ΔΕΔΟΜΕΝΩΝ'!C17*'2.ΒΑΣΙΚΕΣ ΤΙΜΕΣ'!D$70)*IF('1α.ΔΕΛΤΙΟ ΔΕΔΟΜΕΝΩΝ'!S17=\"\",0,VLOOKUP('1α.ΔΕΛΤΙΟ ΔΕΔΟΜΕΝΩΝ'!S17,'CS DATA'!A$1:B$13,2,FALSE))","v":0},{"$f":"IF('1α.ΔΕΛΤΙΟ ΔΕΔΟΜΕΝΩΝ'!T17=\"\",0,VLOOKUP('1α.ΔΕΛΤΙΟ ΔΕΔΟΜΕΝΩΝ'!T17,'2.ΒΑΣΙΚΕΣ ΤΙΜΕΣ'!E$64:F$74,2,FALSE)*'1α.ΔΕΛΤΙΟ ΔΕΔΟΜΕΝΩΝ'!C17)*'2.ΒΑΣΙΚΕΣ ΤΙΜΕΣ'!D$71","v":0},{"$f":"IF('1α.ΔΕΛΤΙΟ ΔΕΔΟΜΕΝΩΝ'!B17=\"\",0,VLOOKUP('1α.ΔΕΛΤΙΟ ΔΕΔΟΜΕΝΩΝ'!B17,'2.ΒΑΣΙΚΕΣ ΤΙΜΕΣ'!A$76:B$89,2,FALSE)*'1α.ΔΕΛΤΙΟ ΔΕΔΟΜΕΝΩΝ'!C17)","v":0},0,null,null,{"$f":"IF('1α.ΔΕΛΤΙΟ ΔΕΔΟΜΕΝΩΝ'!C$23=0,0,'1β.ΜΞΔΠ'!F39*'1α.ΔΕΛΤΙΟ ΔΕΔΟΜΕΝΩΝ'!C17/'1α.ΔΕΛΤΙΟ ΔΕΔΟΜΕΝΩΝ'!C$23)","v":0}]
[16,{"$f":"IF('1α.ΔΕΛΤΙΟ ΔΕΔΟΜΕΝΩΝ'!B18=\"\",0,IF('1α.ΔΕΛΤΙΟ ΔΕΔΟΜΕΝΩΝ'!C18>0,VLOOKUP('1α.ΔΕΛΤΙΟ ΔΕΔΟΜΕΝΩΝ'!B18,'2.ΒΑΣΙΚΕΣ ΤΙΜΕΣ'!A$6:D$18,4,FALSE)*VLOOKUP('1α.ΔΕΛΤΙΟ ΔΕΔΟΜΕΝΩΝ'!B18,'2.ΒΑΣΙΚΕΣ ΤΙΜΕΣ'!A$6:K$18,11,FALSE),0)*'1α.ΔΕΛΤΙΟ ΔΕΔΟΜΕΝΩΝ'!C18*'1α.ΔΕΛΤΙΟ ΔΕΔΟΜΕΝΩΝ'!D18)","v":0},{"$f":"'1α.ΔΕΛΤΙΟ ΔΕΔΟΜΕΝΩΝ'!F18*'2.ΒΑΣΙΚΕΣ ΤΙΜΕΣ'!C$22*'2.ΒΑΣΙΚΕΣ ΤΙΜΕΣ'!D$22*'1α.ΔΕΛΤΙΟ ΔΕΔΟΜΕΝΩΝ'!C18+'1α.ΔΕΛΤΙΟ ΔΕΔΟΜΕΝΩΝ'!C18*'1α.ΔΕΛΤΙΟ ΔΕΔΟΜΕΝΩΝ'!G18*'2.ΒΑΣΙΚΕΣ ΤΙΜΕΣ'!C$25*'2.ΒΑΣΙΚΕΣ ΤΙΜΕΣ'!D$25+'1α.ΔΕΛΤΙΟ ΔΕΔΟΜΕΝΩΝ'!H18*'1α.ΔΕΛΤΙΟ ΔΕΔΟΜΕΝΩΝ'!C18*'2.ΒΑΣΙΚΕΣ ΤΙΜΕΣ'!C$27*'2.ΒΑΣΙΚΕΣ ΤΙΜΕΣ'!D$27*'1α.ΔΕΛΤΙΟ ΔΕΔΟΜΕΝΩΝ'!W18+N18","v":0},{"$f":"IF('1α.ΔΕΛΤΙΟ ΔΕΔΟΜΕΝΩΝ'!B18=\"\",0,VLOOKUP('1α.ΔΕΛΤΙΟ ΔΕΔΟΜΕΝΩΝ'!B18,'2.ΒΑΣΙΚΕΣ ΤΙΜΕΣ'!A$36:B$51,2,FALSE)*('1α.ΔΕΛΤΙΟ ΔΕΔΟΜΕΝΩΝ'!C18-'1α.ΔΕΛΤΙΟ ΔΕΔΟΜΕΝΩΝ'!J18))","v":0},{"$f":"'2.ΒΑΣΙΚΕΣ ΤΙΜΕΣ'!D$36*0.7*('1α.ΔΕΛΤΙΟ ΔΕΔΟΜΕΝΩΝ'!C18-'1α.ΔΕΛΤΙΟ ΔΕΔΟΜΕΝΩΝ'!K18)","v":0},{"$f":"IF('1α.ΔΕΛΤΙΟ ΔΕΔΟΜΕΝΩΝ'!B18=\"\",0,VLOOKUP('1α.ΔΕΛΤΙΟ ΔΕΔΟΜΕΝΩΝ'!B18,'2.ΒΑΣΙΚΕΣ ΤΙΜΕΣ'!A$36:C$51,3,FALSE)*'1α.ΔΕΛΤΙΟ ΔΕΔΟΜΕΝΩΝ'!C18)","v":0},{"$f":"(IF(OR('1α.ΔΕΛΤΙΟ ΔΕΔΟΜΕΝΩΝ'!M18=\"\",'1α.ΔΕΛΤΙΟ ΔΕΔΟΜΕΝΩΝ'!Q18=\"\",'1α.ΔΕΛΤΙΟ ΔΕΔΟΜΕΝΩΝ'!R18=\"\",'1α.ΔΕΛΤΙΟ ΔΕΔΟΜΕΝΩΝ'!R18=\"Επιφάνεια χωρίς φυτοκάλυψη \"),0,IF('1α.ΔΕΛΤΙΟ ΔΕΔΟΜΕΝΩΝ'!M18=0,0,VLOOKUP('1α.ΔΕΛΤΙΟ ΔΕΔΟΜΕΝΩΝ'!M18&'1α.ΔΕΛΤΙΟ ΔΕΔΟΜΕΝΩΝ'!Q18&'1α.ΔΕΛΤΙΟ ΔΕΔΟΜΕΝΩΝ'!R18,'PS DATA'!D:E,2,FALSE)*'1α.ΔΕΛΤΙΟ ΔΕΔΟΜΕΝΩΝ'!C18*'2.ΒΑΣΙΚΕΣ ΤΙΜΕΣ'!B$54)))","v":0},{"$f":"IF('1α.ΔΕΛΤΙΟ ΔΕΔΟΜΕΝΩΝ'!B18=\"\",0,VLOOKUP('1α.ΔΕΛΤΙΟ ΔΕΔΟΜΕΝΩΝ'!B18,'CS DATA'!D$2:H$13,5,FALSE)*'1α.ΔΕΛΤΙΟ ΔΕΔΟΜΕΝΩΝ'!D18*'1α.ΔΕΛΤΙΟ ΔΕΔΟΜΕΝΩΝ'!C18*'2.ΒΑΣΙΚΕΣ ΤΙΜΕΣ'!D$70)*IF('1α.ΔΕΛΤΙΟ ΔΕΔΟΜΕΝΩΝ'!S18=\"\",0,VLOOKUP('1α.ΔΕΛΤΙΟ ΔΕΔΟΜΕΝΩΝ'!S18,'CS DATA'!A$1:B$13,2,FALSE))","v":0},{"$f":"IF('1α.ΔΕΛΤΙΟ ΔΕΔΟΜΕΝΩΝ'!T18=\"\",0,VLOOKUP('1α.ΔΕΛΤΙΟ ΔΕΔΟΜΕΝΩΝ'!T18,'2.ΒΑΣΙΚΕΣ ΤΙΜΕΣ'!E$64:F$74,2,FALSE)*'1α.ΔΕΛΤΙΟ ΔΕΔΟΜΕΝΩΝ'!C18)*'2.ΒΑΣΙΚΕΣ ΤΙΜΕΣ'!D$71","v":0},{"$f":"IF('1α.ΔΕΛΤΙΟ ΔΕΔΟΜΕΝΩΝ'!B18=\"\",0,VLOOKUP('1α.ΔΕΛΤΙΟ ΔΕΔΟΜΕΝΩΝ'!B18,'2.ΒΑΣΙΚΕΣ ΤΙΜΕΣ'!A$76:B$89,2,FALSE)*'1α.ΔΕΛΤΙΟ ΔΕΔΟΜΕΝΩΝ'!C18)","v":0},0,null,null,{"$f":"IF('1α.ΔΕΛΤΙΟ ΔΕΔΟΜΕΝΩΝ'!C$23=0,0,'1β.ΜΞΔΠ'!F40*'1α.ΔΕΛΤΙΟ ΔΕΔΟΜΕΝΩΝ'!C18/'1α.ΔΕΛΤΙΟ ΔΕΔΟΜΕΝΩΝ'!C$23)","v":0}]
[17,{"$f":"IF('1α.ΔΕΛΤΙΟ ΔΕΔΟΜΕΝΩΝ'!B19=\"\",0,IF('1α.ΔΕΛΤΙΟ ΔΕΔΟΜΕΝΩΝ'!C19>0,VLOOKUP('1α.ΔΕΛΤΙΟ ΔΕΔΟΜΕΝΩΝ'!B19,'2.ΒΑΣΙΚΕΣ ΤΙΜΕΣ'!A$6:D$18,4,FALSE)*VLOOKUP('1α.ΔΕΛΤΙΟ ΔΕΔΟΜΕΝΩΝ'!B19,'2.ΒΑΣΙΚΕΣ ΤΙΜΕΣ'!A$6:K$18,11,FALSE),0)*'1α.ΔΕΛΤΙΟ ΔΕΔΟΜΕΝΩΝ'!C19*'1α.ΔΕΛΤΙΟ ΔΕΔΟΜΕΝΩΝ'!D19)","v":0},{"$f":"'1α.ΔΕΛΤΙΟ ΔΕΔΟΜΕΝΩΝ'!F19*'2.ΒΑΣΙΚΕΣ ΤΙΜΕΣ'!C$22*'2.ΒΑΣΙΚΕΣ ΤΙΜΕΣ'!D$22*'1α.ΔΕΛΤΙΟ ΔΕΔΟΜΕΝΩΝ'!C19+'1α.ΔΕΛΤΙΟ ΔΕΔΟΜΕΝΩΝ'!C19*'1α.ΔΕΛΤΙΟ ΔΕΔΟΜΕΝΩΝ'!G19*'2.ΒΑΣΙΚΕΣ ΤΙΜΕΣ'!C$25*'2.ΒΑΣΙΚΕΣ ΤΙΜΕΣ'!D$25+'1α.ΔΕΛΤΙΟ ΔΕΔΟΜΕΝΩΝ'!H19*'1α.ΔΕΛΤΙΟ ΔΕΔΟΜΕΝΩΝ'!C19*'2.ΒΑΣΙΚΕΣ ΤΙΜΕΣ'!C$27*'2.ΒΑΣΙΚΕΣ ΤΙΜΕΣ'!D$27*'1α.ΔΕΛΤΙΟ ΔΕΔΟΜΕΝΩΝ'!W19+N19","v":0},{"$f":"IF('1α.ΔΕΛΤΙΟ ΔΕΔΟΜΕΝΩΝ'!B19=\"\",0,VLOOKUP('1α.ΔΕΛΤΙΟ ΔΕΔΟΜΕΝΩΝ'!B19,'2.ΒΑΣΙΚΕΣ ΤΙΜΕΣ'!A$36:B$51,2,FALSE)*('1α.ΔΕΛΤΙΟ ΔΕΔΟΜΕΝΩΝ'!C19-'1α.ΔΕΛΤΙΟ ΔΕΔΟΜΕΝΩΝ'!J19))","v":0},{"$f":"'2.ΒΑΣΙΚΕΣ ΤΙΜΕΣ'!D$36*0.7*('1α.ΔΕΛΤΙΟ ΔΕΔΟΜΕΝΩΝ'!C19-'1α.ΔΕΛΤΙΟ ΔΕΔΟΜΕΝΩΝ'!K19)","v":0},{"$f":"IF('1α.ΔΕΛΤΙΟ ΔΕΔΟΜΕΝΩΝ'!B19=\"\",0,VLOOKUP('1α.ΔΕΛΤΙΟ ΔΕΔΟΜΕΝΩΝ'!B19,'2.ΒΑΣΙΚΕΣ ΤΙΜΕΣ'!A$36:C$51,3,FALSE)*'1α.ΔΕΛΤΙΟ ΔΕΔΟΜΕΝΩΝ'!C19)","v":0},{"$f":"(IF(OR('1α.ΔΕΛΤΙΟ ΔΕΔΟΜΕΝΩΝ'!M19=\"\",'1α.ΔΕΛΤΙΟ ΔΕΔΟΜΕΝΩΝ'!Q19=\"\",'1α.ΔΕΛΤΙΟ ΔΕΔΟΜΕΝΩΝ'!R19=\"\",'1α.ΔΕΛΤΙΟ ΔΕΔΟΜΕΝΩΝ'!R19=\"Επιφάνεια χωρίς φυτοκάλυψη \"),0,IF('1α.ΔΕΛΤΙΟ ΔΕΔΟΜΕΝΩΝ'!M19=0,0,VLOOKUP('1α.ΔΕΛΤΙΟ ΔΕΔΟΜΕΝΩΝ'!M19&'1α.ΔΕΛΤΙΟ ΔΕΔΟΜΕΝΩΝ'!Q19&'1α.ΔΕΛΤΙΟ ΔΕΔΟΜΕΝΩΝ'!R19,'PS DATA'!D:E,2,FALSE)*'1α.ΔΕΛΤΙΟ ΔΕΔΟΜΕΝΩΝ'!C19*'2.ΒΑΣΙΚΕΣ ΤΙΜΕΣ'!B$54)))","v":0},{"$f":"IF('1α.ΔΕΛΤΙΟ ΔΕΔΟΜΕΝΩΝ'!B19=\"\",0,VLOOKUP('1α.ΔΕΛΤΙΟ ΔΕΔΟΜΕΝΩΝ'!B19,'CS DATA'!D$2:H$13,5,FALSE)*'1α.ΔΕΛΤΙΟ ΔΕΔΟΜΕΝΩΝ'!D19*'1α.ΔΕΛΤΙΟ ΔΕΔΟΜΕΝΩΝ'!C19*'2.ΒΑΣΙΚΕΣ ΤΙΜΕΣ'!D$70)*IF('1α.ΔΕΛΤΙΟ ΔΕΔΟΜΕΝΩΝ'!S19=\"\",0,VLOOKUP('1α.ΔΕΛΤΙΟ ΔΕΔΟΜΕΝΩΝ'!S19,'CS DATA'!A$1:B$13,2,FALSE))","v":0},{"$f":"IF('1α.ΔΕΛΤΙΟ ΔΕΔΟΜΕΝΩΝ'!T19=\"\",0,VLOOKUP('1α.ΔΕΛΤΙΟ ΔΕΔΟΜΕΝΩΝ'!T19,'2.ΒΑΣΙΚΕΣ ΤΙΜΕΣ'!E$64:F$74,2,FALSE)*'1α.ΔΕΛΤΙΟ ΔΕΔΟΜΕΝΩΝ'!C19)*'2.ΒΑΣΙΚΕΣ ΤΙΜΕΣ'!D$71","v":0},{"$f":"IF('1α.ΔΕΛΤΙΟ ΔΕΔΟΜΕΝΩΝ'!B19=\"\",0,VLOOKUP('1α.ΔΕΛΤΙΟ ΔΕΔΟΜΕΝΩΝ'!B19,'2.ΒΑΣΙΚΕΣ ΤΙΜΕΣ'!A$76:B$89,2,FALSE)*'1α.ΔΕΛΤΙΟ ΔΕΔΟΜΕΝΩΝ'!C19)","v":0},0,null,null,{"$f":"IF('1α.ΔΕΛΤΙΟ ΔΕΔΟΜΕΝΩΝ'!C$23=0,0,'1β.ΜΞΔΠ'!F41*'1α.ΔΕΛΤΙΟ ΔΕΔΟΜΕΝΩΝ'!C19/'1α.ΔΕΛΤΙΟ ΔΕΔΟΜΕΝΩΝ'!C$23)","v":0}]
[18,{"$f":"IF('1α.ΔΕΛΤΙΟ ΔΕΔΟΜΕΝΩΝ'!B20=\"\",0,IF('1α.ΔΕΛΤΙΟ ΔΕΔΟΜΕΝΩΝ'!C20>0,VLOOKUP('1α.ΔΕΛΤΙΟ ΔΕΔΟΜΕΝΩΝ'!B20,'2.ΒΑΣΙΚΕΣ ΤΙΜΕΣ'!A$6:D$18,4,FALSE)*VLOOKUP('1α.ΔΕΛΤΙΟ ΔΕΔΟΜΕΝΩΝ'!B20,'2.ΒΑΣΙΚΕΣ ΤΙΜΕΣ'!A$6:K$18,11,FALSE),0)*'1α.ΔΕΛΤΙΟ ΔΕΔΟΜΕΝΩΝ'!C20*'1α.ΔΕΛΤΙΟ ΔΕΔΟΜΕΝΩΝ'!D20)","v":0},{"$f":"'1α.ΔΕΛΤΙΟ ΔΕΔΟΜΕΝΩΝ'!F20*'2.ΒΑΣΙΚΕΣ ΤΙΜΕΣ'!C$22*'2.ΒΑΣΙΚΕΣ ΤΙΜΕΣ'!D$22*'1α.ΔΕΛΤΙΟ ΔΕΔΟΜΕΝΩΝ'!C20+'1α.ΔΕΛΤΙΟ ΔΕΔΟΜΕΝΩΝ'!C20*'1α.ΔΕΛΤΙΟ ΔΕΔΟΜΕΝΩΝ'!G20*'2.ΒΑΣΙΚΕΣ ΤΙΜΕΣ'!C$25*'2.ΒΑΣΙΚΕΣ ΤΙΜΕΣ'!D$25+'1α.ΔΕΛΤΙΟ ΔΕΔΟΜΕΝΩΝ'!H20*'1α.ΔΕΛΤΙΟ ΔΕΔΟΜΕΝΩΝ'!C20*'2.ΒΑΣΙΚΕΣ ΤΙΜΕΣ'!C$27*'2.ΒΑΣΙΚΕΣ ΤΙΜΕΣ'!D$27*'1α.ΔΕΛΤΙΟ ΔΕΔΟΜΕΝΩΝ'!W20+N20","v":0},{"$f":"IF('1α.ΔΕΛΤΙΟ ΔΕΔΟΜΕΝΩΝ'!B20=\"\",0,VLOOKUP('1α.ΔΕΛΤΙΟ ΔΕΔΟΜΕΝΩΝ'!B20,'2.ΒΑΣΙΚΕΣ ΤΙΜΕΣ'!A$36:B$51,2,FALSE)*('1α.ΔΕΛΤΙΟ ΔΕΔΟΜΕΝΩΝ'!C20-'1α.ΔΕΛΤΙΟ ΔΕΔΟΜΕΝΩΝ'!J20))","v":0},{"$f":"'2.ΒΑΣΙΚΕΣ ΤΙΜΕΣ'!D$36*0.7*('1α.ΔΕΛΤΙΟ ΔΕΔΟΜΕΝΩΝ'!C20-'1α.ΔΕΛΤΙΟ ΔΕΔΟΜΕΝΩΝ'!K20)","v":0},{"$f":"IF('1α.ΔΕΛΤΙΟ ΔΕΔΟΜΕΝΩΝ'!B20=\"\",0,VLOOKUP('1α.ΔΕΛΤΙΟ ΔΕΔΟΜΕΝΩΝ'!B20,'2.ΒΑΣΙΚΕΣ ΤΙΜΕΣ'!A$36:C$51,3,FALSE)*'1α.ΔΕΛΤΙΟ ΔΕΔΟΜΕΝΩΝ'!C20)","v":0},{"$f":"(IF(OR('1α.ΔΕΛΤΙΟ ΔΕΔΟΜΕΝΩΝ'!M20=\"\",'1α.ΔΕΛΤΙΟ ΔΕΔΟΜΕΝΩΝ'!Q20=\"\",'1α.ΔΕΛΤΙΟ ΔΕΔΟΜΕΝΩΝ'!R20=\"\",'1α.ΔΕΛΤΙΟ ΔΕΔΟΜΕΝΩΝ'!R20=\"Επιφάνεια χωρίς φυτοκάλυψη \"),0,IF('1α.ΔΕΛΤΙΟ ΔΕΔΟΜΕΝΩΝ'!M20=0,0,VLOOKUP('1α.ΔΕΛΤΙΟ ΔΕΔΟΜΕΝΩΝ'!M20&'1α.ΔΕΛΤΙΟ ΔΕΔΟΜΕΝΩΝ'!Q20&'1α.ΔΕΛΤΙΟ ΔΕΔΟΜΕΝΩΝ'!R20,'PS DATA'!D:E,2,FALSE)*'1α.ΔΕΛΤΙΟ ΔΕΔΟΜΕΝΩΝ'!C20*'2.ΒΑΣΙΚΕΣ ΤΙΜΕΣ'!B$54)))","v":0},{"$f":"IF('1α.ΔΕΛΤΙΟ ΔΕΔΟΜΕΝΩΝ'!B20=\"\",0,VLOOKUP('1α.ΔΕΛΤΙΟ ΔΕΔΟΜΕΝΩΝ'!B20,'CS DATA'!D$2:H$13,5,FALSE)*'1α.ΔΕΛΤΙΟ ΔΕΔΟΜΕΝΩΝ'!D20*'1α.ΔΕΛΤΙΟ ΔΕΔΟΜΕΝΩΝ'!C20*'2.ΒΑΣΙΚΕΣ ΤΙΜΕΣ'!D$70)*IF('1α.ΔΕΛΤΙΟ ΔΕΔΟΜΕΝΩΝ'!S20=\"\",0,VLOOKUP('1α.ΔΕΛΤΙΟ ΔΕΔΟΜΕΝΩΝ'!S20,'CS DATA'!A$1:B$13,2,FALSE))","v":0},{"$f":"IF('1α.ΔΕΛΤΙΟ ΔΕΔΟΜΕΝΩΝ'!T20=\"\",0,VLOOKUP('1α.ΔΕΛΤΙΟ ΔΕΔΟΜΕΝΩΝ'!T20,'2.ΒΑΣΙΚΕΣ ΤΙΜΕΣ'!E$64:F$74,2,FALSE)*'1α.ΔΕΛΤΙΟ ΔΕΔΟΜΕΝΩΝ'!C20)*'2.ΒΑΣΙΚΕΣ ΤΙΜΕΣ'!D$71","v":0},{"$f":"IF('1α.ΔΕΛΤΙΟ ΔΕΔΟΜΕΝΩΝ'!B20=\"\",0,VLOOKUP('1α.ΔΕΛΤΙΟ ΔΕΔΟΜΕΝΩΝ'!B20,'2.ΒΑΣΙΚΕΣ ΤΙΜΕΣ'!A$76:B$89,2,FALSE)*'1α.ΔΕΛΤΙΟ ΔΕΔΟΜΕΝΩΝ'!C20)","v":0},0,null,null,{"$f":"IF('1α.ΔΕΛΤΙΟ ΔΕΔΟΜΕΝΩΝ'!C$23=0,0,'1β.ΜΞΔΠ'!F42*'1α.ΔΕΛΤΙΟ ΔΕΔΟΜΕΝΩΝ'!C20/'1α.ΔΕΛΤΙΟ ΔΕΔΟΜΕΝΩΝ'!C$23)","v":0}]
[19,{"$f":"IF('1α.ΔΕΛΤΙΟ ΔΕΔΟΜΕΝΩΝ'!B21=\"\",0,IF('1α.ΔΕΛΤΙΟ ΔΕΔΟΜΕΝΩΝ'!C21>0,VLOOKUP('1α.ΔΕΛΤΙΟ ΔΕΔΟΜΕΝΩΝ'!B21,'2.ΒΑΣΙΚΕΣ ΤΙΜΕΣ'!A$6:D$18,4,FALSE)*VLOOKUP('1α.ΔΕΛΤΙΟ ΔΕΔΟΜΕΝΩΝ'!B21,'2.ΒΑΣΙΚΕΣ ΤΙΜΕΣ'!A$6:K$18,11,FALSE),0)*'1α.ΔΕΛΤΙΟ ΔΕΔΟΜΕΝΩΝ'!C21*'1α.ΔΕΛΤΙΟ ΔΕΔΟΜΕΝΩΝ'!D21)","v":0},{"$f":"'1α.ΔΕΛΤΙΟ ΔΕΔΟΜΕΝΩΝ'!F21*'2.ΒΑΣΙΚΕΣ ΤΙΜΕΣ'!C$22*'2.ΒΑΣΙΚΕΣ ΤΙΜΕΣ'!D$22*'1α.ΔΕΛΤΙΟ ΔΕΔΟΜΕΝΩΝ'!C21+'1α.ΔΕΛΤΙΟ ΔΕΔΟΜΕΝΩΝ'!C21*'1α.ΔΕΛΤΙΟ ΔΕΔΟΜΕΝΩΝ'!G21*'2.ΒΑΣΙΚΕΣ ΤΙΜΕΣ'!C$25*'2.ΒΑΣΙΚΕΣ ΤΙΜΕΣ'!D$25+'1α.ΔΕΛΤΙΟ ΔΕΔΟΜΕΝΩΝ'!H21*'1α.ΔΕΛΤΙΟ ΔΕΔΟΜΕΝΩΝ'!C21*'2.ΒΑΣΙΚΕΣ ΤΙΜΕΣ'!C$27*'2.ΒΑΣΙΚΕΣ ΤΙΜΕΣ'!D$27*'1α.ΔΕΛΤΙΟ ΔΕΔΟΜΕΝΩΝ'!W21+N21","v":0},{"$f":"IF('1α.ΔΕΛΤΙΟ ΔΕΔΟΜΕΝΩΝ'!B21=\"\",0,VLOOKUP('1α.ΔΕΛΤΙΟ ΔΕΔΟΜΕΝΩΝ'!B21,'2.ΒΑΣΙΚΕΣ ΤΙΜΕΣ'!A$36:B$51,2,FALSE)*('1α.ΔΕΛΤΙΟ ΔΕΔΟΜΕΝΩΝ'!C21-'1α.ΔΕΛΤΙΟ ΔΕΔΟΜΕΝΩΝ'!J21))","v":0},{"$f":"'2.ΒΑΣΙΚΕΣ ΤΙΜΕΣ'!D$36*0.7*('1α.ΔΕΛΤΙΟ ΔΕΔΟΜΕΝΩΝ'!C21-'1α.ΔΕΛΤΙΟ ΔΕΔΟΜΕΝΩΝ'!K21)","v":0},{"$f":"IF('1α.ΔΕΛΤΙΟ ΔΕΔΟΜΕΝΩΝ'!B21=\"\",0,VLOOKUP('1α.ΔΕΛΤΙΟ ΔΕΔΟΜΕΝΩΝ'!B21,'2.ΒΑΣΙΚΕΣ ΤΙΜΕΣ'!A$36:C$51,3,FALSE)*'1α.ΔΕΛΤΙΟ ΔΕΔΟΜΕΝΩΝ'!C21)","v":0},{"$f":"(IF(OR('1α.ΔΕΛΤΙΟ ΔΕΔΟΜΕΝΩΝ'!M21=\"\",'1α.ΔΕΛΤΙΟ ΔΕΔΟΜΕΝΩΝ'!Q21=\"\",'1α.ΔΕΛΤΙΟ ΔΕΔΟΜΕΝΩΝ'!R21=\"\",'1α.ΔΕΛΤΙΟ ΔΕΔΟΜΕΝΩΝ'!R21=\"Επιφάνεια χωρίς φυτοκάλυψη \"),0,IF('1α.ΔΕΛΤΙΟ ΔΕΔΟΜΕΝΩΝ'!M21=0,0,VLOOKUP('1α.ΔΕΛΤΙΟ ΔΕΔΟΜΕΝΩΝ'!M21&'1α.ΔΕΛΤΙΟ ΔΕΔΟΜΕΝΩΝ'!Q21&'1α.ΔΕΛΤΙΟ ΔΕΔΟΜΕΝΩΝ'!R21,'PS DATA'!D:E,2,FALSE)*'1α.ΔΕΛΤΙΟ ΔΕΔΟΜΕΝΩΝ'!C21*'2.ΒΑΣΙΚΕΣ ΤΙΜΕΣ'!B$54)))","v":0},{"$f":"IF('1α.ΔΕΛΤΙΟ ΔΕΔΟΜΕΝΩΝ'!B21=\"\",0,VLOOKUP('1α.ΔΕΛΤΙΟ ΔΕΔΟΜΕΝΩΝ'!B21,'CS DATA'!D$2:H$13,5,FALSE)*'1α.ΔΕΛΤΙΟ ΔΕΔΟΜΕΝΩΝ'!D21*'1α.ΔΕΛΤΙΟ ΔΕΔΟΜΕΝΩΝ'!C21*'2.ΒΑΣΙΚΕΣ ΤΙΜΕΣ'!D$70)*IF('1α.ΔΕΛΤΙΟ ΔΕΔΟΜΕΝΩΝ'!S21=\"\",0,VLOOKUP('1α.ΔΕΛΤΙΟ ΔΕΔΟΜΕΝΩΝ'!S21,'CS DATA'!A$1:B$13,2,FALSE))","v":0},{"$f":"IF('1α.ΔΕΛΤΙΟ ΔΕΔΟΜΕΝΩΝ'!T21=\"\",0,VLOOKUP('1α.ΔΕΛΤΙΟ ΔΕΔΟΜΕΝΩΝ'!T21,'2.ΒΑΣΙΚΕΣ ΤΙΜΕΣ'!E$64:F$74,2,FALSE)*'1α.ΔΕΛΤΙΟ ΔΕΔΟΜΕΝΩΝ'!C21)*'2.ΒΑΣΙΚΕΣ ΤΙΜΕΣ'!D$71","v":0},{"$f":"IF('1α.ΔΕΛΤΙΟ ΔΕΔΟΜΕΝΩΝ'!B21=\"\",0,VLOOKUP('1α.ΔΕΛΤΙΟ ΔΕΔΟΜΕΝΩΝ'!B21,'2.ΒΑΣΙΚΕΣ ΤΙΜΕΣ'!A$76:B$89,2,FALSE)*'1α.ΔΕΛΤΙΟ ΔΕΔΟΜΕΝΩΝ'!C21)","v":0},0,null,null,{"$f":"IF('1α.ΔΕΛΤΙΟ ΔΕΔΟΜΕΝΩΝ'!C$23=0,0,'1β.ΜΞΔΠ'!F43*'1α.ΔΕΛΤΙΟ ΔΕΔΟΜΕΝΩΝ'!C21/'1α.ΔΕΛΤΙΟ ΔΕΔΟΜΕΝΩΝ'!C$23)","v":0}]
[20,{"$f":"IF('1α.ΔΕΛΤΙΟ ΔΕΔΟΜΕΝΩΝ'!B22=\"\",0,IF('1α.ΔΕΛΤΙΟ ΔΕΔΟΜΕΝΩΝ'!C22>0,VLOOKUP('1α.ΔΕΛΤΙΟ ΔΕΔΟΜΕΝΩΝ'!B22,'2.ΒΑΣΙΚΕΣ ΤΙΜΕΣ'!A$6:D$18,4,FALSE)*VLOOKUP('1α.ΔΕΛΤΙΟ ΔΕΔΟΜΕΝΩΝ'!B22,'2.ΒΑΣΙΚΕΣ ΤΙΜΕΣ'!A$6:K$18,11,FALSE),0)*'1α.ΔΕΛΤΙΟ ΔΕΔΟΜΕΝΩΝ'!C22*'1α.ΔΕΛΤΙΟ ΔΕΔΟΜΕΝΩΝ'!D22)","v":0},{"$f":"'1α.ΔΕΛΤΙΟ ΔΕΔΟΜΕΝΩΝ'!F22*'2.ΒΑΣΙΚΕΣ ΤΙΜΕΣ'!C$22*'2.ΒΑΣΙΚΕΣ ΤΙΜΕΣ'!D$22*'1α.ΔΕΛΤΙΟ ΔΕΔΟΜΕΝΩΝ'!C22+'1α.ΔΕΛΤΙΟ ΔΕΔΟΜΕΝΩΝ'!C22*'1α.ΔΕΛΤΙΟ ΔΕΔΟΜΕΝΩΝ'!G22*'2.ΒΑΣΙΚΕΣ ΤΙΜΕΣ'!C$25*'2.ΒΑΣΙΚΕΣ ΤΙΜΕΣ'!D$25+'1α.ΔΕΛΤΙΟ ΔΕΔΟΜΕΝΩΝ'!H22*'1α.ΔΕΛΤΙΟ ΔΕΔΟΜΕΝΩΝ'!C22*'2.ΒΑΣΙΚΕΣ ΤΙΜΕΣ'!C$27*'2.ΒΑΣΙΚΕΣ ΤΙΜΕΣ'!D$27*'1α.ΔΕΛΤΙΟ ΔΕΔΟΜΕΝΩΝ'!W22+N22","v":0},{"$f":"IF('1α.ΔΕΛΤΙΟ ΔΕΔΟΜΕΝΩΝ'!B22=\"\",0,VLOOKUP('1α.ΔΕΛΤΙΟ ΔΕΔΟΜΕΝΩΝ'!B22,'2.ΒΑΣΙΚΕΣ ΤΙΜΕΣ'!A$36:B$51,2,FALSE)*('1α.ΔΕΛΤΙΟ ΔΕΔΟΜΕΝΩΝ'!C22-'1α.ΔΕΛΤΙΟ ΔΕΔΟΜΕΝΩΝ'!J22))","v":0},{"$f":"'2.ΒΑΣΙΚΕΣ ΤΙΜΕΣ'!D$36*0.7*('1α.ΔΕΛΤΙΟ ΔΕΔΟΜΕΝΩΝ'!C22-'1α.ΔΕΛΤΙΟ ΔΕΔΟΜΕΝΩΝ'!K22)","v":0},{"$f":"IF('1α.ΔΕΛΤΙΟ ΔΕΔΟΜΕΝΩΝ'!B22=\"\",0,VLOOKUP('1α.ΔΕΛΤΙΟ ΔΕΔΟΜΕΝΩΝ'!B22,'2.ΒΑΣΙΚΕΣ ΤΙΜΕΣ'!A$36:C$51,3,FALSE)*'1α.ΔΕΛΤΙΟ ΔΕΔΟΜΕΝΩΝ'!C22)","v":0},{"$f":"(IF(OR('1α.ΔΕΛΤΙΟ ΔΕΔΟΜΕΝΩΝ'!M22=\"\",'1α.ΔΕΛΤΙΟ ΔΕΔΟΜΕΝΩΝ'!Q22=\"\",'1α.ΔΕΛΤΙΟ ΔΕΔΟΜΕΝΩΝ'!R22=\"\",'1α.ΔΕΛΤΙΟ ΔΕΔΟΜΕΝΩΝ'!R22=\"Επιφάνεια χωρίς φυτοκάλυψη \"),0,IF('1α.ΔΕΛΤΙΟ ΔΕΔΟΜΕΝΩΝ'!M22=0,0,VLOOKUP('1α.ΔΕΛΤΙΟ ΔΕΔΟΜΕΝΩΝ'!M22&'1α.ΔΕΛΤΙΟ ΔΕΔΟΜΕΝΩΝ'!Q22&'1α.ΔΕΛΤΙΟ ΔΕΔΟΜΕΝΩΝ'!R22,'PS DATA'!D:E,2,FALSE)*'1α.ΔΕΛΤΙΟ ΔΕΔΟΜΕΝΩΝ'!C22*'2.ΒΑΣΙΚΕΣ ΤΙΜΕΣ'!B$54)))","v":0},{"$f":"IF('1α.ΔΕΛΤΙΟ ΔΕΔΟΜΕΝΩΝ'!B22=\"\",0,VLOOKUP('1α.ΔΕΛΤΙΟ ΔΕΔΟΜΕΝΩΝ'!B22,'CS DATA'!D$2:H$13,5,FALSE)*'1α.ΔΕΛΤΙΟ ΔΕΔΟΜΕΝΩΝ'!D22*'1α.ΔΕΛΤΙΟ ΔΕΔΟΜΕΝΩΝ'!C22*'2.ΒΑΣΙΚΕΣ ΤΙΜΕΣ'!D$70)*IF('1α.ΔΕΛΤΙΟ ΔΕΔΟΜΕΝΩΝ'!S22=\"\",0,VLOOKUP('1α.ΔΕΛΤΙΟ ΔΕΔΟΜΕΝΩΝ'!S22,'CS DATA'!A$1:B$13,2,FALSE))","v":0},{"$f":"IF('1α.ΔΕΛΤΙΟ ΔΕΔΟΜΕΝΩΝ'!T22=\"\",0,VLOOKUP('1α.ΔΕΛΤΙΟ ΔΕΔΟΜΕΝΩΝ'!T22,'2.ΒΑΣΙΚΕΣ ΤΙΜΕΣ'!E$64:F$74,2,FALSE)*'1α.ΔΕΛΤΙΟ ΔΕΔΟΜΕΝΩΝ'!C22)*'2.ΒΑΣΙΚΕΣ ΤΙΜΕΣ'!D$71","v":0},{"$f":"IF('1α.ΔΕΛΤΙΟ ΔΕΔΟΜΕΝΩΝ'!B22=\"\",0,VLOOKUP('1α.ΔΕΛΤΙΟ ΔΕΔΟΜΕΝΩΝ'!B22,'2.ΒΑΣΙΚΕΣ ΤΙΜΕΣ'!A$76:B$89,2,FALSE)*'1α.ΔΕΛΤΙΟ ΔΕΔΟΜΕΝΩΝ'!C22)","v":0},0,null,null,{"$f":"IF('1α.ΔΕΛΤΙΟ ΔΕΔΟΜΕΝΩΝ'!C$23=0,0,'1β.ΜΞΔΠ'!F44*'1α.ΔΕΛΤΙΟ ΔΕΔΟΜΕΝΩΝ'!C22/'1α.ΔΕΛΤΙΟ ΔΕΔΟΜΕΝΩΝ'!C$23)","v":0}]
["Σ",{"$f":"SUM(B3:B22)","v":0},{"$f":"SUM(C3:C22)","v":0},0,0,0,0,0,0,0,{"$f":"SUM(K3:K22)","v":0}]
[null,{"$f":"B23/$K23","v":{"$error":"#DIV/0!"}},{"$f":"C23/$K23","v":{"$error":"#DIV/0!"}},{"$error":"#DIV/0!"},{"$error":"#DIV/0!"},{"$error":"#DIV/0!"},{"$error":"#DIV/0!"},{"$error":"#DIV/0!"},{"$error":"#DIV/0!"},{"$error":"#DIV/0!"},{"$error":"#DIV/0!"}]
[null,{"$f":"IF($K23>0,B24,\"-\")","v":"-"},{"$f":"IF($K23>0,C24,\"-\")","v":"-"},"-","-","-","-","-","-","-","-"]
["€/ha",{"$f":"IF('1α.ΔΕΛΤΙΟ ΔΕΔΟΜΕΝΩΝ'!$C23=0,0,B23/'1α.ΔΕΛΤΙΟ ΔΕΔΟΜΕΝΩΝ'!$C23)","v":0},{"$f":"IF('1α.ΔΕΛΤΙΟ ΔΕΔΟΜΕΝΩΝ'!$C23=0,0,C23/'1α.ΔΕΛΤΙΟ ΔΕΔΟΜΕΝΩΝ'!$C23)","v":0},{"$f":"IF('1α.ΔΕΛΤΙΟ ΔΕΔΟΜΕΝΩΝ'!$C23=0,0,D23/'1α.ΔΕΛΤΙΟ ΔΕΔΟΜΕΝΩΝ'!$C23)","v":0},{"$f":"IF('1α.ΔΕΛΤΙΟ ΔΕΔΟΜΕΝΩΝ'!$C23=0,0,E23/'1α.ΔΕΛΤΙΟ ΔΕΔΟΜΕΝΩΝ'!$C23)","v":0},{"$f":"IF('1α.ΔΕΛΤΙΟ ΔΕΔΟΜΕΝΩΝ'!$C23=0,0,F23/'1α.ΔΕΛΤΙΟ ΔΕΔΟΜΕΝΩΝ'!$C23)","v":0},{"$f":"IF('1α.ΔΕΛΤΙΟ ΔΕΔΟΜΕΝΩΝ'!$C23=0,0,G23/'1α.ΔΕΛΤΙΟ ΔΕΔΟΜΕΝΩΝ'!$C23)","v":0},{"$f":"IF('1α.ΔΕΛΤΙΟ ΔΕΔΟΜΕΝΩΝ'!$C23=0,0,H23/'1α.ΔΕΛΤΙΟ ΔΕΔΟΜΕΝΩΝ'!$C23)","v":0},{"$f":"IF('1α.ΔΕΛΤΙΟ ΔΕΔΟΜΕΝΩΝ'!$C23=0,0,I23/'1α.ΔΕΛΤΙΟ ΔΕΔΟΜΕΝΩΝ'!$C23)","v":0},{"$f":"IF('1α.ΔΕΛΤΙΟ ΔΕΔΟΜΕΝΩΝ'!$C23=0,0,J23/'1α.ΔΕΛΤΙΟ ΔΕΔΟΜΕΝΩΝ'!$C23)","v":0},{"$f":"IF('1α.ΔΕΛΤΙΟ ΔΕΔΟΜΕΝΩΝ'!$C23=0,0,K23/'1α.ΔΕΛΤΙΟ ΔΕΔΟΜΕΝΩΝ'!$C23)","v":0}]
[]
[null,"ΤΙΜΗ ΑΝΑ ΣΤΡΕΜΜΑ",null,{"$f":"K26/C29/10","v":0},null,"ΣΥΝΟΛΙΚΗ ΑΞΙΑ ΤΗΣ ΔΑΣΙΚΗΣ ΓΗΣ",null,{"$f":"K23/G29","v":0}]
[null,"για p=",3.5000000000000003E-2,null,null,"για p=",3.5000000000000003E-2]

{"sheet":"3β.ΤΕΚΜΗΡΙΩΣΗ","index":5,"n_rows":57,"n_cols":7,"rows_kept":57,"cut":false,"hidden":false,"merged":[[43,5,46,5],[53,3,53,5],[53,1,54,1],[52,0,52,5],[29,1,30,1],[29,0,30,0],[21,3,21,4],[1,3,1,5],[4,0,4,5],[28,0,28,6],[41,3,41,5],[41,1,42,1],[41,0,42,0],[5,5,6,5],[5,3,5,4],[5,1,6,1],[5,0,6,0],[24,1,26,3],[23,1,23,3],[19,3,19,4],[20,3,20,4]]}
["ΔΕΛΤΙΟ ΤΕΚΜΗΡΙΩΣΗΣ ΤΗΣ ΑΠΟΤΙΜΗΣΗΣ ΤΗΣ ΑΞΙΑΣ ΔΑΣΙΚΗΣ ΓΗΣ"]
["Δάσος ή δασική θέση:"]
["Συνολική έκταση: ",null,null,{"$f":"'1α.ΔΕΛΤΙΟ ΔΕΔΟΜΕΝΩΝ'!C23","v":0},"ha"]
[]
["Α. ΥΠΟΛΟΓΙΖΟΜΕΝΗ ΑΞΙΑ ΤΗΣ ΔΑΣΙΚΗΣ ΓΗΣ"]
["α/α","Λειτουργία",null,"Ετήσια αξία σε",null,"%"]
[null,null,null,"€/ha","€"]
[1,"Παραγωγή ξύλου (Vw)",null,{"$f":"'3α.ΑΠΟΤΕΛΕΣΜΑΤΑ'!B26","v":0},{"$f":"'3α.ΑΠΟΤΕΛΕΣΜΑΤΑ'!B23","v":0},{"$f":"IF(E8=0,0,E8/E$18)","v":0}]
[2,"Μη ξυλώδη δασ.πρ. (Vnwfp)",null,{"$f":"'3α.ΑΠΟΤΕΛΕΣΜΑΤΑ'!C26","v":0},{"$f":"'3α.ΑΠΟΤΕΛΕΣΜΑΤΑ'!C23","v":0},0]
[3,"Βόσκηση (Vg)",null,{"$f":"'3α.ΑΠΟΤΕΛΕΣΜΑΤΑ'!D26","v":0},{"$f":"'3α.ΑΠΟΤΕΛΕΣΜΑΤΑ'!D23","v":0},0]
[4,"Κυνήγι (Vh)",null,{"$f":"'3α.ΑΠΟΤΕΛΕΣΜΑΤΑ'!E26","v":0},{"$f":"'3α.ΑΠΟΤΕΛΕΣΜΑΤΑ'!E23","v":0},0]
[5,"Αναψυχή (Vr)",null,{"$f":"'3α.ΑΠΟΤΕΛΕΣΜΑΤΑ'!F26","v":0},{"$f":"'3α.ΑΠΟΤΕΛΕΣΜΑΤΑ'!F23","v":0},0]
[6,"Προστασία εδάφους (Vps)",null,{"$f":"'3α.ΑΠΟΤΕΛΕΣΜΑΤΑ'!G26","v":0},{"$f":"'3α.ΑΠΟΤΕΛΕΣΜΑΤΑ'!G23","v":0},0]
[7,"Δέσμευση άνθρακα (Vcs)",null,{"$f":"'3α.ΑΠΟΤΕΛΕΣΜΑΤΑ'!H26","v":0},{"$f":"'3α.ΑΠΟΤΕΛΕΣΜΑΤΑ'!H23","v":0},0]
[8,"Βιοποικιλότητα (Vps)",null,{"$f":"'3α.ΑΠΟΤΕΛΕΣΜΑΤΑ'!I26","v":0},{"$f":"'3α.ΑΠΟΤΕΛΕΣΜΑΤΑ'!I23","v":0},0]
[9,"Ζημίες από πυρκαγιές (Df)",null,{"$f":"'3α.ΑΠΟΤΕΛΕΣΜΑΤΑ'!J26","v":0},{"$f":"'3α.ΑΠΟΤΕΛΕΣΜΑΤΑ'!J23","v":0},0]
[10]
[11,"Σύνολο",null,{"$f":"'3α.ΑΠΟΤΕΛΕΣΜΑΤΑ'!K26","v":0},{"$f":"'3α.ΑΠΟΤΕΛΕΣΜΑΤΑ'!K23","v":0},{"$f":"IF(E18=0,0,E18/E$18)","v":0}]
[]
[null,"ΚΕΦΑΛΑΙΑΚΗ ΑΞΙΑ ΣΕ €/ΣΤΡ.",null,{"$f":"'3α.ΑΠΟΤΕΛΕΣΜΑΤΑ'!D28","v":0}]
[null,"ΣΥΝΟΛΙΚΗ ΚΕΦΑΛ. ΑΞΙΑ",null,{"$f":"'3α.ΑΠΟΤΕΛΕΣΜΑΤΑ'!H28","v":0}]
[null,"προεξοφλ. Επιτόκιο p",null,{"$f":"'3α.ΑΠΟΤΕΛΕΣΜΑΤΑ'!C29","v":3.5000000000000003E-2}]
[]
[null,"Ο ΑΠΟΤΙΜΗΤΗΣ"]
[]
[]
[]
[]
["Β. ΠΑΡΑΔΟΧΕΣ ΚΑΙ ΒΑΣΙΚΕΣ ΤΙΜΕΣ"]
["α/α","Δασικό είδος",null,"Μέση περίτροπη προσαύξηση","Τιμές πρέμνου","Μέση παραγωγή","Ετήσια ζημία από πυρκαγιές"]
[null,null,null,"m3/ha,έτος"," (€/m3)","m3/ha,έτος","€/ha"]
[1,{"$f":"'2.ΒΑΣΙΚΕΣ ΤΙΜΕΣ'!A6","v":"Ελάτη"},null,{"$f":"'2.ΒΑΣΙΚΕΣ ΤΙΜΕΣ'!D6","v":5.2},{"$f":"'2.ΒΑΣΙΚΕΣ ΤΙΜΕΣ'!K6","v":20.39},{"$f":"'2.ΒΑΣΙΚΕΣ ΤΙΜΕΣ'!K64","v":0.15},{"$f":"'2.ΒΑΣΙΚΕΣ ΤΙΜΕΣ'!B76","v":38.630000000000003}]
[2,{"$f":"'2.ΒΑΣΙΚΕΣ ΤΙΜΕΣ'!A7","v":"Ερυθρελάτη"},null,{"$f":"'2.ΒΑΣΙΚΕΣ ΤΙΜΕΣ'!D7","v":8.5},{"$f":"'2.ΒΑΣΙΚΕΣ ΤΙΜΕΣ'!K7","v":30.96},{"$f":"'2.ΒΑΣΙΚΕΣ ΤΙΜΕΣ'!K65","v":5.65},{"$f":"'2.ΒΑΣΙΚΕΣ ΤΙΜΕΣ'!B77","v":44.46}]
[3,{"$f":"'2.ΒΑΣΙΚΕΣ ΤΙΜΕΣ'!A8","v":"Πεύκη"},null,{"$f":"'2.ΒΑΣΙΚΕΣ ΤΙΜΕΣ'!D8","v":5.87},{"$f":"'2.ΒΑΣΙΚΕΣ ΤΙΜΕΣ'!K8","v":10.97},{"$f":"'2.ΒΑΣΙΚΕΣ ΤΙΜΕΣ'!K66","v":0.3},{"$f":"'2.ΒΑΣΙΚΕΣ ΤΙΜΕΣ'!B78","v":55.13}]
[4,{"$f":"'2.ΒΑΣΙΚΕΣ ΤΙΜΕΣ'!A9","v":"Οξυά"},null,{"$f":"'2.ΒΑΣΙΚΕΣ ΤΙΜΕΣ'!D9","v":6.3},{"$f":"'2.ΒΑΣΙΚΕΣ ΤΙΜΕΣ'!K9","v":14.13},{"$f":"'2.ΒΑΣΙΚΕΣ ΤΙΜΕΣ'!K67","v":0.86},{"$f":"'2.ΒΑΣΙΚΕΣ ΤΙΜΕΣ'!B79","v":36.93}]
[5,{"$f":"'2.ΒΑΣΙΚΕΣ ΤΙΜΕΣ'!A10","v":"Δρυς"},null,{"$f":"'2.ΒΑΣΙΚΕΣ ΤΙΜΕΣ'!D10","v":2.62},{"$f":"'2.ΒΑΣΙΚΕΣ ΤΙΜΕΣ'!K10","v":13.24},{"$f":"'2.ΒΑΣΙΚΕΣ ΤΙΜΕΣ'!K68","v":0.2},{"$f":"'2.ΒΑΣΙΚΕΣ ΤΙΜΕΣ'!B80","v":46.88}]
[6,{"$f":"'2.ΒΑΣΙΚΕΣ ΤΙΜΕΣ'!A11","v":"Λοιπά πλατύφυλλα"},null,{"$f":"'2.ΒΑΣΙΚΕΣ ΤΙΜΕΣ'!D11","v":2.06},{"$f":"'2.ΒΑΣΙΚΕΣ ΤΙΜΕΣ'!K11","v":12.81},{"$f":"'2.ΒΑΣΙΚΕΣ ΤΙΜΕΣ'!K69","v":0.43},{"$f":"'2.ΒΑΣΙΚΕΣ ΤΙΜΕΣ'!B81","v":85.8}]
[7,{"$f":"'2.ΒΑΣΙΚΕΣ ΤΙΜΕΣ'!A12","v":"Αείφυλλα πλατύφυλλα"},null,{"$f":"'2.ΒΑΣΙΚΕΣ ΤΙΜΕΣ'!D12","v":0.3},{"$f":"'2.ΒΑΣΙΚΕΣ ΤΙΜΕΣ'!K12","v":2.35},{"$f":"'2.ΒΑΣΙΚΕΣ ΤΙΜΕΣ'!K70","v":0.2},{"$f":"'2.ΒΑΣΙΚΕΣ ΤΙΜΕΣ'!B82","v":39.54}]
[8,"Φρύγανα",null,null,null,null,{"$f":"'2.ΒΑΣΙΚΕΣ ΤΙΜΕΣ'!B83","v":41.1}]
[9,"Χορτολίβαδα",null,null,null,null,{"$f":"'2.ΒΑΣΙΚΕΣ ΤΙΜΕΣ'!B84","v":37.67}]
[]
["α/α","Κατηγορία βλάστησης",null,"Ετήσιες πρόσοδοι από"]
[null,null,null,"Βόσκηση","Αναψυχή","Κυνήγι"]
[10,{"$f":"'2.ΒΑΣΙΚΕΣ ΤΙΜΕΣ'!A36","v":"Υψηλά δάση"},null,{"$f":"'2.ΒΑΣΙΚΕΣ ΤΙΜΕΣ'!B36","v":45},{"$f":"'2.ΒΑΣΙΚΕΣ ΤΙΜΕΣ'!C36","v":94.3},{"$f":"'2.ΒΑΣΙΚΕΣ ΤΙΜΕΣ'!D36","v":1.57}]
[11,{"$f":"'2.ΒΑΣΙΚΕΣ ΤΙΜΕΣ'!A37","v":"Αείφυλλα πλατύφυλλα"},null,{"$f":"'2.ΒΑΣΙΚΕΣ ΤΙΜΕΣ'!B37","v":82.5},{"$f":"'2.ΒΑΣΙΚΕΣ ΤΙΜΕΣ'!C37","v":75.400000000000006}]
[12,{"$f":"'2.ΒΑΣΙΚΕΣ ΤΙΜΕΣ'!A38","v":"Φρυγανικά οικοσυστήματα"},null,{"$f":"'2.ΒΑΣΙΚΕΣ ΤΙΜΕΣ'!B38","v":80},{"$f":"'2.ΒΑΣΙΚΕΣ ΤΙΜΕΣ'!C38","v":66}]
[13,{"$f":"'2.ΒΑΣΙΚΕΣ ΤΙΜΕΣ'!A39","v":"Χορτολιβαδικές εκτάσεις"},null,{"$f":"'2.ΒΑΣΙΚΕΣ ΤΙΜΕΣ'!B39","v":125},{"$f":"'2.ΒΑΣΙΚΕΣ ΤΙΜΕΣ'!C39","v":47.2}]
[]
[null,"Τιμή άνθρακα (€/tn)",null,{"$f":"'2.ΒΑΣΙΚΕΣ ΤΙΜΕΣ'!D70","v":4.87}]
[null,"Ετήσια αξία βιοποικιλότητας (€/ha)",null,{"$f":"'2.ΒΑΣΙΚΕΣ ΤΙΜΕΣ'!D71","v":120}]
[null,"Τιμή εδάφους (€/m3)",null,{"$f":"'2.ΒΑΣΙΚΕΣ ΤΙΜΕΣ'!B54","v":6}]
[]
["Γ. ΑΝΑΛΥΣΗ ΕΥΑΙΣΘΗΣΙΑΣ"]
[null,"ΚΕΦΑΛΑΙΑΚΗ ΑΞΙΑ",null,"Επιτόκιο προεξόφλησης p"]
[null,null,null,{"$f":"E55-0.005","v":3.0000000000000002E-2},{"$f":"D22","v":3.5000000000000003E-2},{"$f":"E55+0.005","v":0.04}]
[null,"€/στρέμμα",null,{"$f":"D18/10/D55","v":0},{"$f":"D20","v":0},{"$f":"D18/10/F55","v":0}]
[null,"€",null,{"$f":"E18/D55","v":0},{"$f":"D21","v":0},{"$f":"E18/F55","v":0}]

{"sheet":"PS DATA","index":6,"n_rows":101,"n_cols":5,"rows_kept":101,"cut":false,"hidden":true,"merged":[]}
["ΚΛΙΣΗ","ΓΕΩΛΟΓΙΚΟΙ ΣΧΗΜΑΤΙΣΜΟΙ","ΒΛΑΣΤΗΣΗ","CODE","ΤΙΜΗ S"]
["0-25%","Σκληρά πετρώματα, ανθεκτικά στη διάβρωση","Μικτές δασοσυστάδες και πυκνοί θαμνώνες ή δασοσυστάδες αραιές με υπόροφο ",{"$f":"A2&B2&C2","v":"0-25%Σκληρά πετρώματα, ανθεκτικά στη διάβρωσηΜικτές δασοσυστάδες και πυκνοί θαμνώνες ή δασοσυστάδες αραιές με υπόροφο "},3.16]
["0-25%","Σκληρά πετρώματα, ανθεκτικά στη διάβρωση","Δασοσυστάδες κωνοφόρων με υπόροφο ασθενή ή θαμνώνες όχι σύμπυκνοι ",{"$f":"A3&B3&C3","v":"0-25%Σκληρά πετρώματα, ανθεκτικά στη διάβρωσηΔασοσυστάδες κωνοφόρων με υπόροφο ασθενή ή θαμνώνες όχι σύμπυκνοι "},2.93]
["0-25%","Σκληρά πετρώματα, ανθεκτικά στη διάβρωση","Δασοσυστάδες και θαμνώνες υποβαθμισμένοι, λιβάδια ","0-25%Σκληρά πετρώματα, ανθεκτικά στη διάβρωσηΔασοσυστάδες και θαμνώνες υποβαθμισμένοι, λιβάδια ",2.44]
["0-25%","Σκληρά πετρώματα, ανθεκτικά στη διάβρωση","Λιβάδια και εδάφη καλλιεργούμενα, υποβαθμισμένα ","0-25%Σκληρά πετρώματα, ανθεκτικά στη διάβρωσηΛιβάδια και εδάφη καλλιεργούμενα, υποβαθμισμένα ",1.31]
["25-40%","Σκληρά πετρώματα, ανθεκτικά στη διάβρωση","Μικτές δασοσυστάδες και πυκνοί θαμνώνες ή δασοσυστάδες αραιές με υπόροφο ","25-40%Σκληρά πετρώματα, ανθεκτικά στη διάβρωσηΜικτές δασοσυστάδες και πυκνοί θαμνώνες ή δασοσυστάδες αραιές με υπόροφο ",4.6100000000000003]
["25-40%","Σκληρά πετρώματα, ανθεκτικά στη διάβρωση","Δασοσυστάδες κωνοφόρων με υπόροφο ασθενή ή θαμνώνες όχι σύμπυκνοι ","25-40%Σκληρά πετρώματα, ανθεκτικά στη διάβρωσηΔασοσυστάδες κωνοφόρων με υπόροφο ασθενή ή θαμνώνες όχι σύμπυκνοι ",4.28]
["25-40%","Σκληρά πετρώματα, ανθεκτικά στη διάβρωση","Δασοσυστάδες και θαμνώνες υποβαθμισμένοι, λιβάδια ","25-40%Σκληρά πετρώματα, ανθεκτικά στη διάβρωσηΔασοσυστάδες και θαμνώνες υποβαθμισμένοι, λιβάδια ",3.57]
["25-40%","Σκληρά πετρώματα, ανθεκτικά στη διάβρωση","Λιβάδια και εδάφη καλλιεργούμενα, υποβαθμισμένα ","25-40%Σκληρά πετρώματα, ανθεκτικά στη διάβρωσηΛιβάδια και εδάφη καλλιεργούμενα, υποβαθμισμένα ",1.91]
["40-60%","Σκληρά πετρώματα, ανθεκτικά στη διάβρωση","Μικτές δασοσυστάδες και πυκνοί θαμνώνες ή δασοσυστάδες αραιές με υπόροφο ","40-60%Σκληρά πετρώματα, ανθεκτικά στη διάβρωσηΜικτές δασοσυστάδες και πυκνοί θαμνώνες ή δασοσυστάδες αραιές με υπόροφο ",5.62]
["40-60%","Σκληρά πετρώματα, ανθεκτικά στη διάβρωση","Δασοσυστάδες κωνοφόρων με υπόροφο ασθενή ή θαμνώνες όχι σύμπυκνοι ","40-60%Σκληρά πετρώματα, ανθεκτικά στη διάβρωσηΔασοσυστάδες κωνοφόρων με υπόροφο ασθενή ή θαμνώνες όχι σύμπυκνοι ",5.22]
["40-60%","Σκληρά πετρώματα, ανθεκτικά στη διάβρωση","Δασοσυστάδες και θαμνώνες υποβαθμισμένοι, λιβάδια ","40-60%Σκληρά πετρώματα, ανθεκτικά στη διάβρωσηΔασοσυστάδες και θαμνώνες υποβαθμισμένοι, λιβάδια ",4.3499999999999996]
["40-60%","Σκληρά πετρώματα, ανθεκτικά στη διάβρωση","Λιβάδια και εδάφη καλλιεργούμενα, υποβαθμισμένα ","40-60%Σκληρά πετρώματα, ανθεκτικά στη διάβρωσηΛιβάδια και εδάφη καλλιεργούμενα, υποβαθμισμένα ",2.33]
["60-90%","Σκληρά πετρώματα, ανθεκτικά στη διάβρωση","Μικτές δασοσυστάδες και πυκνοί θαμνώνες ή δασοσυστάδες αραιές με υπόροφο ","60-90%Σκληρά πετρώματα, ανθεκτικά στη διάβρωσηΜικτές δασοσυστάδες και πυκνοί θαμνώνες ή δασοσυστάδες αραιές με υπόροφο ",6.87]
["60-90%","Σκληρά πετρώματα, ανθεκτικά στη διάβρωση","Δασοσυστάδες κωνοφόρων με υπόροφο ασθενή ή θαμνώνες όχι σύμπυκνοι ","60-90%Σκληρά πετρώματα, ανθεκτικά στη διάβρωσηΔασοσυστάδες κωνοφόρων με υπόροφο ασθενή ή θαμνώνες όχι σύμπυκνοι ",6.39]
["60-90%","Σκληρά πετρώματα, ανθεκτικά στη διάβρωση","Δασοσυστάδες και θαμνώνες υποβαθμισμένοι, λιβάδια ","60-90%Σκληρά πετρώματα, ανθεκτικά στη διάβρωσηΔασοσυστάδες και θαμνώνες υποβαθμισμένοι, λιβάδια ",5.32]
["60-90%","Σκληρά πετρώματα, ανθεκτικά στη διάβρωση","Λιβάδια και εδάφη καλλιεργούμενα, υποβαθμισμένα ","60-90%Σκληρά πετρώματα, ανθεκτικά στη διάβρωσηΛιβάδια και εδάφη καλλιεργούμενα, υποβαθμισμένα ",2.85]
[">90%","Σκληρά πετρώματα, ανθεκτικά στη διάβρωση","Μικτές δασοσυστάδες και πυκνοί θαμνώνες ή δασοσυστάδες αραιές με υπόροφο ",">90%Σκληρά πετρώματα, ανθεκτικά στη διάβρωσηΜικτές δασοσυστάδες και πυκνοί θαμνώνες ή δασοσυστάδες αραιές με υπόροφο ",7.99]
[">90%","Σκληρά πετρώματα, ανθεκτικά στη διάβρωση","Δασοσυστάδες κωνοφόρων με υπόροφο ασθενή ή θαμνώνες όχι σύμπυκνοι ",">90%Σκληρά πετρώματα, ανθεκτικά στη διάβρωσηΔασοσυστάδες κωνοφόρων με υπόροφο ασθενή ή θαμνώνες όχι σύμπυκνοι ",7.43]
[">90%","Σκληρά πετρώματα, ανθεκτικά στη διάβρωση","Δασοσυστάδες και θαμνώνες υποβαθμισμένοι, λιβάδια ",">90%Σκληρά πετρώματα, ανθεκτικά στη διάβρωσηΔασοσυστάδες και θαμνώνες υποβαθμισμένοι, λιβάδια ",6.18]
[">90%","Σκληρά πετρώματα, ανθεκτικά στη διάβρωση","Λιβάδια και εδάφη καλλιεργούμενα, υποβαθμισμένα ",">90%Σκληρά πετρώματα, ανθεκτικά στη διάβρωσηΛιβάδια και εδάφη καλλιεργούμενα, υποβαθμισμένα ",3.31]
["0-25%","Πετρώματα μετρίως ανθεκτικά στη διάβρωση ","Μικτές δασοσυστάδες και πυκνοί θαμνώνες ή δασοσυστάδες αραιές με υπόροφο ",{"$f":"A22&B22&C22","v":"0-25%Πετρώματα μετρίως ανθεκτικά στη διάβρωση Μικτές δασοσυστάδες και πυκνοί θαμνώνες ή δασοσυστάδες αραιές με υπόροφο "},8.93]
["0-25%","Πετρώματα μετρίως ανθεκτικά στη διάβρωση ","Δασοσυστάδες κωνοφόρων με υπόροφο ασθενή ή θαμνώνες όχι σύμπυκνοι ","0-25%Πετρώματα μετρίως ανθεκτικά στη διάβρωση Δασοσυστάδες κωνοφόρων με υπόροφο ασθενή ή θαμνώνες όχι σύμπυκνοι ",8.2899999999999991]
["0-25%","Πετρώματα μετρίως ανθεκτικά στη διάβρωση ","Δασοσυστάδες και θαμνώνες υποβαθμισμένοι, λιβάδια ","0-25%Πετρώματα μετρίως ανθεκτικά στη διάβρωση Δασοσυστάδες και θαμνώνες υποβαθμισμένοι, λιβάδια ",6.91]
["0-25%","Πετρώματα μετρίως ανθεκτικά στη διάβρωση ","Λιβάδια και εδάφη καλλιεργούμενα, υποβαθμισμένα ","0-25%Πετρώματα μετρίως ανθεκτικά στη διάβρωση Λιβάδια και εδάφη καλλιεργούμενα, υποβαθμισμένα ",3.7]
["25-40%","Πετρώματα μετρίως ανθεκτικά στη διάβρωση ","Μικτές δασοσυστάδες και πυκνοί θαμνώνες ή δασοσυστάδες αραιές με υπόροφο ","25-40%Πετρώματα μετρίως ανθεκτικά στη διάβρωση Μικτές δασοσυστάδες και πυκνοί θαμνώνες ή δασοσυστάδες αραιές με υπόροφο ",13.04]
["25-40%","Πετρώματα μετρίως ανθεκτικά στη διάβρωση ","Δασοσυστάδες κωνοφόρων με υπόροφο ασθενή ή θαμνώνες όχι σύμπυκνοι ","25-40%Πετρώματα μετρίως ανθεκτικά στη διάβρωση Δασοσυστάδες κωνοφόρων με υπόροφο ασθενή ή θαμνώνες όχι σύμπυκνοι ",12.11]
["25-40%","Πετρώματα μετρίως ανθεκτικά στη διάβρωση ","Δασοσυστάδες και θαμνώνες υποβαθμισμένοι, λιβάδια ","25-40%Πετρώματα μετρίως ανθεκτικά στη διάβρωση Δασοσυστάδες και θαμνώνες υποβαθμισμένοι, λιβάδια ",10.09]
["25-40%","Πετρώματα μετρίως ανθεκτικά στη διάβρωση ","Λιβάδια και εδάφη καλλιεργούμενα, υποβαθμισμένα ","25-40%Πετρώματα μετρίως ανθεκτικά στη διάβρωση Λιβάδια και εδάφη καλλιεργούμενα, υποβαθμισμένα ",5.41]
["40-60%","Πετρώματα μετρίως ανθεκτικά στη διάβρωση ","Μικτές δασοσυστάδες και πυκνοί θαμνώνες ή δασοσυστάδες αραιές με υπόροφο ","40-60%Πετρώματα μετρίως ανθεκτικά στη διάβρωση Μικτές δασοσυστάδες και πυκνοί θαμνώνες ή δασοσυστάδες αραιές με υπόροφο ",15.9]
["40-60%","Πετρώματα μετρίως ανθεκτικά στη διάβρωση ","Δασοσυστάδες κωνοφόρων με υπόροφο ασθενή ή θαμνώνες όχι σύμπυκνοι ","40-60%Πετρώματα μετρίως ανθεκτικά στη διάβρωση Δασοσυστάδες κωνοφόρων με υπόροφο ασθενή ή θαμνώνες όχι σύμπυκνοι ",14.77]
["40-60%","Πετρώματα μετρίως ανθεκτικά στη διάβρωση ","Δασοσυστάδες και θαμνώνες υποβαθμισμένοι, λιβάδια ","40-60%Πετρώματα μετρίως ανθεκτικά στη διάβρωση Δασοσυστάδες και θαμνώνες υποβαθμισμένοι, λιβάδια ",12.3]
["40-60%","Πετρώματα μετρίως ανθεκτικά στη διάβρωση ","Λιβάδια και εδάφη καλλιεργούμενα, υποβαθμισμένα ","40-60%Πετρώματα μετρίως ανθεκτικά στη διάβρωση Λιβάδια και εδάφη καλλιεργούμενα, υποβαθμισμένα ",6.59]
["60-90%","Πετρώματα μετρίως ανθεκτικά στη διάβρωση ","Μικτές δασοσυστάδες και πυκνοί θαμνώνες ή δασοσυστάδες αραιές με υπόροφο ","60-90%Πετρώματα μετρίως ανθεκτικά στη διάβρωση Μικτές δασοσυστάδες και πυκνοί θαμνώνες ή δασοσυστάδες αραιές με υπόροφο ",19.440000000000001]
["60-90%","Πετρώματα μετρίως ανθεκτικά στη διάβρωση ","Δασοσυστάδες κωνοφόρων με υπόροφο ασθενή ή θαμνώνες όχι σύμπυκνοι ","60-90%Πετρώματα μετρίως ανθεκτικά στη διάβρωση Δασοσυστάδες κωνοφόρων με υπόροφο ασθενή ή θαμνώνες όχι σύμπυκνοι ",18.059999999999999]
["60-90%","Πετρώματα μετρίως ανθεκτικά στη διάβρωση ","Δασοσυστάδες και θαμνώνες υποβαθμισμένοι, λιβάδια ","60-90%Πετρώματα μετρίως ανθεκτικά στη διάβρωση Δασοσυστάδες και θαμνώνες υποβαθμισμένοι, λιβάδια ",15.04]
["60-90%","Πετρώματα μετρίως ανθεκτικά στη διάβρωση ","Λιβάδια και εδάφη καλλιεργούμενα, υποβαθμισμένα ","60-90%Πετρώματα μετρίως ανθεκτικά στη διάβρωση Λιβάδια και εδάφη καλλιεργούμενα, υποβαθμισμένα ",8.06]
[">90%","Πετρώματα μετρίως ανθεκτικά στη διάβρωση ","Μικτές δασοσυστάδες και πυκνοί θαμνώνες ή δασοσυστάδες αραιές με υπόροφο ",">90%Πετρώματα μετρίως ανθεκτικά στη διάβρωση Μικτές δασοσυστάδες και πυκνοί θαμνώνες ή δασοσυστάδες αραιές με υπόροφο ",22.61]
[">90%","Πετρώματα μετρίως ανθεκτικά στη διάβρωση ","Δασοσυστάδες κωνοφόρων με υπόροφο ασθενή ή θαμνώνες όχι σύμπυκνοι ",">90%Πετρώματα μετρίως ανθεκτικά στη διάβρωση Δασοσυστάδες κωνοφόρων με υπόροφο ασθενή ή θαμνώνες όχι σύμπυκνοι ",21]
[">90%","Πετρώματα μετρίως ανθεκτικά στη διάβρωση ","Δασοσυστάδες και θαμνώνες υποβαθμισμένοι, λιβάδια ",">90%Πετρώματα μετρίως ανθεκτικά στη διάβρωση Δασοσυστάδες και θαμνώνες υποβαθμισμένοι, λιβάδια ",17.489999999999998]
[">90%","Πετρώματα μετρίως ανθεκτικά στη διάβρωση ","Λιβάδια και εδάφη καλλιεργούμενα, υποβαθμισμένα ",">90%Πετρώματα μετρίως ανθεκτικά στη διάβρωση Λιβάδια και εδάφη καλλιεργούμενα, υποβαθμισμένα ",9.3699999999999992]
["0-25%","Εύθρυπτα πετρώματα ","Μικτές δασοσυστάδες και πυκνοί θαμνώνες ή δασοσυστάδες αραιές με υπόροφο ","0-25%Εύθρυπτα πετρώματα Μικτές δασοσυστάδες και πυκνοί θαμνώνες ή δασοσυστάδες αραιές με υπόροφο ",15.39]
["0-25%","Εύθρυπτα πετρώματα ","Δασοσυστάδες κωνοφόρων με υπόροφο ασθενή ή θαμνώνες όχι σύμπυκνοι ","0-25%Εύθρυπτα πετρώματα Δασοσυστάδες κωνοφόρων με υπόροφο ασθενή ή θαμνώνες όχι σύμπυκνοι ",14.29]
["0-25%","Εύθρυπτα πετρώματα ","Δασοσυστάδες και θαμνώνες υποβαθμισμένοι, λιβάδια ","0-25%Εύθρυπτα πετρώματα Δασοσυστάδες και θαμνώνες υποβαθμισμένοι, λιβάδια ",11.9]
["0-25%","Εύθρυπτα πετρώματα ","Λιβάδια και εδάφη καλλιεργούμενα, υποβαθμισμένα ","0-25%Εύθρυπτα πετρώματα Λιβάδια και εδάφη καλλιεργούμενα, υποβαθμισμένα ",6.38]
["25-40%","Εύθρυπτα πετρώματα ","Μικτές δασοσυστάδες και πυκνοί θαμνώνες ή δασοσυστάδες αραιές με υπόροφο ","25-40%Εύθρυπτα πετρώματα Μικτές δασοσυστάδες και πυκνοί θαμνώνες ή δασοσυστάδες αραιές με υπόροφο ",22.47]
["25-40%","Εύθρυπτα πετρώματα ","Δασοσυστάδες κωνοφόρων με υπόροφο ασθενή ή θαμνώνες όχι σύμπυκνοι ","25-40%Εύθρυπτα πετρώματα Δασοσυστάδες κωνοφόρων με υπόροφο ασθενή ή θαμνώνες όχι σύμπυκνοι ",20.88]
["25-40%","Εύθρυπτα πετρώματα ","Δασοσυστάδες και θαμνώνες υποβαθμισμένοι, λιβάδια ","25-40%Εύθρυπτα πετρώματα Δασοσυστάδες και θαμνώνες υποβαθμισμένοι, λιβάδια ",17.38]
["25-40%","Εύθρυπτα πετρώματα ","Λιβάδια και εδάφη καλλιεργούμενα, υποβαθμισμένα ","25-40%Εύθρυπτα πετρώματα Λιβάδια και εδάφη καλλιεργούμενα, υποβαθμισμένα ",9.32]
["40-60%","Εύθρυπτα πετρώματα ","Μικτές δασοσυστάδες και πυκνοί θαμνώνες ή δασοσυστάδες αραιές με υπόροφο ","40-60%Εύθρυπτα πετρώματα Μικτές δασοσυστάδες και πυκνοί θαμνώνες ή δασοσυστάδες αραιές με υπόροφο ",27.4]
["40-60%","Εύθρυπτα πετρώματα ","Δασοσυστάδες κωνοφόρων με υπόροφο ασθενή ή θαμνώνες όχι σύμπυκνοι ","40-60%Εύθρυπτα πετρώματα Δασοσυστάδες κωνοφόρων με υπόροφο ασθενή ή θαμνώνες όχι σύμπυκνοι ",25.45]
["40-60%","Εύθρυπτα πετρώματα ","Δασοσυστάδες και θαμνώνες υποβαθμισμένοι, λιβάδια ","40-60%Εύθρυπτα πετρώματα Δασοσυστάδες και θαμνώνες υποβαθμισμένοι, λιβάδια ",21.19]
["40-60%","Εύθρυπτα πετρώματα ","Λιβάδια και εδάφη καλλιεργούμενα, υποβαθμισμένα ","40-60%Εύθρυπτα πετρώματα Λιβάδια και εδάφη καλλιεργούμενα, υποβαθμισμένα ",11.36]
["60-90%","Εύθρυπτα πετρώματα ","Μικτές δασοσυστάδες και πυκνοί θαμνώνες ή δασοσυστάδες αραιές με υπόροφο ","60-90%Εύθρυπτα πετρώματα Μικτές δασοσυστάδες και πυκνοί θαμνώνες ή δασοσυστάδες αραιές με υπόροφο ",33.51]
["60-90%","Εύθρυπτα πετρώματα ","Δασοσυστάδες κωνοφόρων με υπόροφο ασθενή ή θαμνώνες όχι σύμπυκνοι ","60-90%Εύθρυπτα πετρώματα Δασοσυστάδες κωνοφόρων με υπόροφο ασθενή ή θαμνώνες όχι σύμπυκνοι ",31.13]
["60-90%","Εύθρυπτα πετρώματα ","Δασοσυστάδες και θαμνώνες υποβαθμισμένοι, λιβάδια ","60-90%Εύθρυπτα πετρώματα Δασοσυστάδες και θαμνώνες υποβαθμισμένοι, λιβάδια ",25.92]
["60-90%","Εύθρυπτα πετρώματα ","Λιβάδια και εδάφη καλλιεργούμενα, υποβαθμισμένα ","60-90%Εύθρυπτα πετρώματα Λιβάδια και εδάφη καλλιεργούμενα, υποβαθμισμένα ",13.89]
[">90%","Εύθρυπτα πετρώματα ","Μικτές δασοσυστάδες και πυκνοί θαμνώνες ή δασοσυστάδες αραιές με υπόροφο ",">90%Εύθρυπτα πετρώματα Μικτές δασοσυστάδες και πυκνοί θαμνώνες ή δασοσυστάδες αραιές με υπόροφο ",38.96]
[">90%","Εύθρυπτα πετρώματα ","Δασοσυστάδες κωνοφόρων με υπόροφο ασθενή ή θαμνώνες όχι σύμπυκνοι ",">90%Εύθρυπτα πετρώματα Δασοσυστάδες κωνοφόρων με υπόροφο ασθενή ή θαμνώνες όχι σύμπυκνοι ",36.200000000000003]
[">90%","Εύθρυπτα πετρώματα ","Δασοσυστάδες και θαμνώνες υποβαθμισμένοι, λιβάδια ",">90%Εύθρυπτα πετρώματα Δασοσυστάδες και θαμνώνες υποβαθμισμένοι, λιβάδια ",30.14]
[">90%","Εύθρυπτα πετρώματα ","Λιβάδια και εδάφη καλλιεργούμενα, υποβαθμισμένα ",">90%Εύθρυπτα πετρώματα Λιβάδια και εδάφη καλλιεργούμενα, υποβαθμισμένα ",16.149999999999999]
["0-25%","Αποθέσεις, μορένες, άργιλοι, ψαμμόλιθοι και άλλα ανθεκτικά πετρώματα","Μικτές δασοσυστάδες και πυκνοί θαμνώνες ή δασοσυστάδες αραιές με υπόροφο ","0-25%Αποθέσεις, μορένες, άργιλοι, ψαμμόλιθοι και άλλα ανθεκτικά πετρώματαΜικτές δασοσυστάδες και πυκνοί θαμνώνες ή δασοσυστάδες αραιές με υπόροφο ",24.08]
["0-25%","Αποθέσεις, μορένες, άργιλοι, ψαμμόλιθοι και άλλα ανθεκτικά πετρώματα","Δασοσυστάδες κωνοφόρων με υπόροφο ασθενή ή θαμνώνες όχι σύμπυκνοι ","0-25%Αποθέσεις, μορένες, άργιλοι, ψαμμόλιθοι και άλλα ανθεκτικά πετρώματαΔασοσυστάδες κωνοφόρων με υπόροφο ασθενή ή θαμνώνες όχι σύμπυκνοι ",22.37]
["0-25%","Αποθέσεις, μορένες, άργιλοι, ψαμμόλιθοι και άλλα ανθεκτικά πετρώματα","Δασοσυστάδες και θαμνώνες υποβαθμισμένοι, λιβάδια ","0-25%Αποθέσεις, μορένες, άργιλοι, ψαμμόλιθοι και άλλα ανθεκτικά πετρώματαΔασοσυστάδες και θαμνώνες υποβαθμισμένοι, λιβάδια ",18.62]
["0-25%","Αποθέσεις, μορένες, άργιλοι, ψαμμόλιθοι και άλλα ανθεκτικά πετρώματα","Λιβάδια και εδάφη καλλιεργούμενα, υποβαθμισμένα ","0-25%Αποθέσεις, μορένες, άργιλοι, ψαμμόλιθοι και άλλα ανθεκτικά πετρώματαΛιβάδια και εδάφη καλλιεργούμενα, υποβαθμισμένα ",9.98]
["25-40%","Αποθέσεις, μορένες, άργιλοι, ψαμμόλιθοι και άλλα ανθεκτικά πετρώματα","Μικτές δασοσυστάδες και πυκνοί θαμνώνες ή δασοσυστάδες αραιές με υπόροφο ","25-40%Αποθέσεις, μορένες, άργιλοι, ψαμμόλιθοι και άλλα ανθεκτικά πετρώματαΜικτές δασοσυστάδες και πυκνοί θαμνώνες ή δασοσυστάδες αραιές με υπόροφο ",35.17]
["25-40%","Αποθέσεις, μορένες, άργιλοι, ψαμμόλιθοι και άλλα ανθεκτικά πετρώματα","Δασοσυστάδες κωνοφόρων με υπόροφο ασθενή ή θαμνώνες όχι σύμπυκνοι ",{"$f":"A67&B67&C67","v":"25-40%Αποθέσεις, μορένες, άργιλοι, ψαμμόλιθοι και άλλα ανθεκτικά πετρώματαΔασοσυστάδες κωνοφόρων με υπόροφο ασθενή ή θαμνώνες όχι σύμπυκνοι "},32.67]
["25-40%","Αποθέσεις, μορένες, άργιλοι, ψαμμόλιθοι και άλλα ανθεκτικά πετρώματα","Δασοσυστάδες και θαμνώνες υποβαθμισμένοι, λιβάδια ","25-40%Αποθέσεις, μορένες, άργιλοι, ψαμμόλιθοι και άλλα ανθεκτικά πετρώματαΔασοσυστάδες και θαμνώνες υποβαθμισμένοι, λιβάδια ",27.2]
["25-40%","Αποθέσεις, μορένες, άργιλοι, ψαμμόλιθοι και άλλα ανθεκτικά πετρώματα","Λιβάδια και εδάφη καλλιεργούμενα, υποβαθμισμένα ","25-40%Αποθέσεις, μορένες, άργιλοι, ψαμμόλιθοι και άλλα ανθεκτικά πετρώματαΛιβάδια και εδάφη καλλιεργούμενα, υποβαθμισμένα ",14.58]
["40-60%","Αποθέσεις, μορένες, άργιλοι, ψαμμόλιθοι και άλλα ανθεκτικά πετρώματα","Μικτές δασοσυστάδες και πυκνοί θαμνώνες ή δασοσυστάδες αραιές με υπόροφο ","40-60%Αποθέσεις, μορένες, άργιλοι, ψαμμόλιθοι και άλλα ανθεκτικά πετρώματαΜικτές δασοσυστάδες και πυκνοί θαμνώνες ή δασοσυστάδες αραιές με υπόροφο ",42.87]
["40-60%","Αποθέσεις, μορένες, άργιλοι, ψαμμόλιθοι και άλλα ανθεκτικά πετρώματα","Δασοσυστάδες κωνοφόρων με υπόροφο ασθενή ή θαμνώνες όχι σύμπυκνοι ","40-60%Αποθέσεις, μορένες, άργιλοι, ψαμμόλιθοι και άλλα ανθεκτικά πετρώματαΔασοσυστάδες κωνοφόρων με υπόροφο ασθενή ή θαμνώνες όχι σύμπυκνοι ",39.83]
["40-60%","Αποθέσεις, μορένες, άργιλοι, ψαμμόλιθοι και άλλα ανθεκτικά πετρώματα","Δασοσυστάδες και θαμνώνες υποβαθμισμένοι, λιβάδια ","40-60%Αποθέσεις, μορένες, άργιλοι, ψαμμόλιθοι και άλλα ανθεκτικά πετρώματαΔασοσυστάδες και θαμνώνες υποβαθμισμένοι, λιβάδια ",33.159999999999997]
["40-60%","Αποθέσεις, μορένες, άργιλοι, ψαμμόλιθοι και άλλα ανθεκτικά πετρώματα","Λιβάδια και εδάφη καλλιεργούμενα, υποβαθμισμένα ","40-60%Αποθέσεις, μορένες, άργιλοι, ψαμμόλιθοι και άλλα ανθεκτικά πετρώματαΛιβάδια και εδάφη καλλιεργούμενα, υποβαθμισμένα ",17.78]
["60-90%","Αποθέσεις, μορένες, άργιλοι, ψαμμόλιθοι και άλλα ανθεκτικά πετρώματα","Μικτές δασοσυστάδες και πυκνοί θαμνώνες ή δασοσυστάδες αραιές με υπόροφο ","60-90%Αποθέσεις, μορένες, άργιλοι, ψαμμόλιθοι και άλλα ανθεκτικά πετρώματαΜικτές δασοσυστάδες και πυκνοί θαμνώνες ή δασοσυστάδες αραιές με υπόροφο ",52.43]
["60-90%","Αποθέσεις, μορένες, άργιλοι, ψαμμόλιθοι και άλλα ανθεκτικά πετρώματα","Δασοσυστάδες κωνοφόρων με υπόροφο ασθενή ή θαμνώνες όχι σύμπυκνοι ","60-90%Αποθέσεις, μορένες, άργιλοι, ψαμμόλιθοι και άλλα ανθεκτικά πετρώματαΔασοσυστάδες κωνοφόρων με υπόροφο ασθενή ή θαμνώνες όχι σύμπυκνοι ",48.71]
["60-90%","Αποθέσεις, μορένες, άργιλοι, ψαμμόλιθοι και άλλα ανθεκτικά πετρώματα","Δασοσυστάδες και θαμνώνες υποβαθμισμένοι, λιβάδια ","60-90%Αποθέσεις, μορένες, άργιλοι, ψαμμόλιθοι και άλλα ανθεκτικά πετρώματαΔασοσυστάδες και θαμνώνες υποβαθμισμένοι, λιβάδια ",40.549999999999997]
["60-90%","Αποθέσεις, μορένες, άργιλοι, ψαμμόλιθοι και άλλα ανθεκτικά πετρώματα","Λιβάδια και εδάφη καλλιεργούμενα, υποβαθμισμένα ","60-90%Αποθέσεις, μορένες, άργιλοι, ψαμμόλιθοι και άλλα ανθεκτικά πετρώματαΛιβάδια και εδάφη καλλιεργούμενα, υποβαθμισμένα ",21.74]
[">90%","Αποθέσεις, μορένες, άργιλοι, ψαμμόλιθοι και άλλα ανθεκτικά πετρώματα","Μικτές δασοσυστάδες και πυκνοί θαμνώνες ή δασοσυστάδες αραιές με υπόροφο ",">90%Αποθέσεις, μορένες, άργιλοι, ψαμμόλιθοι και άλλα ανθεκτικά πετρώματαΜικτές δασοσυστάδες και πυκνοί θαμνώνες ή δασοσυστάδες αραιές με υπόροφο ",60.97]
[">90%","Αποθέσεις, μορένες, άργιλοι, ψαμμόλιθοι και άλλα ανθεκτικά πετρώματα","Δασοσυστάδες κωνοφόρων με υπόροφο ασθενή ή θαμνώνες όχι σύμπυκνοι ",">90%Αποθέσεις, μορένες, άργιλοι, ψαμμόλιθοι και άλλα ανθεκτικά πετρώματαΔασοσυστάδες κωνοφόρων με υπόροφο ασθενή ή θαμνώνες όχι σύμπυκνοι ",56.64]
[">90%","Αποθέσεις, μορένες, άργιλοι, ψαμμόλιθοι και άλλα ανθεκτικά πετρώματα","Δασοσυστάδες και θαμνώνες υποβαθμισμένοι, λιβάδια ",">90%Αποθέσεις, μορένες, άργιλοι, ψαμμόλιθοι και άλλα ανθεκτικά πετρώματαΔασοσυστάδες και θαμνώνες υποβαθμισμένοι, λιβάδια ",47.16]
[">90%","Αποθέσεις, μορένες, άργιλοι, ψαμμόλιθοι και άλλα ανθεκτικά πετρώματα","Λιβάδια και εδάφη καλλιεργούμενα, υποβαθμισμένα ",">90%Αποθέσεις, μορένες, άργιλοι, ψαμμόλιθοι και άλλα ανθεκτικά πετρώματαΛιβάδια και εδάφη καλλιεργούμενα, υποβαθμισμένα ",25.28]
["0-25%","Πολύ ευαίσθητα στη διάβρωση πετρώματα και εδάφη ","Μικτές δασοσυστάδες και πυκνοί θαμνώνες ή δασοσυστάδες αραιές με υπόροφο ","0-25%Πολύ ευαίσθητα στη διάβρωση πετρώματα και εδάφη Μικτές δασοσυστάδες και πυκνοί θαμνώνες ή δασοσυστάδες αραιές με υπόροφο ",32.67]
["0-25%","Πολύ ευαίσθητα στη διάβρωση πετρώματα και εδάφη ","Δασοσυστάδες κωνοφόρων με υπόροφο ασθενή ή θαμνώνες όχι σύμπυκνοι ","0-25%Πολύ ευαίσθητα στη διάβρωση πετρώματα και εδάφη Δασοσυστάδες κωνοφόρων με υπόροφο ασθενή ή θαμνώνες όχι σύμπυκνοι ",30.35]
["0-25%","Πολύ ευαίσθητα στη διάβρωση πετρώματα και εδάφη ","Δασοσυστάδες και θαμνώνες υποβαθμισμένοι, λιβάδια ","0-25%Πολύ ευαίσθητα στη διάβρωση πετρώματα και εδάφη Δασοσυστάδες και θαμνώνες υποβαθμισμένοι, λιβάδια ",25.27]
["0-25%","Πολύ ευαίσθητα στη διάβρωση πετρώματα και εδάφη ","Λιβάδια και εδάφη καλλιεργούμενα, υποβαθμισμένα ","0-25%Πολύ ευαίσθητα στη διάβρωση πετρώματα και εδάφη Λιβάδια και εδάφη καλλιεργούμενα, υποβαθμισμένα ",13.55]
["25-40%","Πολύ ευαίσθητα στη διάβρωση πετρώματα και εδάφη ","Μικτές δασοσυστάδες και πυκνοί θαμνώνες ή δασοσυστάδες αραιές με υπόροφο ","25-40%Πολύ ευαίσθητα στη διάβρωση πετρώματα και εδάφη Μικτές δασοσυστάδες και πυκνοί θαμνώνες ή δασοσυστάδες αραιές με υπόροφο ",47.73]
["25-40%","Πολύ ευαίσθητα στη διάβρωση πετρώματα και εδάφη ","Δασοσυστάδες κωνοφόρων με υπόροφο ασθενή ή θαμνώνες όχι σύμπυκνοι ","25-40%Πολύ ευαίσθητα στη διάβρωση πετρώματα και εδάφη Δασοσυστάδες κωνοφόρων με υπόροφο ασθενή ή θαμνώνες όχι σύμπυκνοι ",44.34]
["25-40%","Πολύ ευαίσθητα στη διάβρωση πετρώματα και εδάφη ","Δασοσυστάδες και θαμνώνες υποβαθμισμένοι, λιβάδια ","25-40%Πολύ ευαίσθητα στη διάβρωση πετρώματα και εδάφη Δασοσυστάδες και θαμνώνες υποβαθμισμένοι, λιβάδια ",36.92]
["25-40%","Πολύ ευαίσθητα στη διάβρωση πετρώματα και εδάφη ","Λιβάδια και εδάφη καλλιεργούμενα, υποβαθμισμένα ","25-40%Πολύ ευαίσθητα στη διάβρωση πετρώματα και εδάφη Λιβάδια και εδάφη καλλιεργούμενα, υποβαθμισμένα ",19.79]
["40-60%","Πολύ ευαίσθητα στη διάβρωση πετρώματα και εδάφη ","Μικτές δασοσυστάδες και πυκνοί θαμνώνες ή δασοσυστάδες αραιές με υπόροφο ","40-60%Πολύ ευαίσθητα στη διάβρωση πετρώματα και εδάφη Μικτές δασοσυστάδες και πυκνοί θαμνώνες ή δασοσυστάδες αραιές με υπόροφο ",58.19]
["40-60%","Πολύ ευαίσθητα στη διάβρωση πετρώματα και εδάφη ","Δασοσυστάδες κωνοφόρων με υπόροφο ασθενή ή θαμνώνες όχι σύμπυκνοι ","40-60%Πολύ ευαίσθητα στη διάβρωση πετρώματα και εδάφη Δασοσυστάδες κωνοφόρων με υπόροφο ασθενή ή θαμνώνες όχι σύμπυκνοι ",54.05]
["40-60%","Πολύ ευαίσθητα στη διάβρωση πετρώματα και εδάφη ","Δασοσυστάδες και θαμνώνες υποβαθμισμένοι, λιβάδια ","40-60%Πολύ ευαίσθητα στη διάβρωση πετρώματα και εδάφη Δασοσυστάδες και θαμνώνες υποβαθμισμένοι, λιβάδια ",45.01]
["40-60%","Πολύ ευαίσθητα στη διάβρωση πετρώματα και εδάφη ","Λιβάδια και εδάφη καλλιεργούμενα, υποβαθμισμένα ","40-60%Πολύ ευαίσθητα στη διάβρωση πετρώματα και εδάφη Λιβάδια και εδάφη καλλιεργούμενα, υποβαθμισμένα ",24.12]
["60-90%","Πολύ ευαίσθητα στη διάβρωση πετρώματα και εδάφη ","Μικτές δασοσυστάδες και πυκνοί θαμνώνες ή δασοσυστάδες αραιές με υπόροφο ","60-90%Πολύ ευαίσθητα στη διάβρωση πετρώματα και εδάφη Μικτές δασοσυστάδες και πυκνοί θαμνώνες ή δασοσυστάδες αραιές με υπόροφο ",71.150000000000006]
["60-90%","Πολύ ευαίσθητα στη διάβρωση πετρώματα και εδάφη ","Δασοσυστάδες κωνοφόρων με υπόροφο ασθενή ή θαμνώνες όχι σύμπυκνοι ","60-90%Πολύ ευαίσθητα στη διάβρωση πετρώματα και εδάφη Δασοσυστάδες κωνοφόρων με υπόροφο ασθενή ή θαμνώνες όχι σύμπυκνοι ",66.099999999999994]
["60-90%","Πολύ ευαίσθητα στη διάβρωση πετρώματα και εδάφη ","Δασοσυστάδες και θαμνώνες υποβαθμισμένοι, λιβάδια ","60-90%Πολύ ευαίσθητα στη διάβρωση πετρώματα και εδάφη Δασοσυστάδες και θαμνώνες υποβαθμισμένοι, λιβάδια ",55.04]
["60-90%","Πολύ ευαίσθητα στη διάβρωση πετρώματα και εδάφη ","Λιβάδια και εδάφη καλλιεργούμενα, υποβαθμισμένα ","60-90%Πολύ ευαίσθητα στη διάβρωση πετρώματα και εδάφη Λιβάδια και εδάφη καλλιεργούμενα, υποβαθμισμένα ",29.5]
[">90%","Πολύ ευαίσθητα στη διάβρωση πετρώματα και εδάφη ","Μικτές δασοσυστάδες και πυκνοί θαμνώνες ή δασοσυστάδες αραιές με υπόροφο ",">90%Πολύ ευαίσθητα στη διάβρωση πετρώματα και εδάφη Μικτές δασοσυστάδες και πυκνοί θαμνώνες ή δασοσυστάδες αραιές με υπόροφο ",82.74]
[">90%","Πολύ ευαίσθητα στη διάβρωση πετρώματα και εδάφη ","Δασοσυστάδες κωνοφόρων με υπόροφο ασθενή ή θαμνώνες όχι σύμπυκνοι ",">90%Πολύ ευαίσθητα στη διάβρωση πετρώματα και εδάφη Δασοσυστάδες κωνοφόρων με υπόροφο ασθενή ή θαμνώνες όχι σύμπυκνοι ",76.87]
[">90%","Πολύ ευαίσθητα στη διάβρωση πετρώματα και εδάφη ","Δασοσυστάδες και θαμνώνες υποβαθμισμένοι, λιβάδια ",">90%Πολύ ευαίσθητα στη διάβρωση πετρώματα και εδάφη Δασοσυστάδες και θαμνώνες υποβαθμισμένοι, λιβάδια ",64]
[">90%","Πολύ ευαίσθητα στη διάβρωση πετρώματα και εδάφη ","Λιβάδια και εδάφη καλλιεργούμενα, υποβαθμισμένα ",">90%Πολύ ευαίσθητα στη διάβρωση πετρώματα και εδάφη Λιβάδια και εδάφη καλλιεργούμενα, υποβαθμισμένα ",34.31]

{"sheet":"CS DATA","index":7,"n_rows":13,"n_cols":8,"rows_kept":13,"cut":false,"hidden":true,"merged":[]}
["Συντελεστές BEF","t/m3",null,"Δασικά είδη","MAI-Vp","R","MACI","GINOMENO"]
["A (Δάση σφενδάμου\nΥγρόφιλα παρόχθια δάση\nΥψηλά δάση δρυός σε χαμηλά υψόμετρα\nΥψηλά δάση οξυάς ή σημύδας)",0.8,null,"Ελάτη",{"$f":"'2.ΒΑΣΙΚΕΣ ΤΙΜΕΣ'!M64","v":5.05},{"$f":"'2.ΒΑΣΙΚΕΣ ΤΙΜΕΣ'!L64","v":0.46},0.5,{"$f":"E2*(1+F2)*G2","v":3.6864999999999997}]
["B (Υψηλά δάση δρυός (Q. petreae, Q.pubescens, Q.cerris)\nΑειθαλή υψηλά δάση δρυός)",0.95,null,"Ερυθρελάτη",{"$f":"'2.ΒΑΣΙΚΕΣ ΤΙΜΕΣ'!M65","v":2.8499999999999996},{"$f":"F2","v":0.46},{"$f":"G2","v":0.5},{"$f":"E3*(1+F3)*G3","v":2.0804999999999998}]
["C (Δάση ερυθρελάτης ή ελάτης\nΜεικτά δάση ελάτης και ερυθρελάτης\nΔάση δασικής ή μαύρης πεύκης)",0.6,null,"Πεύκη Χαλέπιος ή Τραχεία",{"$f":"'2.ΒΑΣΙΚΕΣ ΤΙΜΕΣ'!M66","v":5.57},{"$f":"F3","v":0.46},{"$f":"G3","v":0.5},4.0661000000000005]
["D (Λοφώδη και επίπεδα δάση δασικής πεύκης\nΔάση τραχείας και λευκόδερμου πεύκης \nΛοφώδη δάση μαύρης πεύκης\nΜεσογειακά δάση πεύκης\nΆλλα δάση κωνοφόρων)",0.7,null,"Πεύκη λοιπά",{"$f":"E4","v":5.57},{"$f":"F4","v":0.46},0.5,4.0661000000000005]
["E (Πρεμνοφυή δάση οξυάς ή καστανιάς ή γαύρου)",0.8,null,"Οξυά",{"$f":"'2.ΒΑΣΙΚΕΣ ΤΙΜΕΣ'!M67","v":5.4399999999999995},{"$f":"'2.ΒΑΣΙΚΕΣ ΤΙΜΕΣ'!L67","v":0.43},0.5,3.8895999999999993]
["F (Πρεμνοφυή δάση δρυός (Q.petreae, Q. pubescens, Q. aegilops, Q. frainetto, Q. trojana)\nΠρεμνοφυή δάση οστριάς\nΠρεμνοφυή αειθαλή δάση δρυός)",0.9,null,"Δρυς",{"$f":"'2.ΒΑΣΙΚΕΣ ΤΙΜΕΣ'!M68","v":2.42},{"$f":"F6","v":0.43},0.5,1.7302999999999999]
["G (Μεσογειακά δάση αειφύλλων πλατυφύλλων)",1,null,"Λοιπά πλατύφυλλα",{"$f":"'2.ΒΑΣΙΚΕΣ ΤΙΜΕΣ'!M69","v":1.6300000000000001},{"$f":"F7","v":0.43},0.5,1.1654500000000001]
["H (Δάση πλατύφυλλων με μέσο ύψος <3,5 m)",0.9,null,"Αείφυλλα πλατύφυλλα",{"$f":"'2.ΒΑΣΙΚΕΣ ΤΙΜΕΣ'!M70","v":9.9999999999999978E-2},{"$f":"'2.ΒΑΣΙΚΕΣ ΤΙΜΕΣ'!L70","v":2.83},0.5,0.19149999999999995]
["I (Δάση κωνοφόρων  με μέσο ύψος <3,5 m)",0.6,null,"Φρύγανα",0.48,{"$f":"'2.ΒΑΣΙΚΕΣ ΤΙΜΕΣ'!L71","v":1.48},0.4,0.47615999999999997]
["Άλλο",1,null,"Χορτολίβαδα>800 m",1,1,0.4,{"$f":"E11*G11","v":0.4}]
["ΔΕΝ ΑΠΑΙΤΕΙΤΑΙ",1,null,"Χορτολίβαδα<800 m",1,1,0.1,{"$f":"E12*G12","v":0.1}]
[null,null,null,"Άγονη / βραχώδης έκταση",0,0,0,0]

{"sheet":"5.ΥΠΟΛΟΓΙΣΜΟΙ","index":8,"n_rows":38,"n_cols":13,"rows_kept":38,"cut":false,"hidden":true,"merged":[[31,0,31,5],[0,0,0,8],[3,0,3,5],[10,0,10,5],[17,0,17,5],[24,0,24,5]]}
["5. ΒΟΗΘΗΤΙΚΟΙ ΥΠΟΛΟΓΙΣΜΟΙ ΤΙΜΩΝ"]
[]
["Α) ΕΠΙΛΟΓΗ ΤΙΜΗΣ S",null,null,null,null,null,null,"Β) ΕΚΤΙΜΗΣΗ ΑΞΙΑΣ ΑΠΌ ΔΕΣΜΕΥΣΗ ΑΝΘΡΑΚΑ"]
["Σκληρά πετρώματα, ανθεκτικά στη διάβρωση",null,null,null,null,null,null,null,"ha","MAI-Vv","BEF","R","Vb"]
["Κλίση (%)","Α","Β","Γ","Δ","Ε",null,"Ελάτη",{"$f":"#REF!","v":{"$error":"#REF!"}},{"$f":"'2.ΒΑΣΙΚΕΣ ΤΙΜΕΣ'!D6-'2.ΒΑΣΙΚΕΣ ΤΙΜΕΣ'!K64","v":5.05},{"$f":"'2.ΒΑΣΙΚΕΣ ΤΙΜΕΣ'!B66","v":0.6},0.46,{"$f":"I5*J5*K5*0.5*'2.ΒΑΣΙΚΕΣ ΤΙΜΕΣ'!D$70","v":{"$error":"#REF!"}}]
["0-25%",3.16,2.93,2.44,1.31,0,null,"Ερυθρελάτη",{"$f":"#REF!","v":{"$error":"#REF!"}},{"$f":"'2.ΒΑΣΙΚΕΣ ΤΙΜΕΣ'!D7-'2.ΒΑΣΙΚΕΣ ΤΙΜΕΣ'!K65","v":2.8499999999999996},{"$f":"K5","v":0.6},0.46,{"$f":"I6*J6*K6*0.5*'2.ΒΑΣΙΚΕΣ ΤΙΜΕΣ'!D$70","v":{"$error":"#REF!"}}]
["25-40%",4.6100000000000003,4.28,3.57,1.91,0,null,"Πεύκη",{"$f":"#REF!","v":{"$error":"#REF!"}},{"$f":"'2.ΒΑΣΙΚΕΣ ΤΙΜΕΣ'!D8-'2.ΒΑΣΙΚΕΣ ΤΙΜΕΣ'!K66","v":5.57},{"$f":"('2.ΒΑΣΙΚΕΣ ΤΙΜΕΣ'!B66+'2.ΒΑΣΙΚΕΣ ΤΙΜΕΣ'!B67)/2","v":0.64999999999999991},0.46,{"$f":"I7*J7*K7*0.5*'2.ΒΑΣΙΚΕΣ ΤΙΜΕΣ'!D$70","v":{"$error":"#REF!"}}]
["40-60%",5.62,5.22,4.3499999999999996,2.33,0,null,"Οξυά",{"$f":"#REF!","v":{"$error":"#REF!"}},{"$f":"'2.ΒΑΣΙΚΕΣ ΤΙΜΕΣ'!D9-'2.ΒΑΣΙΚΕΣ ΤΙΜΕΣ'!K67","v":5.4399999999999995},{"$f":"'2.ΒΑΣΙΚΕΣ ΤΙΜΕΣ'!B64","v":0.8},0.43,{"$f":"I8*J8*K8*0.5*'2.ΒΑΣΙΚΕΣ ΤΙΜΕΣ'!D$70","v":{"$error":"#REF!"}}]
["60-90%",6.87,6.39,5.32,2.85,0,null,"Δρυς",{"$f":"#REF!","v":{"$error":"#REF!"}},{"$f":"'2.ΒΑΣΙΚΕΣ ΤΙΜΕΣ'!D10-'2.ΒΑΣΙΚΕΣ ΤΙΜΕΣ'!K68","v":2.42},0.9,0.43,{"$f":"I9*J9*K9*0.5*'2.ΒΑΣΙΚΕΣ ΤΙΜΕΣ'!D$70","v":{"$error":"#REF!"}}]
[">90%",7.99,7.43,6.18,3.31,0,null,"Λοιπά πλατύφυλλα",{"$f":"#REF!","v":{"$error":"#REF!"}},{"$f":"'2.ΒΑΣΙΚΕΣ ΤΙΜΕΣ'!D11-'2.ΒΑΣΙΚΕΣ ΤΙΜΕΣ'!K69","v":1.6300000000000001},0.9,0.43,{"$f":"I10*J10*K10*0.5*'2.ΒΑΣΙΚΕΣ ΤΙΜΕΣ'!D$70","v":{"$error":"#REF!"}}]
["Πετρώματα μετρίως ανθεκτικά στη διάβρωση ",null,null,null,null,null,null,"Αείφυλλα πλατύφυλλα",{"$f":"#REF!","v":{"$error":"#REF!"}},{"$f":"'2.ΒΑΣΙΚΕΣ ΤΙΜΕΣ'!D12-'2.ΒΑΣΙΚΕΣ ΤΙΜΕΣ'!K70","v":9.9999999999999978E-2},1,2.83,{"$f":"I11*J11*K11*0.5*'2.ΒΑΣΙΚΕΣ ΤΙΜΕΣ'!D$70","v":{"$error":"#REF!"}}]
["Κλίση (%)","Α","Β","Γ","Δ","Ε",null,"Φρύγανα",{"$f":"#REF!","v":{"$error":"#REF!"}},0.48,0.4,1.48,{"$f":"I12*J12*(1+L12)*0.4*'2.ΒΑΣΙΚΕΣ ΤΙΜΕΣ'!D70","v":{"$error":"#REF!"}}]
["0-25%",8.93,8.2899999999999991,6.91,3.7,0,null,"Χορτολίβαδα>800 m",{"$f":"#REF!","v":{"$error":"#REF!"}},null,0.4,null,{"$f":"I13*K13*'2.ΒΑΣΙΚΕΣ ΤΙΜΕΣ'!D$70","v":{"$error":"#REF!"}}]
["25-40%",13.04,12.11,10.09,5.41,0,null,"Χορτολίβαδα<800 m",{"$f":"#REF!","v":{"$error":"#REF!"}},null,0.1,null,{"$f":"I14*K14*'2.ΒΑΣΙΚΕΣ ΤΙΜΕΣ'!D$70","v":{"$error":"#REF!"}}]
["40-60%",15.9,14.77,12.3,6.59,0,null,null,null,null,null,null,{"$f":"SUM(M5:M14)","v":{"$error":"#REF!"}}]
["60-90%",19.440000000000001,18.059999999999999,15.04,8.06,0]
[">90%",22.61,21,17.489999999999998,9.3699999999999992,0]
["Εύθρυπτα πετρώματα "]
["Κλίση (%)","Α","Β","Γ","Δ","Ε"]
["0-25%",15.39,14.29,11.9,6.38,0]
["25-40%",22.47,20.88,17.38,9.32,0]
["40-60%",27.4,25.45,21.19,11.36,0]
["60-90%",33.51,31.13,25.92,13.89,0]
[">90%",38.96,36.200000000000003,30.14,16.149999999999999,0]
["Αποθέσεις, μορένες, άργιλοι, ψαμμόλιθοι και άλλα ανθεκτικά πετρώματα"]
["Κλίση (%)","Α","Β","Γ","Δ","Ε"]
["0-25%",24.08,22.37,18.62,9.98,0]
["25-40%",35.17,32.67,27.2,14.58,0]
["40-60%",42.87,39.83,33.159999999999997,17.78,0]
["60-90%",52.43,48.71,40.549999999999997,21.74,0]
[">90%",60.97,56.64,47.16,25.28,0]
["Πολύ ευαίσθητα στη διάβρωση πετρώματα και εδάφη "]
["Κλίση (%)","Α","Β","Γ","Δ","Ε"]
["0-25%",32.67,30.35,25.27,13.55,0]
["25-40%",47.73,44.34,36.92,19.79,0]
["40-60%",58.19,54.05,45.01,24.12,0]
["60-90%",71.150000000000006,66.099999999999994,55.04,29.5,0]
[">90%",82.74,76.87,64,34.31,0]